Workbook

Sheet CUENTAS
A1: CODIGO | B1: CUENTAS POR COBRAR TRABAJADORES
A2: 3115 | B2: APORTES SOCIALES
A3: 1105 | B3: CAJA
A4: 1516 | B4: EDIFICIO
A5: 1524 | B5: EQUIPOS DE OFICINA
A6: 1110 | B6: BANCO
A7: 1540 | B7: VEHICULO
A8: 1435 | B8: MERCANCIAS NO FABRICADAS
A9: 2205 | B9: PROVEEDORES NACIONALES
A10: 4135 | B10: COMERCIO POR MAYOR POR MENOR
A11: 1305 | B11: CUENTAS POR COBRAR CLIENTES
A12: 2380 | B12: ACREEDORES VARIOS
A13: 1365 | B13: CUENTAS POR COBRAR TRABAJADORES
A14: 2105 | B14: BANCOS NACIONALES
A15: 1504 | B15: TERRENO
A16: 5120 | B16: GASTOS ARRENDAMIENTO
A17: 5140 | B17: GASTOS LEGALES
A18: 4220 | B18: ARRENDAMIENTOS
A19: 1528 | B19: EQUIPOS DE COMPUTO
A20: 510518 | B20: GASTOS COMISIONES
A21: 510506 | B21: GASTOS SALARIOS
A22: 5145 | B22: GASTOS MTTO
A23: 1205 | B23: ACCIONES
A24: 1325 | B24: CUENTAS POR COBRAR SOCIOS
A25: 1520 | B25: MAQUINARIA
A26: 6205 | B26: DE VENTAS
A27: 5105 | B27: GASTOS PERSONAL
A28: 5110 | B28: HONORARIOS
A29: 3605 | B29: UTILIDAD DEL EJERCICIO
A30: 5135 | B30: SERVICIOS PUBLICOS
A31: 2408 | B31: IVA X PAGAR
A32: 135517 | B32: IVA RETENIDO
A33: 2365 | B33: RETEFUENTE
A34: 135515 | B34: RETENCION EN LA FUENTE
A35: 152405 | B35: MUEBLES Y ENSERES
A36: 530505 | B36: GTOS BANCARIOS
A37: 2195 | B37: OBLIGACIONES FINANCIERAS
A38: 422040 | B38: FLOTA Y EQUI TRANSPORTE

Sheet LIBRO DIARIO
C1: LIBRO DIARIO | D1: EMPRESA
A2: FECHA | B2: DETALLE | C2: CUENTA | D2: CODIGO | E2: DEBITO | F2: CREDITO
A3: 2015-06-01 | B3: CONSTITUCION EMPRESA NUTRIVITAL | C3: =IFERROR(VLOOKUP(D3,CUENTAS,2,0),"") -> CAJA | D3: 1105 | E3: 23000000
C4: MERCANCIAS NO FABRICADAS | D4: 1435 | E4: =100*3000 -> 300000
C5: EDIFICIO | D5: 1516 | E5: 90000000
C6: APORTES SOCIALES | D6: 3115 | F6: =SUM(E3:E5) -> 113300000
A7: 2015-06-02 | B7: VENTA A LOCATEL | C7: COMERCIO POR MAYOR POR MENOR | D7: 4135 | F7: =50*4500 -> 225000
C8: IVA X PAGAR | D8: 2408 | F8: =F7*16% -> 36000
C9: CUENTAS POR COBRAR CLIENTES | D9: 1305 | E9: =SUM(F7:F8)*50% -> 130500
C10: CAJA | D10: 1105 | E10: =E9 -> 130500
C11: MERCANCIAS NO FABRICADAS | D11: 1435 | F11: =50*3000 -> 150000
C12: DE VENTAS | D12: 6205 | E12: =F11 -> 150000
A13: 2015-06-03 | B13: COMPRA A LACTEOS DEL SUR | C13: MERCANCIAS NO FABRICADAS | D13: 1435 | E13: =300*3000 -> 900000
C14: IVA X PAGAR | D14: 2408 | E14: =E13*16% -> 144000
C15: PROVEEDORES NACIONALES | D15: 2205 | F15: =SUM(E13:E14) -> 1044000
A16: 2015-06-04 | B16: PRESTAMO BANCO DEL CARIBE | C16: BANCOS NACIONALES | D16: 2105 | F16: 4000000
C17: BANCO | D17: 1110 | E17: 2000000
C18: CAJA | D18: 1105 | E18: =E17 -> 2000000
A19: 2015-06-05 | B19: ABONO LOCATEL | C19: CUENTAS POR COBRAR CLIENTES | D19: 1305 | F19: =E9*50% -> 65250
C20: BANCO | D20: 1110 | E20: =F19 -> 65250
A21: 2015-06-06 | B21: ABONO LACTEOS DEL SUR | C21: PROVEEDORES NACIONALES | D21: 2205 | E21: =F15*70% -> 730800
C22: BANCO | D22: 1110 | F22: =E21 -> 730800
A23: 2015-06-07 | B23: CONSIGNACION BANCO | C23: CAJA | D23: 1105 | F23: 5000000
C24: BANCO | D24: 1110 | E24: =F23 -> 5000000
A25: 2015-06-08 | B25: ABONO BANCO DEL CARIBE | C25: BANCOS NACIONALES | D25: 2105 | E25: 1000000
C26: CAJA | D26: 1105 | F26: =E25 -> 1000000
A27: 2015-06-09 | B27: COMPRA EQUIPO DE OFICINA | C27: EQUIPOS DE OFICINA | D27: 1524 | E27: 2000000
C28: ACREEDORES VARIOS | D28: 2380 | F28: =E27 -> 2000000
A29: 2015-06-10 | B29: VENTA A LA VAQUITA | C29: COMERCIO POR MAYOR POR MENOR | D29: 4135 | F29: =150*5000 -> 750000
C30: IVA X PAGAR | D30: 2408 | F30: =F29*16% -> 120000
C31: BANCO | D31: 1110 | E31: =SUM(F29:F30) -> 870000
C32: MERCANCIAS NO FABRICADAS | D32: 1435 | F32: =150*3000 -> 450000
C33: DE VENTAS | D33: 6205 | E33: =F32 -> 450000
E34: =SUM(E3:E33) -> 128871050 | F34: =SUM(F3:F33) -> 128871050

Sheet LIBRO MAYOR
A1: 1105 | B1: =IFERROR(VLOOKUP(A1,CUENTAS,2,0),"") -> CAJA | D1: 1435 | E1: =IFERROR(VLOOKUP(D1,CUENTAS,2,0),"") -> MERCANCIAS NO FABRICADAS | G1: 1516 | H1: =IFERROR(VLOOKUP(G1,CUENTAS,2,0),"") -> EDIFICIO
A2: DEBITO | B2: CREDITO | D2: DEBITO | E2: CREDITO | G2: DEBITO | H2: CREDITO
A3: =SUMIF('LIBRO DIARIO'!$D$3:$D$33,A1,'LIBRO DIARIO'!$E$3:$E$33) -> 25130500 | B3: =SUMIF('LIBRO DIARIO'!$D$3:$D$33,A1,'LIBRO DIARIO'!$F$3:$F$33) -> 6000000 | D3: =SUMIF('LIBRO DIARIO'!$D$3:$D$33,D1,'LIBRO DIARIO'!$E$3:$E$33) -> 1200000 | E3: =SUMIF('LIBRO DIARIO'!$D$3:$D$33,D1,'LIBRO DIARIO'!$F$3:$F$33) -> 600000 | G3: =SUMIF('LIBRO DIARIO'!$D$3:$D$33,G1,'LIBRO DIARIO'!$E$3:$E$33) -> 90000000 | H3: =SUMIF('LIBRO DIARIO'!$D$3:$D$33,G1,'LIBRO DIARIO'!$F$3:$F$33) -> 0
A11: =SUM(A3:A10) -> 25130500 | B11: =SUM(B3:B10) -> 6000000 | D11: =SUM(D3:D10) -> 1200000 | E11: =SUM(E3:E10) -> 600000 | G11: =SUM(G3:G10) -> 90000000 | H11: =SUM(H3:H10) -> 0
A12: =IF(A11>B11,A11-B11,0) -> 19130500 | B12: =IF(B11>A11,B11-A11,0) -> 0 | D12: =IF(D11>E11,D11-E11,0) -> 600000 | E12: =IF(E11>D11,E11-D11,0) -> 0 | G12: =IF(G11>H11,G11-H11,0) -> 90000000 | H12: =IF(H11>G11,H11-G11,0) -> 0
A13: 3115 | B13: =IFERROR(VLOOKUP(A13,CUENTAS,2,0),"") -> APORTES SOCIALES | D13: 4135 | E13: =IFERROR(VLOOKUP(D13,CUENTAS,2,0),"") -> COMERCIO POR MAYOR POR MENOR | G13: 2408 | H13: =IFERROR(VLOOKUP(G13,CUENTAS,2,0),"") -> IVA X PAGAR
A14: DEBITO | B14: CREDITO | D14: DEBITO | E14: CREDITO | G14: DEBITO | H14: CREDITO
A15: =SUMIF('LIBRO DIARIO'!$D$3:$D$33,A13,'LIBRO DIARIO'!$E$3:$E$33) -> 0 | B15: =SUMIF('LIBRO DIARIO'!$D$3:$D$33,A13,'LIBRO DIARIO'!$F$3:$F$33) -> 113300000 | D15: =SUMIF('LIBRO DIARIO'!$D$3:$D$33,D13,'LIBRO DIARIO'!$E$3:$E$33) -> 0 | E15: =SUMIF('LIBRO DIARIO'!$D$3:$D$33,D13,'LIBRO DIARIO'!$F$3:$F$33) -> 975000 | G15: =SUMIF('LIBRO DIARIO'!$D$3:$D$33,G13,'LIBRO DIARIO'!$E$3:$E$33) -> 144000 | H15: =SUMIF('LIBRO DIARIO'!$D$3:$D$33,G13,'LIBRO DIARIO'!$F$3:$F$33) -> 156000
A22: =SUM(A15:A21) -> 0 | B22: =SUM(B15:B21) -> 113300000 | D22: =SUM(D15:D21) -> 0 | E22: =SUM(E15:E21) -> 975000 | G22: =SUM(G15:G21) -> 144000 | H22: =SUM(H15:H21) -> 156000
A23: =IF(A22>B22,A22-B22,0) -> 0 | B23: =IF(B22>A22,B22-A22,0) -> 113300000 | D23: =IF(D22>E22,D22-E22,0) -> 0 | E23: =IF(E22>D22,E22-D22,0) -> 975000 | G23: =IF(G22>H22,G22-H22,0) -> 0 | H23: =IF(H22>G22,H22-G22,0) -> 12000
A24: 1305 | B24: =IFERROR(VLOOKUP(A24,CUENTAS,2,0),"") -> CUENTAS POR COBRAR CLIENTES | D24: 6205 | E24: =IFERROR(VLOOKUP(D24,CUENTAS,2,0),"") -> DE VENTAS | G24: 2205 | H24: =IFERROR(VLOOKUP(G24,CUENTAS,2,0),"") -> PROVEEDORES NACIONALES
A25: DEBITO | B25: CREDITO | D25: DEBITO | E25: CREDITO | G25: DEBITO | H25: CREDITO
A26: =SUMIF('LIBRO DIARIO'!$D$3:$D$33,A24,'LIBRO DIARIO'!$E$3:$E$33) -> 130500 | B26: =SUMIF('LIBRO DIARIO'!$D$3:$D$33,A24,'LIBRO DIARIO'!$F$3:$F$33) -> 65250 | D26: =SUMIF('LIBRO DIARIO'!$D$3:$D$33,D24,'LIBRO DIARIO'!$E$3:$E$33) -> 600000 | E26: =SUMIF('LIBRO DIARIO'!$D$3:$D$33,D24,'LIBRO DIARIO'!$F$3:$F$33) -> 0 | G26: =SUMIF('LIBRO DIARIO'!$D$3:$D$33,G24,'LIBRO DIARIO'!$E$3:$E$33) -> 730800 | H26: =SUMIF('LIBRO DIARIO'!$D$3:$D$33,G24,'LIBRO DIARIO'!$F$3:$F$33) -> 1044000
A33: =SUM(A26:A32) -> 130500 | B33: =SUM(B26:B32) -> 65250 | D33: =SUM(D26:D32) -> 600000 | E33: =SUM(E26:E32) -> 0 | G33: =SUM(G26:G32) -> 730800 | H33: =SUM(H26:H32) -> 1044000
A34: =IF(A33>B33,A33-B33,0) -> 65250 | B34: =IF(B33>A33,B33-A33,0) -> 0 | D34: =IF(D33>E33,D33-E33,0) -> 600000 | E34: =IF(E33>D33,E33-D33,0) -> 0 | G34: =IF(G33>H33,G33-H33,0) -> 0 | H34: =IF(H33>G33,H33-G33,0) -> 313200
A35: 2105 | B35: =IFERROR(VLOOKUP(A35,CUENTAS,2,0),"") -> BANCOS NACIONALES | D35: 1110 | E35: =IFERROR(VLOOKUP(D35,CUENTAS,2,0),"") -> BANCO | G35: 1524 | H35: =IFERROR(VLOOKUP(G35,CUENTAS,2,0),"") -> EQUIPOS DE OFICINA
A36: DEBITO | B36: CREDITO | D36: DEBITO | E36: CREDITO | G36: DEBITO | H36: CREDITO
A37: =SUMIF('LIBRO DIARIO'!$D$3:$D$33,A35,'LIBRO DIARIO'!$E$3:$E$33) -> 1000000 | B37: =SUMIF('LIBRO DIARIO'!$D$3:$D$33,A35,'LIBRO DIARIO'!$F$3:$F$33) -> 4000000 | D37: =SUMIF('LIBRO DIARIO'!$D$3:$D$33,D35,'LIBRO DIARIO'!$E$3:$E$33) -> 7935250 | E37: =SUMIF('LIBRO DIARIO'!$D$3:$D$33,D35,'LIBRO DIARIO'!$F$3:$F$33) -> 730800 | G37: =SUMIF('LIBRO DIARIO'!$D$3:$D$33,G35,'LIBRO DIARIO'!$E$3:$E$33) -> 2000000 | H37: =SUMIF('LIBRO DIARIO'!$D$3:$D$33,G35,'LIBRO DIARIO'!$F$3:$F$33) -> 0
A44: =SUM(A37:A43) -> 1000000 | B44: =SUM(B37:B43) -> 4000000 | D44: =SUM(D37:D43) -> 7935250 | E44: =SUM(E37:E43) -> 730800 | G44: =SUM(G37:G43) -> 2000000 | H44: =SUM(H37:H43) -> 0
A45: =IF(A44>B44,A44-B44,0) -> 0 | B45: =IF(B44>A44,B44-A44,0) -> 3000000 | D45: =IF(D44>E44,D44-E44,0) -> 7204450 | E45: =IF(E44>D44,E44-D44,0) -> 0 | G45: =IF(G44>H44,G44-H44,0) -> 2000000 | H45: =IF(H44>G44,H44-G44,0) -> 0
A46: 2380 | B46: =IFERROR(VLOOKUP(A46,CUENTAS,2,0),"") -> ACREEDORES VARIOS | E46: =IFERROR(VLOOKUP(D46,CUENTAS,2,0),"") ->  | H46: =IFERROR(VLOOKUP(G46,CUENTAS,2,0),"") -> 
A47: DEBITO | B47: CREDITO | D47: DEBITO | E47: CREDITO | G47: DEBITO | H47: CREDITO
A48: =SUMIF('LIBRO DIARIO'!$D$3:$D$33,A46,'LIBRO DIARIO'!$E$3:$E$33) -> 0 | B48: =SUMIF('LIBRO DIARIO'!$D$3:$D$33,A46,'LIBRO DIARIO'!$F$3:$F$33) -> 2000000 | D48: =SUMIF('LIBRO DIARIO'!$D$3:$D$33,D46,'LIBRO DIARIO'!$E$3:$E$33) -> 0 | E48: =SUMIF('LIBRO DIARIO'!$D$3:$D$33,D46,'LIBRO DIARIO'!$F$3:$F$33) -> 0 | G48: =SUMIF('LIBRO DIARIO'!$D$3:$D$33,G46,'LIBRO DIARIO'!$E$3:$E$33) -> 0 | H48: =SUMIF('LIBRO DIARIO'!$D$3:$D$33,G46,'LIBRO DIARIO'!$F$3:$F$33) -> 0
A55: =SUM(A48:A54) -> 0 | B55: =SUM(B48:B54) -> 2000000 | D55: =SUM(D48:D54) -> 0 | E55: =SUM(E48:E54) -> 0 | G55: =SUM(G48:G54) -> 0 | H55: =SUM(H48:H54) -> 0
A56: =IF(A55>B55,A55-B55,0) -> 0 | B56: =IF(B55>A55,B55-A55,0) -> 2000000 | D56: =IF(D55>E55,D55-E55,0) -> 0 | E56: =IF(E55>D55,E55-D55,0) -> 0 | G56: =IF(G55>H55,G55-H55,0) -> 0 | H56: =IF(H55>G55,H55-G55,0) -> 0
B57: =IFERROR(VLOOKUP(A57,CUENTAS,2,0),"") ->  | E57: =IFERROR(VLOOKUP(D57,CUENTAS,2,0),"") ->  | H57: =IFERROR(VLOOKUP(G57,CUENTAS,2,0),"") -> 
A58: DEBITO | B58: CREDITO | D58: DEBITO | E58: CREDITO | G58: DEBITO | H58: CREDITO
A59: =SUMIF('LIBRO DIARIO'!$D$3:$D$33,A57,'LIBRO DIARIO'!$E$3:$E$33) -> 0 | B59: =SUMIF('LIBRO DIARIO'!$D$3:$D$33,A57,'LIBRO DIARIO'!$F$3:$F$33) -> 0 | D59: =SUMIF('LIBRO DIARIO'!$D$3:$D$33,D57,'LIBRO DIARIO'!$E$3:$E$33) -> 0 | E59: =SUMIF('LIBRO DIARIO'!$D$3:$D$33,D57,'LIBRO DIARIO'!$F$3:$F$33) -> 0 | G59: =SUMIF('LIBRO DIARIO'!$D$3:$D$33,G57,'LIBRO DIARIO'!$E$3:$E$33) -> 0 | H59: =SUMIF('LIBRO DIARIO'!$D$3:$D$33,G57,'LIBRO DIARIO'!$F$3:$F$33) -> 0
A66: =SUM(A59:A65) -> 0 | B66: =SUM(B59:B65) -> 0 | D66: =SUM(D59:D65) -> 0 | E66: =SUM(E59:E65) -> 0 | G66: =SUM(G59:G65) -> 0 | H66: =SUM(H59:H65) -> 0
A67: =IF(A66>B66,A66-B66,0) -> 0 | B67: =IF(B66>A66,B66-A66,0) -> 0 | D67: =IF(D66>E66,D66-E66,0) -> 0 | E67: =IF(E66>D66,E66-D66,0) -> 0 | G67: =IF(G66>H66,G66-H66,0) -> 0 | H67: =IF(H66>G66,H66-G66,0) -> 0
B68: =IFERROR(VLOOKUP(A68,CUENTAS,2,0),"") ->  | E68: =IFERROR(VLOOKUP(D68,CUENTAS,2,0),"") ->  | H68: =IFERROR(VLOOKUP(G68,CUENTAS,2,0),"") -> 
A69: DEBITO | B69: CREDITO | D69: DEBITO | E69: CREDITO | G69: DEBITO | H69: CREDITO
A70: =SUMIF('LIBRO DIARIO'!$D$3:$D$33,A68,'LIBRO DIARIO'!$E$3:$E$33) -> 0 | B70: =SUMIF('LIBRO DIARIO'!$D$3:$D$33,A68,'LIBRO DIARIO'!$F$3:$F$33) -> 0 | D70: =SUMIF('LIBRO DIARIO'!$D$3:$D$33,D68,'LIBRO DIARIO'!$E$3:$E$33) -> 0 | E70: =SUMIF('LIBRO DIARIO'!$D$3:$D$33,D68,'LIBRO DIARIO'!$F$3:$F$33) -> 0 | G70: =SUMIF('LIBRO DIARIO'!$D$3:$D$33,G68,'LIBRO DIARIO'!$E$3:$E$33) -> 0 | H70: =SUMIF('LIBRO DIARIO'!$D$3:$D$33,G68,'LIBRO DIARIO'!$F$3:$F$33) -> 0
A77: =SUM(A70:A76) -> 0 | B77: =SUM(B70:B76) -> 0 | D77: =SUM(D70:D76) -> 0 | E77: =SUM(E70:E76) -> 0 | G77: =SUM(G70:G76) -> 0 | H77: =SUM(H70:H76) -> 0
A78: =IF(A77>B77,A77-B77,0) -> 0 | B78: =IF(B77>A77,B77-A77,0) -> 0 | D78: =IF(D77>E77,D77-E77,0) -> 0 | E78: =IF(E77>D77,E77-D77,0) -> 0 | G78: =IF(G77>H77,G77-H77,0) -> 0 | H78: =IF(H77>G77,H77-G77,0) -> 0
B79: =IFERROR(VLOOKUP(A79,CUENTAS,2,0),"") ->  | E79: =IFERROR(VLOOKUP(D79,CUENTAS,2,0),"") ->  | H79: =IFERROR(VLOOKUP(G79,CUENTAS,2,0),"") -> 
A80: DEBITO | B80: CREDITO | D80: DEBITO | E80: CREDITO | G80: DEBITO | H80: CREDITO
A81: =SUMIF('LIBRO DIARIO'!$D$3:$D$33,A79,'LIBRO DIARIO'!$E$3:$E$33) -> 0 | B81: =SUMIF('LIBRO DIARIO'!$D$3:$D$33,A79,'LIBRO DIARIO'!$F$3:$F$33) -> 0 | D81: =SUMIF('LIBRO DIARIO'!$D$3:$D$33,D79,'LIBRO DIARIO'!$E$3:$E$33) -> 0 | E81: =SUMIF('LIBRO DIARIO'!$D$3:$D$33,D79,'LIBRO DIARIO'!$F$3:$F$33) -> 0 | G81: =SUMIF('LIBRO DIARIO'!$D$3:$D$33,G79,'LIBRO DIARIO'!$E$3:$E$33) -> 0 | H81: =SUMIF('LIBRO DIARIO'!$D$3:$D$33,G79,'LIBRO DIARIO'!$F$3:$F$33) -> 0
A88: =SUM(A81:A87) -> 0 | B88: =SUM(B81:B87) -> 0 | D88: =SUM(D81:D87) -> 0 | E88: =SUM(E81:E87) -> 0 | G88: =SUM(G81:G87) -> 0 | H88: =SUM(H81:H87) -> 0
A89: =IF(A88>B88,A88-B88,0) -> 0 | B89: =IF(B88>A88,B88-A88,0) -> 0 | D89: =IF(D88>E88,D88-E88,0) -> 0 | E89: =IF(E88>D88,E88-D88,0) -> 0 | G89: =IF(G88>H88,G88-H88,0) -> 0 | H89: =IF(H88>G88,H88-G88,0) -> 0
B90: =IFERROR(VLOOKUP(A90,CUENTAS,2,0),"") ->  | E90: =IFERROR(VLOOKUP(D90,CUENTAS,2,0),"") ->  | H90: =IFERROR(VLOOKUP(G90,CUENTAS,2,0),"") -> 
A91: DEBITO | B91: CREDITO | D91: DEBITO | E91: CREDITO | G91: DEBITO | H91: CREDITO
A92: =SUMIF('LIBRO DIARIO'!$D$3:$D$33,A90,'LIBRO DIARIO'!$E$3:$E$33) -> 0 | B92: =SUMIF('LIBRO DIARIO'!$D$3:$D$33,A90,'LIBRO DIARIO'!$F$3:$F$33) -> 0 | D92: =SUMIF('LIBRO DIARIO'!$D$3:$D$33,D90,'LIBRO DIARIO'!$E$3:$E$33) -> 0 | E92: =SUMIF('LIBRO DIARIO'!$D$3:$D$33,D90,'LIBRO DIARIO'!$F$3:$F$33) -> 0 | G92: =SUMIF('LIBRO DIARIO'!$D$3:$D$33,G90,'LIBRO DIARIO'!$E$3:$E$33) -> 0 | H92: =SUMIF('LIBRO DIARIO'!$D$3:$D$33,G90,'LIBRO DIARIO'!$F$3:$F$33) -> 0
A99: =SUM(A92:A98) -> 0 | B99: =SUM(B92:B98) -> 0 | D99: =SUM(D92:D98) -> 0 | E99: =SUM(E92:E98) -> 0 | G99: =SUM(G92:G98) -> 0 | H99: =SUM(H92:H98) -> 0
A100: =IF(A99>B99,A99-B99,0) -> 0 | B100: =IF(B99>A99,B99-A99,0) -> 0 | D100: =IF(D99>E99,D99-E99,0) -> 0 | E100: =IF(E99>D99,E99-D99,0) -> 0 | G100: =IF(G99>H99,G99-H99,0) -> 0 | H100: =IF(H99>G99,H99-G99,0) -> 0

Sheet BALANCE DE PRUEBA
A1: CODIGO | B1: CUENTA | C1: DEBITO | D1: CREDITO | E1: SALDO CUENTA
A2: 1105 | B2: =IFERROR(VLOOKUP(A2,CUENTAS,2,0),"") -> CAJA | C2: =IF($A$2='LIBRO MAYOR'!$A$1,'LIBRO MAYOR'!A12,IF('BALANCE DE PRUEBA'!$A$2='LIBRO MAYOR'!$D$1,'LIBRO MAYOR'!D12,IF('BALANCE DE PRUEBA'!$A$2='LIBRO MAYOR'!$G$1,'LIBRO MAYOR'!G12,IF('BALANCE DE PRUEBA'!$A$2='LIBRO MAYOR'!$A$13,'LIBRO MAYOR'!A23,IF('BALANCE DE PRUEBA'!$A$2='LIBRO MAYOR'!$D$13,'LIBRO MAYOR'!D23,IF('BALANCE DE PRUEBA'!$A$2='LIBRO MAYOR'!$G$13,'LIBRO MAYOR'!G23,IF('BALANCE DE PRUEBA'!$A$2='LIBRO MAYOR'!$A$24,'LIBRO MAYOR'!A34,IF('BALANCE DE PRUEBA'!$A$2='LIBRO MAYOR'!$D$24,'LIBRO MAYOR'!D34,IF('BALANCE DE PRUEBA'!$A$2='LIBRO MAYOR'!$G$24,'LIBRO MAYOR'!G34,IF('BALANCE DE PRUEBA'!$A$2='LIBRO MAYOR'!$A$35,'LIBRO MAYOR'!A45,IF('BALANCE DE PRUEBA'!$A$2='LIBRO MAYOR'!$D$35,'LIBRO MAYOR'!D45,IF('BALANCE DE PRUEBA'!$A$2='LIBRO MAYOR'!$G$35,'LIBRO MAYOR'!G45,IF('BALANCE DE PRUEBA'!$A$2='LIBRO MAYOR'!$A$46,'LIBRO MAYOR'!A56,IF('BALANCE DE PRUEBA'!$A$2='LIBRO MAYOR'!$D$46,'LIBRO MAYOR'!D56,IF('BALANCE DE PRUEBA'!$A$2='LIBRO MAYOR'!$G$46,'LIBRO MAYOR'!G56,IF('BALANCE DE PRUEBA'!$A$2='LIBRO MAYOR'!$A$57,'LIBRO MAYOR'!A67,IF('BALANCE DE PRUEBA'!$A$2='LIBRO MAYOR'!$D$57,'LIBRO MAYOR'!D67,IF('BALANCE DE PRUEBA'!$A$2='LIBRO MAYOR'!$G$57,'LIBRO MAYOR'!G67,IF($A$2='LIBRO MAYOR'!$A$68,'LIBRO MAYOR'!A78,IF('BALANCE DE PRUEBA'!$A$2='LIBRO MAYOR'!$D$68,'LIBRO MAYOR'!D78,IF('BALANCE DE PRUEBA'!A2='LIBRO MAYOR'!$G$68,'LIBRO MAYOR'!$G$78,IF('BALANCE DE PRUEBA'!A2='LIBRO MAYOR'!$A$79,'LIBRO MAYOR'!$A$89,IF('BALANCE DE PRUEBA'!$A$2='LIBRO MAYOR'!$D$79,'LIBRO MAYOR'!D89,IF('BALANCE DE PRUEBA'!$A$2='LIBRO MAYOR'!$G$79,'LIBRO MAYOR'!G89,IF('BALANCE DE PRUEBA'!$A$2='LIBRO MAYOR'!$A$90,'LIBRO MAYOR'!A100,IF('BALANCE DE PRUEBA'!$A$2='LIBRO MAYOR'!$D$90,'LIBRO MAYOR'!D100,IF('BALANCE DE PRUEBA'!$A$2='LIBRO MAYOR'!$G$90,'LIBRO MAYOR'!G100,0))))))))))))))))))))))))))) -> 19130500 | D2: =IF(A2='LIBRO MAYOR'!$A$1,'LIBRO MAYOR'!$B$12,IF('BALANCE DE PRUEBA'!A2='LIBRO MAYOR'!$D$1,'LIBRO MAYOR'!$E$12,IF('BALANCE DE PRUEBA'!A2='LIBRO MAYOR'!$G$1,'LIBRO MAYOR'!$H$12,IF('BALANCE DE PRUEBA'!A2='LIBRO MAYOR'!$A$13,'LIBRO MAYOR'!$B$23,IF('BALANCE DE PRUEBA'!A2='LIBRO MAYOR'!$D$13,'LIBRO MAYOR'!$E$23,IF('BALANCE DE PRUEBA'!A2='LIBRO MAYOR'!$G$13,'LIBRO MAYOR'!$H$23,IF('BALANCE DE PRUEBA'!A2='LIBRO MAYOR'!$A$24,'LIBRO MAYOR'!$B$34,IF('BALANCE DE PRUEBA'!A2='LIBRO MAYOR'!$D$24,'LIBRO MAYOR'!$E$34,IF('BALANCE DE PRUEBA'!A2='LIBRO MAYOR'!$G$24,'LIBRO MAYOR'!$H$34,IF('BALANCE DE PRUEBA'!A2='LIBRO MAYOR'!$A$35,'LIBRO MAYOR'!$B$45,IF('BALANCE DE PRUEBA'!A2='LIBRO MAYOR'!$D$35,'LIBRO MAYOR'!$E$45,IF('BALANCE DE PRUEBA'!A2='LIBRO MAYOR'!$G$35,'LIBRO MAYOR'!$H$45,IF('BALANCE DE PRUEBA'!A2='LIBRO MAYOR'!$A$46,'LIBRO MAYOR'!$B$56,IF('BALANCE DE PRUEBA'!A2='LIBRO MAYOR'!$D$46,'LIBRO MAYOR'!$E$56,IF('BALANCE DE PRUEBA'!A2='LIBRO MAYOR'!$G$46,'LIBRO MAYOR'!$H$56,IF('BALANCE DE PRUEBA'!A2='LIBRO MAYOR'!$A$57,'LIBRO MAYOR'!$B$67,IF('BALANCE DE PRUEBA'!A2='LIBRO MAYOR'!$D$57,'LIBRO MAYOR'!$E$67,IF('BALANCE DE PRUEBA'!A2='LIBRO MAYOR'!$G$57,'LIBRO MAYOR'!$H$67,IF(A2='LIBRO MAYOR'!$A$68,'LIBRO MAYOR'!$B$78,IF('BALANCE DE PRUEBA'!A2='LIBRO MAYOR'!$D$68,'LIBRO MAYOR'!$E$78,IF('BALANCE DE PRUEBA'!A2='LIBRO MAYOR'!$G$68,'LIBRO MAYOR'!$H$78,IF('BALANCE DE PRUEBA'!A2='LIBRO MAYOR'!$A$79,'LIBRO MAYOR'!$B$89,IF('BALANCE DE PRUEBA'!A2='LIBRO MAYOR'!$D$79,'LIBRO MAYOR'!$E$89,IF('BALANCE DE PRUEBA'!A2='LIBRO MAYOR'!$G$79,'LIBRO MAYOR'!$H$89,IF('BALANCE DE PRUEBA'!A2='LIBRO MAYOR'!$A$90,'LIBRO MAYOR'!$B$100,IF('BALANCE DE PRUEBA'!A2='LIBRO MAYOR'!$D$90,'LIBRO MAYOR'!$E$100,IF('BALANCE DE PRUEBA'!A2='LIBRO MAYOR'!$G$90,'LIBRO MAYOR'!$H$100,0))))))))))))))))))))))))))) -> 0 | E2: =SUM(C2+D2) -> 19130500
A3: 1435 | B3: MERCANCIAS NO FABRICADAS | C3: =IF(A3='LIBRO MAYOR'!$A$1,'LIBRO MAYOR'!$A$12,IF('BALANCE DE PRUEBA'!A3='LIBRO MAYOR'!$D$1,'LIBRO MAYOR'!$D$12,IF('BALANCE DE PRUEBA'!A3='LIBRO MAYOR'!$G$1,'LIBRO MAYOR'!$G$12,IF('BALANCE DE PRUEBA'!A3='LIBRO MAYOR'!$A$13,'LIBRO MAYOR'!$A$23,IF('BALANCE DE PRUEBA'!A3='LIBRO MAYOR'!$D$13,'LIBRO MAYOR'!$D$23,IF('BALANCE DE PRUEBA'!A3='LIBRO MAYOR'!$G$13,'LIBRO MAYOR'!$G$23,IF('BALANCE DE PRUEBA'!A3='LIBRO MAYOR'!$A$24,'LIBRO MAYOR'!$A$34,IF('BALANCE DE PRUEBA'!A3='LIBRO MAYOR'!$D$24,'LIBRO MAYOR'!$D$34,IF('BALANCE DE PRUEBA'!A3='LIBRO MAYOR'!$G$24,'LIBRO MAYOR'!$G$34,IF('BALANCE DE PRUEBA'!A3='LIBRO MAYOR'!$A$35,'LIBRO MAYOR'!$A$45,IF('BALANCE DE PRUEBA'!A3='LIBRO MAYOR'!$D$35,'LIBRO MAYOR'!$D$45,IF('BALANCE DE PRUEBA'!A3='LIBRO MAYOR'!$G$35,'LIBRO MAYOR'!$G$45,IF('BALANCE DE PRUEBA'!A3='LIBRO MAYOR'!$A$46,'LIBRO MAYOR'!$A$56,IF('BALANCE DE PRUEBA'!A3='LIBRO MAYOR'!$D$46,'LIBRO MAYOR'!$D$56,IF('BALANCE DE PRUEBA'!A3='LIBRO MAYOR'!$G$46,'LIBRO MAYOR'!$G$56,IF('BALANCE DE PRUEBA'!A3='LIBRO MAYOR'!$A$57,'LIBRO MAYOR'!$A$67,IF('BALANCE DE PRUEBA'!A3='LIBRO MAYOR'!$D$57,'LIBRO MAYOR'!$D$67,IF('BALANCE DE PRUEBA'!A3='LIBRO MAYOR'!$G$57,'LIBRO MAYOR'!$G$67,IF(A3='LIBRO MAYOR'!$A$68,'LIBRO MAYOR'!$A$78,IF('BALANCE DE PRUEBA'!A3='LIBRO MAYOR'!$D$68,'LIBRO MAYOR'!$D$78,IF('BALANCE DE PRUEBA'!A3='LIBRO MAYOR'!$G$68,'LIBRO MAYOR'!$G$78,IF('BALANCE DE PRUEBA'!A3='LIBRO MAYOR'!$A$79,'LIBRO MAYOR'!$A$89,IF('BALANCE DE PRUEBA'!A3='LIBRO MAYOR'!$D$79,'LIBRO MAYOR'!$D$89,IF('BALANCE DE PRUEBA'!A3='LIBRO MAYOR'!$G$79,'LIBRO MAYOR'!$G$89,IF('BALANCE DE PRUEBA'!A3='LIBRO MAYOR'!$A$90,'LIBRO MAYOR'!$A$100,IF('BALANCE DE PRUEBA'!A3='LIBRO MAYOR'!$D$90,'LIBRO MAYOR'!$D$100,IF('BALANCE DE PRUEBA'!A3='LIBRO MAYOR'!$G$90,'LIBRO MAYOR'!$G$100,0))))))))))))))))))))))))))) -> 600000 | D3: =IF(A3='LIBRO MAYOR'!$A$1,'LIBRO MAYOR'!$B$12,IF('BALANCE DE PRUEBA'!A3='LIBRO MAYOR'!$D$1,'LIBRO MAYOR'!$E$12,IF('BALANCE DE PRUEBA'!A3='LIBRO MAYOR'!$G$1,'LIBRO MAYOR'!$H$12,IF('BALANCE DE PRUEBA'!A3='LIBRO MAYOR'!$A$13,'LIBRO MAYOR'!$B$23,IF('BALANCE DE PRUEBA'!A3='LIBRO MAYOR'!$D$13,'LIBRO MAYOR'!$E$23,IF('BALANCE DE PRUEBA'!A3='LIBRO MAYOR'!$G$13,'LIBRO MAYOR'!$H$23,IF('BALANCE DE PRUEBA'!A3='LIBRO MAYOR'!$A$24,'LIBRO MAYOR'!$B$34,IF('BALANCE DE PRUEBA'!A3='LIBRO MAYOR'!$D$24,'LIBRO MAYOR'!$E$34,IF('BALANCE DE PRUEBA'!A3='LIBRO MAYOR'!$G$24,'LIBRO MAYOR'!$H$34,IF('BALANCE DE PRUEBA'!A3='LIBRO MAYOR'!$A$35,'LIBRO MAYOR'!$B$45,IF('BALANCE DE PRUEBA'!A3='LIBRO MAYOR'!$D$35,'LIBRO MAYOR'!$E$45,IF('BALANCE DE PRUEBA'!A3='LIBRO MAYOR'!$G$35,'LIBRO MAYOR'!$H$45,IF('BALANCE DE PRUEBA'!A3='LIBRO MAYOR'!$A$46,'LIBRO MAYOR'!$B$56,IF('BALANCE DE PRUEBA'!A3='LIBRO MAYOR'!$D$46,'LIBRO MAYOR'!$E$56,IF('BALANCE DE PRUEBA'!A3='LIBRO MAYOR'!$G$46,'LIBRO MAYOR'!$H$56,IF('BALANCE DE PRUEBA'!A3='LIBRO MAYOR'!$A$57,'LIBRO MAYOR'!$B$67,IF('BALANCE DE PRUEBA'!A3='LIBRO MAYOR'!$D$57,'LIBRO MAYOR'!$E$67,IF('BALANCE DE PRUEBA'!A3='LIBRO MAYOR'!$G$57,'LIBRO MAYOR'!$H$67,IF(A3='LIBRO MAYOR'!$A$68,'LIBRO MAYOR'!$B$78,IF('BALANCE DE PRUEBA'!A3='LIBRO MAYOR'!$D$68,'LIBRO MAYOR'!$E$78,IF('BALANCE DE PRUEBA'!A3='LIBRO MAYOR'!$G$68,'LIBRO MAYOR'!$H$78,IF('BALANCE DE PRUEBA'!A3='LIBRO MAYOR'!$A$79,'LIBRO MAYOR'!$B$89,IF('BALANCE DE PRUEBA'!A3='LIBRO MAYOR'!$D$79,'LIBRO MAYOR'!$E$89,IF('BALANCE DE PRUEBA'!A3='LIBRO MAYOR'!$G$79,'LIBRO MAYOR'!$H$89,IF('BALANCE DE PRUEBA'!A3='LIBRO MAYOR'!$A$90,'LIBRO MAYOR'!$B$100,IF('BALANCE DE PRUEBA'!A3='LIBRO MAYOR'!$D$90,'LIBRO MAYOR'!$E$100,IF('BALANCE DE PRUEBA'!A3='LIBRO MAYOR'!$G$90,'LIBRO MAYOR'!$H$100,0))))))))))))))))))))))))))) -> 0 | E3: =SUM(C3+D3) -> 600000
A4: 1516 | B4: EDIFICIO | C4: =IF(A4='LIBRO MAYOR'!$A$1,'LIBRO MAYOR'!$A$12,IF('BALANCE DE PRUEBA'!A4='LIBRO MAYOR'!$D$1,'LIBRO MAYOR'!$D$12,IF('BALANCE DE PRUEBA'!A4='LIBRO MAYOR'!$G$1,'LIBRO MAYOR'!$G$12,IF('BALANCE DE PRUEBA'!A4='LIBRO MAYOR'!$A$13,'LIBRO MAYOR'!$A$23,IF('BALANCE DE PRUEBA'!A4='LIBRO MAYOR'!$D$13,'LIBRO MAYOR'!$D$23,IF('BALANCE DE PRUEBA'!A4='LIBRO MAYOR'!$G$13,'LIBRO MAYOR'!$G$23,IF('BALANCE DE PRUEBA'!A4='LIBRO MAYOR'!$A$24,'LIBRO MAYOR'!$A$34,IF('BALANCE DE PRUEBA'!A4='LIBRO MAYOR'!$D$24,'LIBRO MAYOR'!$D$34,IF('BALANCE DE PRUEBA'!A4='LIBRO MAYOR'!$G$24,'LIBRO MAYOR'!$G$34,IF('BALANCE DE PRUEBA'!A4='LIBRO MAYOR'!$A$35,'LIBRO MAYOR'!$A$45,IF('BALANCE DE PRUEBA'!A4='LIBRO MAYOR'!$D$35,'LIBRO MAYOR'!$D$45,IF('BALANCE DE PRUEBA'!A4='LIBRO MAYOR'!$G$35,'LIBRO MAYOR'!$G$45,IF('BALANCE DE PRUEBA'!A4='LIBRO MAYOR'!$A$46,'LIBRO MAYOR'!$A$56,IF('BALANCE DE PRUEBA'!A4='LIBRO MAYOR'!$D$46,'LIBRO MAYOR'!$D$56,IF('BALANCE DE PRUEBA'!A4='LIBRO MAYOR'!$G$46,'LIBRO MAYOR'!$G$56,IF('BALANCE DE PRUEBA'!A4='LIBRO MAYOR'!$A$57,'LIBRO MAYOR'!$A$67,IF('BALANCE DE PRUEBA'!A4='LIBRO MAYOR'!$D$57,'LIBRO MAYOR'!$D$67,IF('BALANCE DE PRUEBA'!A4='LIBRO MAYOR'!$G$57,'LIBRO MAYOR'!$G$67,IF(A4='LIBRO MAYOR'!$A$68,'LIBRO MAYOR'!$A$78,IF('BALANCE DE PRUEBA'!A4='LIBRO MAYOR'!$D$68,'LIBRO MAYOR'!$D$78,IF('BALANCE DE PRUEBA'!A4='LIBRO MAYOR'!$G$68,'LIBRO MAYOR'!$G$78,IF('BALANCE DE PRUEBA'!A4='LIBRO MAYOR'!$A$79,'LIBRO MAYOR'!$A$89,IF('BALANCE DE PRUEBA'!A4='LIBRO MAYOR'!$D$79,'LIBRO MAYOR'!$D$89,IF('BALANCE DE PRUEBA'!A4='LIBRO MAYOR'!$G$79,'LIBRO MAYOR'!$G$89,IF('BALANCE DE PRUEBA'!A4='LIBRO MAYOR'!$A$90,'LIBRO MAYOR'!$A$100,IF('BALANCE DE PRUEBA'!A4='LIBRO MAYOR'!$D$90,'LIBRO MAYOR'!$D$100,IF('BALANCE DE PRUEBA'!A4='LIBRO MAYOR'!$G$90,'LIBRO MAYOR'!$G$100,0))))))))))))))))))))))))))) -> 90000000 | D4: =IF(A4='LIBRO MAYOR'!$A$1,'LIBRO MAYOR'!$B$12,IF('BALANCE DE PRUEBA'!A4='LIBRO MAYOR'!$D$1,'LIBRO MAYOR'!$E$12,IF('BALANCE DE PRUEBA'!A4='LIBRO MAYOR'!$G$1,'LIBRO MAYOR'!$H$12,IF('BALANCE DE PRUEBA'!A4='LIBRO MAYOR'!$A$13,'LIBRO MAYOR'!$B$23,IF('BALANCE DE PRUEBA'!A4='LIBRO MAYOR'!$D$13,'LIBRO MAYOR'!$E$23,IF('BALANCE DE PRUEBA'!A4='LIBRO MAYOR'!$G$13,'LIBRO MAYOR'!$H$23,IF('BALANCE DE PRUEBA'!A4='LIBRO MAYOR'!$A$24,'LIBRO MAYOR'!$B$34,IF('BALANCE DE PRUEBA'!A4='LIBRO MAYOR'!$D$24,'LIBRO MAYOR'!$E$34,IF('BALANCE DE PRUEBA'!A4='LIBRO MAYOR'!$G$24,'LIBRO MAYOR'!$H$34,IF('BALANCE DE PRUEBA'!A4='LIBRO MAYOR'!$A$35,'LIBRO MAYOR'!$B$45,IF('BALANCE DE PRUEBA'!A4='LIBRO MAYOR'!$D$35,'LIBRO MAYOR'!$E$45,IF('BALANCE DE PRUEBA'!A4='LIBRO MAYOR'!$G$35,'LIBRO MAYOR'!$H$45,IF('BALANCE DE PRUEBA'!A4='LIBRO MAYOR'!$A$46,'LIBRO MAYOR'!$B$56,IF('BALANCE DE PRUEBA'!A4='LIBRO MAYOR'!$D$46,'LIBRO MAYOR'!$E$56,IF('BALANCE DE PRUEBA'!A4='LIBRO MAYOR'!$G$46,'LIBRO MAYOR'!$H$56,IF('BALANCE DE PRUEBA'!A4='LIBRO MAYOR'!$A$57,'LIBRO MAYOR'!$B$67,IF('BALANCE DE PRUEBA'!A4='LIBRO MAYOR'!$D$57,'LIBRO MAYOR'!$E$67,IF('BALANCE DE PRUEBA'!A4='LIBRO MAYOR'!$G$57,'LIBRO MAYOR'!$H$67,IF(A4='LIBRO MAYOR'!$A$68,'LIBRO MAYOR'!$B$78,IF('BALANCE DE PRUEBA'!A4='LIBRO MAYOR'!$D$68,'LIBRO MAYOR'!$E$78,IF('BALANCE DE PRUEBA'!A4='LIBRO MAYOR'!$G$68,'LIBRO MAYOR'!$H$78,IF('BALANCE DE PRUEBA'!A4='LIBRO MAYOR'!$A$79,'LIBRO MAYOR'!$B$89,IF('BALANCE DE PRUEBA'!A4='LIBRO MAYOR'!$D$79,'LIBRO MAYOR'!$E$89,IF('BALANCE DE PRUEBA'!A4='LIBRO MAYOR'!$G$79,'LIBRO MAYOR'!$H$89,IF('BALANCE DE PRUEBA'!A4='LIBRO MAYOR'!$A$90,'LIBRO MAYOR'!$B$100,IF('BALANCE DE PRUEBA'!A4='LIBRO MAYOR'!$D$90,'LIBRO MAYOR'!$E$100,IF('BALANCE DE PRUEBA'!A4='LIBRO MAYOR'!$G$90,'LIBRO MAYOR'!$H$100,0))))))))))))))))))))))))))) -> 0 | E4: 90000000
A5: 3115 | B5: APORTES SOCIALES | C5: =IF(A5='LIBRO MAYOR'!$A$1,'LIBRO MAYOR'!$A$12,IF('BALANCE DE PRUEBA'!A5='LIBRO MAYOR'!$D$1,'LIBRO MAYOR'!$D$12,IF('BALANCE DE PRUEBA'!A5='LIBRO MAYOR'!$G$1,'LIBRO MAYOR'!$G$12,IF('BALANCE DE PRUEBA'!A5='LIBRO MAYOR'!$A$13,'LIBRO MAYOR'!$A$23,IF('BALANCE DE PRUEBA'!A5='LIBRO MAYOR'!$D$13,'LIBRO MAYOR'!$D$23,IF('BALANCE DE PRUEBA'!A5='LIBRO MAYOR'!$G$13,'LIBRO MAYOR'!$G$23,IF('BALANCE DE PRUEBA'!A5='LIBRO MAYOR'!$A$24,'LIBRO MAYOR'!$A$34,IF('BALANCE DE PRUEBA'!A5='LIBRO MAYOR'!$D$24,'LIBRO MAYOR'!$D$34,IF('BALANCE DE PRUEBA'!A5='LIBRO MAYOR'!$G$24,'LIBRO MAYOR'!$G$34,IF('BALANCE DE PRUEBA'!A5='LIBRO MAYOR'!$A$35,'LIBRO MAYOR'!$A$45,IF('BALANCE DE PRUEBA'!A5='LIBRO MAYOR'!$D$35,'LIBRO MAYOR'!$D$45,IF('BALANCE DE PRUEBA'!A5='LIBRO MAYOR'!$G$35,'LIBRO MAYOR'!$G$45,IF('BALANCE DE PRUEBA'!A5='LIBRO MAYOR'!$A$46,'LIBRO MAYOR'!$A$56,IF('BALANCE DE PRUEBA'!A5='LIBRO MAYOR'!$D$46,'LIBRO MAYOR'!$D$56,IF('BALANCE DE PRUEBA'!A5='LIBRO MAYOR'!$G$46,'LIBRO MAYOR'!$G$56,IF('BALANCE DE PRUEBA'!A5='LIBRO MAYOR'!$A$57,'LIBRO MAYOR'!$A$67,IF('BALANCE DE PRUEBA'!A5='LIBRO MAYOR'!$D$57,'LIBRO MAYOR'!$D$67,IF('BALANCE DE PRUEBA'!A5='LIBRO MAYOR'!$G$57,'LIBRO MAYOR'!$G$67,IF(A5='LIBRO MAYOR'!$A$68,'LIBRO MAYOR'!$A$78,IF('BALANCE DE PRUEBA'!A5='LIBRO MAYOR'!$D$68,'LIBRO MAYOR'!$D$78,IF('BALANCE DE PRUEBA'!A5='LIBRO MAYOR'!$G$68,'LIBRO MAYOR'!$G$78,IF('BALANCE DE PRUEBA'!A5='LIBRO MAYOR'!$A$79,'LIBRO MAYOR'!$A$89,IF('BALANCE DE PRUEBA'!A5='LIBRO MAYOR'!$D$79,'LIBRO MAYOR'!$D$89,IF('BALANCE DE PRUEBA'!A5='LIBRO MAYOR'!$G$79,'LIBRO MAYOR'!$G$89,IF('BALANCE DE PRUEBA'!A5='LIBRO MAYOR'!$A$90,'LIBRO MAYOR'!$A$100,IF('BALANCE DE PRUEBA'!A5='LIBRO MAYOR'!$D$90,'LIBRO MAYOR'!$D$100,IF('BALANCE DE PRUEBA'!A5='LIBRO MAYOR'!$G$90,'LIBRO MAYOR'!$G$100,0))))))))))))))))))))))))))) -> 0 | D5: =IF(A5='LIBRO MAYOR'!$A$1,'LIBRO MAYOR'!$B$12,IF('BALANCE DE PRUEBA'!A5='LIBRO MAYOR'!$D$1,'LIBRO MAYOR'!$E$12,IF('BALANCE DE PRUEBA'!A5='LIBRO MAYOR'!$G$1,'LIBRO MAYOR'!$H$12,IF('BALANCE DE PRUEBA'!A5='LIBRO MAYOR'!$A$13,'LIBRO MAYOR'!$B$23,IF('BALANCE DE PRUEBA'!A5='LIBRO MAYOR'!$D$13,'LIBRO MAYOR'!$E$23,IF('BALANCE DE PRUEBA'!A5='LIBRO MAYOR'!$G$13,'LIBRO MAYOR'!$H$23,IF('BALANCE DE PRUEBA'!A5='LIBRO MAYOR'!$A$24,'LIBRO MAYOR'!$B$34,IF('BALANCE DE PRUEBA'!A5='LIBRO MAYOR'!$D$24,'LIBRO MAYOR'!$E$34,IF('BALANCE DE PRUEBA'!A5='LIBRO MAYOR'!$G$24,'LIBRO MAYOR'!$H$34,IF('BALANCE DE PRUEBA'!A5='LIBRO MAYOR'!$A$35,'LIBRO MAYOR'!$B$45,IF('BALANCE DE PRUEBA'!A5='LIBRO MAYOR'!$D$35,'LIBRO MAYOR'!$E$45,IF('BALANCE DE PRUEBA'!A5='LIBRO MAYOR'!$G$35,'LIBRO MAYOR'!$H$45,IF('BALANCE DE PRUEBA'!A5='LIBRO MAYOR'!$A$46,'LIBRO MAYOR'!$B$56,IF('BALANCE DE PRUEBA'!A5='LIBRO MAYOR'!$D$46,'LIBRO MAYOR'!$E$56,IF('BALANCE DE PRUEBA'!A5='LIBRO MAYOR'!$G$46,'LIBRO MAYOR'!$H$56,IF('BALANCE DE PRUEBA'!A5='LIBRO MAYOR'!$A$57,'LIBRO MAYOR'!$B$67,IF('BALANCE DE PRUEBA'!A5='LIBRO MAYOR'!$D$57,'LIBRO MAYOR'!$E$67,IF('BALANCE DE PRUEBA'!A5='LIBRO MAYOR'!$G$57,'LIBRO MAYOR'!$H$67,IF(A5='LIBRO MAYOR'!$A$68,'LIBRO MAYOR'!$B$78,IF('BALANCE DE PRUEBA'!A5='LIBRO MAYOR'!$D$68,'LIBRO MAYOR'!$E$78,IF('BALANCE DE PRUEBA'!A5='LIBRO MAYOR'!$G$68,'LIBRO MAYOR'!$H$78,IF('BALANCE DE PRUEBA'!A5='LIBRO MAYOR'!$A$79,'LIBRO MAYOR'!$B$89,IF('BALANCE DE PRUEBA'!A5='LIBRO MAYOR'!$D$79,'LIBRO MAYOR'!$E$89,IF('BALANCE DE PRUEBA'!A5='LIBRO MAYOR'!$G$79,'LIBRO MAYOR'!$H$89,IF('BALANCE DE PRUEBA'!A5='LIBRO MAYOR'!$A$90,'LIBRO MAYOR'!$B$100,IF('BALANCE DE PRUEBA'!A5='LIBRO MAYOR'!$D$90,'LIBRO MAYOR'!$E$100,IF('BALANCE DE PRUEBA'!A5='LIBRO MAYOR'!$G$90,'LIBRO MAYOR'!$H$100,0))))))))))))))))))))))))))) -> 113300000 | E5: 113300000
A6: 4135 | B6: COMERCIO POR MAYOR POR MENOR | C6: =IF(A6='LIBRO MAYOR'!$A$1,'LIBRO MAYOR'!$A$12,IF('BALANCE DE PRUEBA'!A6='LIBRO MAYOR'!$D$1,'LIBRO MAYOR'!$D$12,IF('BALANCE DE PRUEBA'!A6='LIBRO MAYOR'!$G$1,'LIBRO MAYOR'!$G$12,IF('BALANCE DE PRUEBA'!A6='LIBRO MAYOR'!$A$13,'LIBRO MAYOR'!$A$23,IF('BALANCE DE PRUEBA'!A6='LIBRO MAYOR'!$D$13,'LIBRO MAYOR'!$D$23,IF('BALANCE DE PRUEBA'!A6='LIBRO MAYOR'!$G$13,'LIBRO MAYOR'!$G$23,IF('BALANCE DE PRUEBA'!A6='LIBRO MAYOR'!$A$24,'LIBRO MAYOR'!$A$34,IF('BALANCE DE PRUEBA'!A6='LIBRO MAYOR'!$D$24,'LIBRO MAYOR'!$D$34,IF('BALANCE DE PRUEBA'!A6='LIBRO MAYOR'!$G$24,'LIBRO MAYOR'!$G$34,IF('BALANCE DE PRUEBA'!A6='LIBRO MAYOR'!$A$35,'LIBRO MAYOR'!$A$45,IF('BALANCE DE PRUEBA'!A6='LIBRO MAYOR'!$D$35,'LIBRO MAYOR'!$D$45,IF('BALANCE DE PRUEBA'!A6='LIBRO MAYOR'!$G$35,'LIBRO MAYOR'!$G$45,IF('BALANCE DE PRUEBA'!A6='LIBRO MAYOR'!$A$46,'LIBRO MAYOR'!$A$56,IF('BALANCE DE PRUEBA'!A6='LIBRO MAYOR'!$D$46,'LIBRO MAYOR'!$D$56,IF('BALANCE DE PRUEBA'!A6='LIBRO MAYOR'!$G$46,'LIBRO MAYOR'!$G$56,IF('BALANCE DE PRUEBA'!A6='LIBRO MAYOR'!$A$57,'LIBRO MAYOR'!$A$67,IF('BALANCE DE PRUEBA'!A6='LIBRO MAYOR'!$D$57,'LIBRO MAYOR'!$D$67,IF('BALANCE DE PRUEBA'!A6='LIBRO MAYOR'!$G$57,'LIBRO MAYOR'!$G$67,IF(A6='LIBRO MAYOR'!$A$68,'LIBRO MAYOR'!$A$78,IF('BALANCE DE PRUEBA'!A6='LIBRO MAYOR'!$D$68,'LIBRO MAYOR'!$D$78,IF('BALANCE DE PRUEBA'!A6='LIBRO MAYOR'!$G$68,'LIBRO MAYOR'!$G$78,IF('BALANCE DE PRUEBA'!A6='LIBRO MAYOR'!$A$79,'LIBRO MAYOR'!$A$89,IF('BALANCE DE PRUEBA'!A6='LIBRO MAYOR'!$D$79,'LIBRO MAYOR'!$D$89,IF('BALANCE DE PRUEBA'!A6='LIBRO MAYOR'!$G$79,'LIBRO MAYOR'!$G$89,IF('BALANCE DE PRUEBA'!A6='LIBRO MAYOR'!$A$90,'LIBRO MAYOR'!$A$100,IF('BALANCE DE PRUEBA'!A6='LIBRO MAYOR'!$D$90,'LIBRO MAYOR'!$D$100,IF('BALANCE DE PRUEBA'!A6='LIBRO MAYOR'!$G$90,'LIBRO MAYOR'!$G$100,0))))))))))))))))))))))))))) -> 0 | D6: =IF(A6='LIBRO MAYOR'!$A$1,'LIBRO MAYOR'!$B$12,IF('BALANCE DE PRUEBA'!A6='LIBRO MAYOR'!$D$1,'LIBRO MAYOR'!$E$12,IF('BALANCE DE PRUEBA'!A6='LIBRO MAYOR'!$G$1,'LIBRO MAYOR'!$H$12,IF('BALANCE DE PRUEBA'!A6='LIBRO MAYOR'!$A$13,'LIBRO MAYOR'!$B$23,IF('BALANCE DE PRUEBA'!A6='LIBRO MAYOR'!$D$13,'LIBRO MAYOR'!$E$23,IF('BALANCE DE PRUEBA'!A6='LIBRO MAYOR'!$G$13,'LIBRO MAYOR'!$H$23,IF('BALANCE DE PRUEBA'!A6='LIBRO MAYOR'!$A$24,'LIBRO MAYOR'!$B$34,IF('BALANCE DE PRUEBA'!A6='LIBRO MAYOR'!$D$24,'LIBRO MAYOR'!$E$34,IF('BALANCE DE PRUEBA'!A6='LIBRO MAYOR'!$G$24,'LIBRO MAYOR'!$H$34,IF('BALANCE DE PRUEBA'!A6='LIBRO MAYOR'!$A$35,'LIBRO MAYOR'!$B$45,IF('BALANCE DE PRUEBA'!A6='LIBRO MAYOR'!$D$35,'LIBRO MAYOR'!$E$45,IF('BALANCE DE PRUEBA'!A6='LIBRO MAYOR'!$G$35,'LIBRO MAYOR'!$H$45,IF('BALANCE DE PRUEBA'!A6='LIBRO MAYOR'!$A$46,'LIBRO MAYOR'!$B$56,IF('BALANCE DE PRUEBA'!A6='LIBRO MAYOR'!$D$46,'LIBRO MAYOR'!$E$56,IF('BALANCE DE PRUEBA'!A6='LIBRO MAYOR'!$G$46,'LIBRO MAYOR'!$H$56,IF('BALANCE DE PRUEBA'!A6='LIBRO MAYOR'!$A$57,'LIBRO MAYOR'!$B$67,IF('BALANCE DE PRUEBA'!A6='LIBRO MAYOR'!$D$57,'LIBRO MAYOR'!$E$67,IF('BALANCE DE PRUEBA'!A6='LIBRO MAYOR'!$G$57,'LIBRO MAYOR'!$H$67,IF(A6='LIBRO MAYOR'!$A$68,'LIBRO MAYOR'!$B$78,IF('BALANCE DE PRUEBA'!A6='LIBRO MAYOR'!$D$68,'LIBRO MAYOR'!$E$78,IF('BALANCE DE PRUEBA'!A6='LIBRO MAYOR'!$G$68,'LIBRO MAYOR'!$H$78,IF('BALANCE DE PRUEBA'!A6='LIBRO MAYOR'!$A$79,'LIBRO MAYOR'!$B$89,IF('BALANCE DE PRUEBA'!A6='LIBRO MAYOR'!$D$79,'LIBRO MAYOR'!$E$89,IF('BALANCE DE PRUEBA'!A6='LIBRO MAYOR'!$G$79,'LIBRO MAYOR'!$H$89,IF('BALANCE DE PRUEBA'!A6='LIBRO MAYOR'!$A$90,'LIBRO MAYOR'!$B$100,IF('BALANCE DE PRUEBA'!A6='LIBRO MAYOR'!$D$90,'LIBRO MAYOR'!$E$100,IF('BALANCE DE PRUEBA'!A6='LIBRO MAYOR'!$G$90,'LIBRO MAYOR'!$H$100,0))))))))))))))))))))))))))) -> 975000 | E6: 975000
A7: 2408 | B7: IVA X PAGAR | C7: =IF(A7='LIBRO MAYOR'!$A$1,'LIBRO MAYOR'!$A$12,IF('BALANCE DE PRUEBA'!A7='LIBRO MAYOR'!$D$1,'LIBRO MAYOR'!$D$12,IF('BALANCE DE PRUEBA'!A7='LIBRO MAYOR'!$G$1,'LIBRO MAYOR'!$G$12,IF('BALANCE DE PRUEBA'!A7='LIBRO MAYOR'!$A$13,'LIBRO MAYOR'!$A$23,IF('BALANCE DE PRUEBA'!A7='LIBRO MAYOR'!$D$13,'LIBRO MAYOR'!$D$23,IF('BALANCE DE PRUEBA'!A7='LIBRO MAYOR'!$G$13,'LIBRO MAYOR'!$G$23,IF('BALANCE DE PRUEBA'!A7='LIBRO MAYOR'!$A$24,'LIBRO MAYOR'!$A$34,IF('BALANCE DE PRUEBA'!A7='LIBRO MAYOR'!$D$24,'LIBRO MAYOR'!$D$34,IF('BALANCE DE PRUEBA'!A7='LIBRO MAYOR'!$G$24,'LIBRO MAYOR'!$G$34,IF('BALANCE DE PRUEBA'!A7='LIBRO MAYOR'!$A$35,'LIBRO MAYOR'!$A$45,IF('BALANCE DE PRUEBA'!A7='LIBRO MAYOR'!$D$35,'LIBRO MAYOR'!$D$45,IF('BALANCE DE PRUEBA'!A7='LIBRO MAYOR'!$G$35,'LIBRO MAYOR'!$G$45,IF('BALANCE DE PRUEBA'!A7='LIBRO MAYOR'!$A$46,'LIBRO MAYOR'!$A$56,IF('BALANCE DE PRUEBA'!A7='LIBRO MAYOR'!$D$46,'LIBRO MAYOR'!$D$56,IF('BALANCE DE PRUEBA'!A7='LIBRO MAYOR'!$G$46,'LIBRO MAYOR'!$G$56,IF('BALANCE DE PRUEBA'!A7='LIBRO MAYOR'!$A$57,'LIBRO MAYOR'!$A$67,IF('BALANCE DE PRUEBA'!A7='LIBRO MAYOR'!$D$57,'LIBRO MAYOR'!$D$67,IF('BALANCE DE PRUEBA'!A7='LIBRO MAYOR'!$G$57,'LIBRO MAYOR'!$G$67,IF(A7='LIBRO MAYOR'!$A$68,'LIBRO MAYOR'!$A$78,IF('BALANCE DE PRUEBA'!A7='LIBRO MAYOR'!$D$68,'LIBRO MAYOR'!$D$78,IF('BALANCE DE PRUEBA'!A7='LIBRO MAYOR'!$G$68,'LIBRO MAYOR'!$G$78,IF('BALANCE DE PRUEBA'!A7='LIBRO MAYOR'!$A$79,'LIBRO MAYOR'!$A$89,IF('BALANCE DE PRUEBA'!A7='LIBRO MAYOR'!$D$79,'LIBRO MAYOR'!$D$89,IF('BALANCE DE PRUEBA'!A7='LIBRO MAYOR'!$G$79,'LIBRO MAYOR'!$G$89,IF('BALANCE DE PRUEBA'!A7='LIBRO MAYOR'!$A$90,'LIBRO MAYOR'!$A$100,IF('BALANCE DE PRUEBA'!A7='LIBRO MAYOR'!$D$90,'LIBRO MAYOR'!$D$100,IF('BALANCE DE PRUEBA'!A7='LIBRO MAYOR'!$G$90,'LIBRO MAYOR'!$G$100,0))))))))))))))))))))))))))) -> 0 | D7: =IF(A7='LIBRO MAYOR'!$A$1,'LIBRO MAYOR'!$B$12,IF('BALANCE DE PRUEBA'!A7='LIBRO MAYOR'!$D$1,'LIBRO MAYOR'!$E$12,IF('BALANCE DE PRUEBA'!A7='LIBRO MAYOR'!$G$1,'LIBRO MAYOR'!$H$12,IF('BALANCE DE PRUEBA'!A7='LIBRO MAYOR'!$A$13,'LIBRO MAYOR'!$B$23,IF('BALANCE DE PRUEBA'!A7='LIBRO MAYOR'!$D$13,'LIBRO MAYOR'!$E$23,IF('BALANCE DE PRUEBA'!A7='LIBRO MAYOR'!$G$13,'LIBRO MAYOR'!$H$23,IF('BALANCE DE PRUEBA'!A7='LIBRO MAYOR'!$A$24,'LIBRO MAYOR'!$B$34,IF('BALANCE DE PRUEBA'!A7='LIBRO MAYOR'!$D$24,'LIBRO MAYOR'!$E$34,IF('BALANCE DE PRUEBA'!A7='LIBRO MAYOR'!$G$24,'LIBRO MAYOR'!$H$34,IF('BALANCE DE PRUEBA'!A7='LIBRO MAYOR'!$A$35,'LIBRO MAYOR'!$B$45,IF('BALANCE DE PRUEBA'!A7='LIBRO MAYOR'!$D$35,'LIBRO MAYOR'!$E$45,IF('BALANCE DE PRUEBA'!A7='LIBRO MAYOR'!$G$35,'LIBRO MAYOR'!$H$45,IF('BALANCE DE PRUEBA'!A7='LIBRO MAYOR'!$A$46,'LIBRO MAYOR'!$B$56,IF('BALANCE DE PRUEBA'!A7='LIBRO MAYOR'!$D$46,'LIBRO MAYOR'!$E$56,IF('BALANCE DE PRUEBA'!A7='LIBRO MAYOR'!$G$46,'LIBRO MAYOR'!$H$56,IF('BALANCE DE PRUEBA'!A7='LIBRO MAYOR'!$A$57,'LIBRO MAYOR'!$B$67,IF('BALANCE DE PRUEBA'!A7='LIBRO MAYOR'!$D$57,'LIBRO MAYOR'!$E$67,IF('BALANCE DE PRUEBA'!A7='LIBRO MAYOR'!$G$57,'LIBRO MAYOR'!$H$67,IF(A7='LIBRO MAYOR'!$A$68,'LIBRO MAYOR'!$B$78,IF('BALANCE DE PRUEBA'!A7='LIBRO MAYOR'!$D$68,'LIBRO MAYOR'!$E$78,IF('BALANCE DE PRUEBA'!A7='LIBRO MAYOR'!$G$68,'LIBRO MAYOR'!$H$78,IF('BALANCE DE PRUEBA'!A7='LIBRO MAYOR'!$A$79,'LIBRO MAYOR'!$B$89,IF('BALANCE DE PRUEBA'!A7='LIBRO MAYOR'!$D$79,'LIBRO MAYOR'!$E$89,IF('BALANCE DE PRUEBA'!A7='LIBRO MAYOR'!$G$79,'LIBRO MAYOR'!$H$89,IF('BALANCE DE PRUEBA'!A7='LIBRO MAYOR'!$A$90,'LIBRO MAYOR'!$B$100,IF('BALANCE DE PRUEBA'!A7='LIBRO MAYOR'!$D$90,'LIBRO MAYOR'!$E$100,IF('BALANCE DE PRUEBA'!A7='LIBRO MAYOR'!$G$90,'LIBRO MAYOR'!$H$100,0))))))))))))))))))))))))))) -> 12000 | E7: 12000
A8: 1305 | B8: CUENTAS POR COBRAR CLIENTES | C8: =IF(A8='LIBRO MAYOR'!$A$1,'LIBRO MAYOR'!$A$12,IF('BALANCE DE PRUEBA'!A8='LIBRO MAYOR'!$D$1,'LIBRO MAYOR'!$D$12,IF('BALANCE DE PRUEBA'!A8='LIBRO MAYOR'!$G$1,'LIBRO MAYOR'!$G$12,IF('BALANCE DE PRUEBA'!A8='LIBRO MAYOR'!$A$13,'LIBRO MAYOR'!$A$23,IF('BALANCE DE PRUEBA'!A8='LIBRO MAYOR'!$D$13,'LIBRO MAYOR'!$D$23,IF('BALANCE DE PRUEBA'!A8='LIBRO MAYOR'!$G$13,'LIBRO MAYOR'!$G$23,IF('BALANCE DE PRUEBA'!A8='LIBRO MAYOR'!$A$24,'LIBRO MAYOR'!$A$34,IF('BALANCE DE PRUEBA'!A8='LIBRO MAYOR'!$D$24,'LIBRO MAYOR'!$D$34,IF('BALANCE DE PRUEBA'!A8='LIBRO MAYOR'!$G$24,'LIBRO MAYOR'!$G$34,IF('BALANCE DE PRUEBA'!A8='LIBRO MAYOR'!$A$35,'LIBRO MAYOR'!$A$45,IF('BALANCE DE PRUEBA'!A8='LIBRO MAYOR'!$D$35,'LIBRO MAYOR'!$D$45,IF('BALANCE DE PRUEBA'!A8='LIBRO MAYOR'!$G$35,'LIBRO MAYOR'!$G$45,IF('BALANCE DE PRUEBA'!A8='LIBRO MAYOR'!$A$46,'LIBRO MAYOR'!$A$56,IF('BALANCE DE PRUEBA'!A8='LIBRO MAYOR'!$D$46,'LIBRO MAYOR'!$D$56,IF('BALANCE DE PRUEBA'!A8='LIBRO MAYOR'!$G$46,'LIBRO MAYOR'!$G$56,IF('BALANCE DE PRUEBA'!A8='LIBRO MAYOR'!$A$57,'LIBRO MAYOR'!$A$67,IF('BALANCE DE PRUEBA'!A8='LIBRO MAYOR'!$D$57,'LIBRO MAYOR'!$D$67,IF('BALANCE DE PRUEBA'!A8='LIBRO MAYOR'!$G$57,'LIBRO MAYOR'!$G$67,IF(A8='LIBRO MAYOR'!$A$68,'LIBRO MAYOR'!$A$78,IF('BALANCE DE PRUEBA'!A8='LIBRO MAYOR'!$D$68,'LIBRO MAYOR'!$D$78,IF('BALANCE DE PRUEBA'!A8='LIBRO MAYOR'!$G$68,'LIBRO MAYOR'!$G$78,IF('BALANCE DE PRUEBA'!A8='LIBRO MAYOR'!$A$79,'LIBRO MAYOR'!$A$89,IF('BALANCE DE PRUEBA'!A8='LIBRO MAYOR'!$D$79,'LIBRO MAYOR'!$D$89,IF('BALANCE DE PRUEBA'!A8='LIBRO MAYOR'!$G$79,'LIBRO MAYOR'!$G$89,IF('BALANCE DE PRUEBA'!A8='LIBRO MAYOR'!$A$90,'LIBRO MAYOR'!$A$100,IF('BALANCE DE PRUEBA'!A8='LIBRO MAYOR'!$D$90,'LIBRO MAYOR'!$D$100,IF('BALANCE DE PRUEBA'!A8='LIBRO MAYOR'!$G$90,'LIBRO MAYOR'!$G$100,0))))))))))))))))))))))))))) -> 65250 | D8: =IF(A8='LIBRO MAYOR'!$A$1,'LIBRO MAYOR'!$B$12,IF('BALANCE DE PRUEBA'!A8='LIBRO MAYOR'!$D$1,'LIBRO MAYOR'!$E$12,IF('BALANCE DE PRUEBA'!A8='LIBRO MAYOR'!$G$1,'LIBRO MAYOR'!$H$12,IF('BALANCE DE PRUEBA'!A8='LIBRO MAYOR'!$A$13,'LIBRO MAYOR'!$B$23,IF('BALANCE DE PRUEBA'!A8='LIBRO MAYOR'!$D$13,'LIBRO MAYOR'!$E$23,IF('BALANCE DE PRUEBA'!A8='LIBRO MAYOR'!$G$13,'LIBRO MAYOR'!$H$23,IF('BALANCE DE PRUEBA'!A8='LIBRO MAYOR'!$A$24,'LIBRO MAYOR'!$B$34,IF('BALANCE DE PRUEBA'!A8='LIBRO MAYOR'!$D$24,'LIBRO MAYOR'!$E$34,IF('BALANCE DE PRUEBA'!A8='LIBRO MAYOR'!$G$24,'LIBRO MAYOR'!$H$34,IF('BALANCE DE PRUEBA'!A8='LIBRO MAYOR'!$A$35,'LIBRO MAYOR'!$B$45,IF('BALANCE DE PRUEBA'!A8='LIBRO MAYOR'!$D$35,'LIBRO MAYOR'!$E$45,IF('BALANCE DE PRUEBA'!A8='LIBRO MAYOR'!$G$35,'LIBRO MAYOR'!$H$45,IF('BALANCE DE PRUEBA'!A8='LIBRO MAYOR'!$A$46,'LIBRO MAYOR'!$B$56,IF('BALANCE DE PRUEBA'!A8='LIBRO MAYOR'!$D$46,'LIBRO MAYOR'!$E$56,IF('BALANCE DE PRUEBA'!A8='LIBRO MAYOR'!$G$46,'LIBRO MAYOR'!$H$56,IF('BALANCE DE PRUEBA'!A8='LIBRO MAYOR'!$A$57,'LIBRO MAYOR'!$B$67,IF('BALANCE DE PRUEBA'!A8='LIBRO MAYOR'!$D$57,'LIBRO MAYOR'!$E$67,IF('BALANCE DE PRUEBA'!A8='LIBRO MAYOR'!$G$57,'LIBRO MAYOR'!$H$67,IF(A8='LIBRO MAYOR'!$A$68,'LIBRO MAYOR'!$B$78,IF('BALANCE DE PRUEBA'!A8='LIBRO MAYOR'!$D$68,'LIBRO MAYOR'!$E$78,IF('BALANCE DE PRUEBA'!A8='LIBRO MAYOR'!$G$68,'LIBRO MAYOR'!$H$78,IF('BALANCE DE PRUEBA'!A8='LIBRO MAYOR'!$A$79,'LIBRO MAYOR'!$B$89,IF('BALANCE DE PRUEBA'!A8='LIBRO MAYOR'!$D$79,'LIBRO MAYOR'!$E$89,IF('BALANCE DE PRUEBA'!A8='LIBRO MAYOR'!$G$79,'LIBRO MAYOR'!$H$89,IF('BALANCE DE PRUEBA'!A8='LIBRO MAYOR'!$A$90,'LIBRO MAYOR'!$B$100,IF('BALANCE DE PRUEBA'!A8='LIBRO MAYOR'!$D$90,'LIBRO MAYOR'!$E$100,IF('BALANCE DE PRUEBA'!A8='LIBRO MAYOR'!$G$90,'LIBRO MAYOR'!$H$100,0))))))))))))))))))))))))))) -> 0 | E8: 65250
A9: 6205 | B9: DE VENTAS | C9: =IF(A9='LIBRO MAYOR'!$A$1,'LIBRO MAYOR'!$A$12,IF('BALANCE DE PRUEBA'!A9='LIBRO MAYOR'!$D$1,'LIBRO MAYOR'!$D$12,IF('BALANCE DE PRUEBA'!A9='LIBRO MAYOR'!$G$1,'LIBRO MAYOR'!$G$12,IF('BALANCE DE PRUEBA'!A9='LIBRO MAYOR'!$A$13,'LIBRO MAYOR'!$A$23,IF('BALANCE DE PRUEBA'!A9='LIBRO MAYOR'!$D$13,'LIBRO MAYOR'!$D$23,IF('BALANCE DE PRUEBA'!A9='LIBRO MAYOR'!$G$13,'LIBRO MAYOR'!$G$23,IF('BALANCE DE PRUEBA'!A9='LIBRO MAYOR'!$A$24,'LIBRO MAYOR'!$A$34,IF('BALANCE DE PRUEBA'!A9='LIBRO MAYOR'!$D$24,'LIBRO MAYOR'!$D$34,IF('BALANCE DE PRUEBA'!A9='LIBRO MAYOR'!$G$24,'LIBRO MAYOR'!$G$34,IF('BALANCE DE PRUEBA'!A9='LIBRO MAYOR'!$A$35,'LIBRO MAYOR'!$A$45,IF('BALANCE DE PRUEBA'!A9='LIBRO MAYOR'!$D$35,'LIBRO MAYOR'!$D$45,IF('BALANCE DE PRUEBA'!A9='LIBRO MAYOR'!$G$35,'LIBRO MAYOR'!$G$45,IF('BALANCE DE PRUEBA'!A9='LIBRO MAYOR'!$A$46,'LIBRO MAYOR'!$A$56,IF('BALANCE DE PRUEBA'!A9='LIBRO MAYOR'!$D$46,'LIBRO MAYOR'!$D$56,IF('BALANCE DE PRUEBA'!A9='LIBRO MAYOR'!$G$46,'LIBRO MAYOR'!$G$56,IF('BALANCE DE PRUEBA'!A9='LIBRO MAYOR'!$A$57,'LIBRO MAYOR'!$A$67,IF('BALANCE DE PRUEBA'!A9='LIBRO MAYOR'!$D$57,'LIBRO MAYOR'!$D$67,IF('BALANCE DE PRUEBA'!A9='LIBRO MAYOR'!$G$57,'LIBRO MAYOR'!$G$67,IF(A9='LIBRO MAYOR'!$A$68,'LIBRO MAYOR'!$A$78,IF('BALANCE DE PRUEBA'!A9='LIBRO MAYOR'!$D$68,'LIBRO MAYOR'!$D$78,IF('BALANCE DE PRUEBA'!A9='LIBRO MAYOR'!$G$68,'LIBRO MAYOR'!$G$78,IF('BALANCE DE PRUEBA'!A9='LIBRO MAYOR'!$A$79,'LIBRO MAYOR'!$A$89,IF('BALANCE DE PRUEBA'!A9='LIBRO MAYOR'!$D$79,'LIBRO MAYOR'!$D$89,IF('BALANCE DE PRUEBA'!A9='LIBRO MAYOR'!$G$79,'LIBRO MAYOR'!$G$89,IF('BALANCE DE PRUEBA'!A9='LIBRO MAYOR'!$A$90,'LIBRO MAYOR'!$A$100,IF('BALANCE DE PRUEBA'!A9='LIBRO MAYOR'!$D$90,'LIBRO MAYOR'!$D$100,IF('BALANCE DE PRUEBA'!A9='LIBRO MAYOR'!$G$90,'LIBRO MAYOR'!$G$100,0))))))))))))))))))))))))))) -> 600000 | D9: =IF(A9='LIBRO MAYOR'!$A$1,'LIBRO MAYOR'!$B$12,IF('BALANCE DE PRUEBA'!A9='LIBRO MAYOR'!$D$1,'LIBRO MAYOR'!$E$12,IF('BALANCE DE PRUEBA'!A9='LIBRO MAYOR'!$G$1,'LIBRO MAYOR'!$H$12,IF('BALANCE DE PRUEBA'!A9='LIBRO MAYOR'!$A$13,'LIBRO MAYOR'!$B$23,IF('BALANCE DE PRUEBA'!A9='LIBRO MAYOR'!$D$13,'LIBRO MAYOR'!$E$23,IF('BALANCE DE PRUEBA'!A9='LIBRO MAYOR'!$G$13,'LIBRO MAYOR'!$H$23,IF('BALANCE DE PRUEBA'!A9='LIBRO MAYOR'!$A$24,'LIBRO MAYOR'!$B$34,IF('BALANCE DE PRUEBA'!A9='LIBRO MAYOR'!$D$24,'LIBRO MAYOR'!$E$34,IF('BALANCE DE PRUEBA'!A9='LIBRO MAYOR'!$G$24,'LIBRO MAYOR'!$H$34,IF('BALANCE DE PRUEBA'!A9='LIBRO MAYOR'!$A$35,'LIBRO MAYOR'!$B$45,IF('BALANCE DE PRUEBA'!A9='LIBRO MAYOR'!$D$35,'LIBRO MAYOR'!$E$45,IF('BALANCE DE PRUEBA'!A9='LIBRO MAYOR'!$G$35,'LIBRO MAYOR'!$H$45,IF('BALANCE DE PRUEBA'!A9='LIBRO MAYOR'!$A$46,'LIBRO MAYOR'!$B$56,IF('BALANCE DE PRUEBA'!A9='LIBRO MAYOR'!$D$46,'LIBRO MAYOR'!$E$56,IF('BALANCE DE PRUEBA'!A9='LIBRO MAYOR'!$G$46,'LIBRO MAYOR'!$H$56,IF('BALANCE DE PRUEBA'!A9='LIBRO MAYOR'!$A$57,'LIBRO MAYOR'!$B$67,IF('BALANCE DE PRUEBA'!A9='LIBRO MAYOR'!$D$57,'LIBRO MAYOR'!$E$67,IF('BALANCE DE PRUEBA'!A9='LIBRO MAYOR'!$G$57,'LIBRO MAYOR'!$H$67,IF(A9='LIBRO MAYOR'!$A$68,'LIBRO MAYOR'!$B$78,IF('BALANCE DE PRUEBA'!A9='LIBRO MAYOR'!$D$68,'LIBRO MAYOR'!$E$78,IF('BALANCE DE PRUEBA'!A9='LIBRO MAYOR'!$G$68,'LIBRO MAYOR'!$H$78,IF('BALANCE DE PRUEBA'!A9='LIBRO MAYOR'!$A$79,'LIBRO MAYOR'!$B$89,IF('BALANCE DE PRUEBA'!A9='LIBRO MAYOR'!$D$79,'LIBRO MAYOR'!$E$89,IF('BALANCE DE PRUEBA'!A9='LIBRO MAYOR'!$G$79,'LIBRO MAYOR'!$H$89,IF('BALANCE DE PRUEBA'!A9='LIBRO MAYOR'!$A$90,'LIBRO MAYOR'!$B$100,IF('BALANCE DE PRUEBA'!A9='LIBRO MAYOR'!$D$90,'LIBRO MAYOR'!$E$100,IF('BALANCE DE PRUEBA'!A9='LIBRO MAYOR'!$G$90,'LIBRO MAYOR'!$H$100,0))))))))))))))))))))))))))) -> 0 | E9: 600000
A10: 2205 | B10: PROVEEDORES NACIONALES | C10: =IF(A10='LIBRO MAYOR'!$A$1,'LIBRO MAYOR'!$A$12,IF('BALANCE DE PRUEBA'!A10='LIBRO MAYOR'!$D$1,'LIBRO MAYOR'!$D$12,IF('BALANCE DE PRUEBA'!A10='LIBRO MAYOR'!$G$1,'LIBRO MAYOR'!$G$12,IF('BALANCE DE PRUEBA'!A10='LIBRO MAYOR'!$A$13,'LIBRO MAYOR'!$A$23,IF('BALANCE DE PRUEBA'!A10='LIBRO MAYOR'!$D$13,'LIBRO MAYOR'!$D$23,IF('BALANCE DE PRUEBA'!A10='LIBRO MAYOR'!$G$13,'LIBRO MAYOR'!$G$23,IF('BALANCE DE PRUEBA'!A10='LIBRO MAYOR'!$A$24,'LIBRO MAYOR'!$A$34,IF('BALANCE DE PRUEBA'!A10='LIBRO MAYOR'!$D$24,'LIBRO MAYOR'!$D$34,IF('BALANCE DE PRUEBA'!A10='LIBRO MAYOR'!$G$24,'LIBRO MAYOR'!$G$34,IF('BALANCE DE PRUEBA'!A10='LIBRO MAYOR'!$A$35,'LIBRO MAYOR'!$A$45,IF('BALANCE DE PRUEBA'!A10='LIBRO MAYOR'!$D$35,'LIBRO MAYOR'!$D$45,IF('BALANCE DE PRUEBA'!A10='LIBRO MAYOR'!$G$35,'LIBRO MAYOR'!$G$45,IF('BALANCE DE PRUEBA'!A10='LIBRO MAYOR'!$A$46,'LIBRO MAYOR'!$A$56,IF('BALANCE DE PRUEBA'!A10='LIBRO MAYOR'!$D$46,'LIBRO MAYOR'!$D$56,IF('BALANCE DE PRUEBA'!A10='LIBRO MAYOR'!$G$46,'LIBRO MAYOR'!$G$56,IF('BALANCE DE PRUEBA'!A10='LIBRO MAYOR'!$A$57,'LIBRO MAYOR'!$A$67,IF('BALANCE DE PRUEBA'!A10='LIBRO MAYOR'!$D$57,'LIBRO MAYOR'!$D$67,IF('BALANCE DE PRUEBA'!A10='LIBRO MAYOR'!$G$57,'LIBRO MAYOR'!$G$67,IF(A10='LIBRO MAYOR'!$A$68,'LIBRO MAYOR'!$A$78,IF('BALANCE DE PRUEBA'!A10='LIBRO MAYOR'!$D$68,'LIBRO MAYOR'!$D$78,IF('BALANCE DE PRUEBA'!A10='LIBRO MAYOR'!$G$68,'LIBRO MAYOR'!$G$78,IF('BALANCE DE PRUEBA'!A10='LIBRO MAYOR'!$A$79,'LIBRO MAYOR'!$A$89,IF('BALANCE DE PRUEBA'!A10='LIBRO MAYOR'!$D$79,'LIBRO MAYOR'!$D$89,IF('BALANCE DE PRUEBA'!A10='LIBRO MAYOR'!$G$79,'LIBRO MAYOR'!$G$89,IF('BALANCE DE PRUEBA'!A10='LIBRO MAYOR'!$A$90,'LIBRO MAYOR'!$A$100,IF('BALANCE DE PRUEBA'!A10='LIBRO MAYOR'!$D$90,'LIBRO MAYOR'!$D$100,IF('BALANCE DE PRUEBA'!A10='LIBRO MAYOR'!$G$90,'LIBRO MAYOR'!$G$100,0))))))))))))))))))))))))))) -> 0 | D10: =IF(A10='LIBRO MAYOR'!$A$1,'LIBRO MAYOR'!$B$12,IF('BALANCE DE PRUEBA'!A10='LIBRO MAYOR'!$D$1,'LIBRO MAYOR'!$E$12,IF('BALANCE DE PRUEBA'!A10='LIBRO MAYOR'!$G$1,'LIBRO MAYOR'!$H$12,IF('BALANCE DE PRUEBA'!A10='LIBRO MAYOR'!$A$13,'LIBRO MAYOR'!$B$23,IF('BALANCE DE PRUEBA'!A10='LIBRO MAYOR'!$D$13,'LIBRO MAYOR'!$E$23,IF('BALANCE DE PRUEBA'!A10='LIBRO MAYOR'!$G$13,'LIBRO MAYOR'!$H$23,IF('BALANCE DE PRUEBA'!A10='LIBRO MAYOR'!$A$24,'LIBRO MAYOR'!$B$34,IF('BALANCE DE PRUEBA'!A10='LIBRO MAYOR'!$D$24,'LIBRO MAYOR'!$E$34,IF('BALANCE DE PRUEBA'!A10='LIBRO MAYOR'!$G$24,'LIBRO MAYOR'!$H$34,IF('BALANCE DE PRUEBA'!A10='LIBRO MAYOR'!$A$35,'LIBRO MAYOR'!$B$45,IF('BALANCE DE PRUEBA'!A10='LIBRO MAYOR'!$D$35,'LIBRO MAYOR'!$E$45,IF('BALANCE DE PRUEBA'!A10='LIBRO MAYOR'!$G$35,'LIBRO MAYOR'!$H$45,IF('BALANCE DE PRUEBA'!A10='LIBRO MAYOR'!$A$46,'LIBRO MAYOR'!$B$56,IF('BALANCE DE PRUEBA'!A10='LIBRO MAYOR'!$D$46,'LIBRO MAYOR'!$E$56,IF('BALANCE DE PRUEBA'!A10='LIBRO MAYOR'!$G$46,'LIBRO MAYOR'!$H$56,IF('BALANCE DE PRUEBA'!A10='LIBRO MAYOR'!$A$57,'LIBRO MAYOR'!$B$67,IF('BALANCE DE PRUEBA'!A10='LIBRO MAYOR'!$D$57,'LIBRO MAYOR'!$E$67,IF('BALANCE DE PRUEBA'!A10='LIBRO MAYOR'!$G$57,'LIBRO MAYOR'!$H$67,IF(A10='LIBRO MAYOR'!$A$68,'LIBRO MAYOR'!$B$78,IF('BALANCE DE PRUEBA'!A10='LIBRO MAYOR'!$D$68,'LIBRO MAYOR'!$E$78,IF('BALANCE DE PRUEBA'!A10='LIBRO MAYOR'!$G$68,'LIBRO MAYOR'!$H$78,IF('BALANCE DE PRUEBA'!A10='LIBRO MAYOR'!$A$79,'LIBRO MAYOR'!$B$89,IF('BALANCE DE PRUEBA'!A10='LIBRO MAYOR'!$D$79,'LIBRO MAYOR'!$E$89,IF('BALANCE DE PRUEBA'!A10='LIBRO MAYOR'!$G$79,'LIBRO MAYOR'!$H$89,IF('BALANCE DE PRUEBA'!A10='LIBRO MAYOR'!$A$90,'LIBRO MAYOR'!$B$100,IF('BALANCE DE PRUEBA'!A10='LIBRO MAYOR'!$D$90,'LIBRO MAYOR'!$E$100,IF('BALANCE DE PRUEBA'!A10='LIBRO MAYOR'!$G$90,'LIBRO MAYOR'!$H$100,0))))))))))))))))))))))))))) -> 313200 | E10: 313200
A11: 2105 | B11: BANCOS NACIONALES | C11: =IF(A11='LIBRO MAYOR'!$A$1,'LIBRO MAYOR'!$A$12,IF('BALANCE DE PRUEBA'!A11='LIBRO MAYOR'!$D$1,'LIBRO MAYOR'!$D$12,IF('BALANCE DE PRUEBA'!A11='LIBRO MAYOR'!$G$1,'LIBRO MAYOR'!$G$12,IF('BALANCE DE PRUEBA'!A11='LIBRO MAYOR'!$A$13,'LIBRO MAYOR'!$A$23,IF('BALANCE DE PRUEBA'!A11='LIBRO MAYOR'!$D$13,'LIBRO MAYOR'!$D$23,IF('BALANCE DE PRUEBA'!A11='LIBRO MAYOR'!$G$13,'LIBRO MAYOR'!$G$23,IF('BALANCE DE PRUEBA'!A11='LIBRO MAYOR'!$A$24,'LIBRO MAYOR'!$A$34,IF('BALANCE DE PRUEBA'!A11='LIBRO MAYOR'!$D$24,'LIBRO MAYOR'!$D$34,IF('BALANCE DE PRUEBA'!A11='LIBRO MAYOR'!$G$24,'LIBRO MAYOR'!$G$34,IF('BALANCE DE PRUEBA'!A11='LIBRO MAYOR'!$A$35,'LIBRO MAYOR'!$A$45,IF('BALANCE DE PRUEBA'!A11='LIBRO MAYOR'!$D$35,'LIBRO MAYOR'!$D$45,IF('BALANCE DE PRUEBA'!A11='LIBRO MAYOR'!$G$35,'LIBRO MAYOR'!$G$45,IF('BALANCE DE PRUEBA'!A11='LIBRO MAYOR'!$A$46,'LIBRO MAYOR'!$A$56,IF('BALANCE DE PRUEBA'!A11='LIBRO MAYOR'!$D$46,'LIBRO MAYOR'!$D$56,IF('BALANCE DE PRUEBA'!A11='LIBRO MAYOR'!$G$46,'LIBRO MAYOR'!$G$56,IF('BALANCE DE PRUEBA'!A11='LIBRO MAYOR'!$A$57,'LIBRO MAYOR'!$A$67,IF('BALANCE DE PRUEBA'!A11='LIBRO MAYOR'!$D$57,'LIBRO MAYOR'!$D$67,IF('BALANCE DE PRUEBA'!A11='LIBRO MAYOR'!$G$57,'LIBRO MAYOR'!$G$67,IF(A11='LIBRO MAYOR'!$A$68,'LIBRO MAYOR'!$A$78,IF('BALANCE DE PRUEBA'!A11='LIBRO MAYOR'!$D$68,'LIBRO MAYOR'!$D$78,IF('BALANCE DE PRUEBA'!A11='LIBRO MAYOR'!$G$68,'LIBRO MAYOR'!$G$78,IF('BALANCE DE PRUEBA'!A11='LIBRO MAYOR'!$A$79,'LIBRO MAYOR'!$A$89,IF('BALANCE DE PRUEBA'!A11='LIBRO MAYOR'!$D$79,'LIBRO MAYOR'!$D$89,IF('BALANCE DE PRUEBA'!A11='LIBRO MAYOR'!$G$79,'LIBRO MAYOR'!$G$89,IF('BALANCE DE PRUEBA'!A11='LIBRO MAYOR'!$A$90,'LIBRO MAYOR'!$A$100,IF('BALANCE DE PRUEBA'!A11='LIBRO MAYOR'!$D$90,'LIBRO MAYOR'!$D$100,IF('BALANCE DE PRUEBA'!A11='LIBRO MAYOR'!$G$90,'LIBRO MAYOR'!$G$100,0))))))))))))))))))))))))))) -> 0 | D11: =IF(A11='LIBRO MAYOR'!$A$1,'LIBRO MAYOR'!$B$12,IF('BALANCE DE PRUEBA'!A11='LIBRO MAYOR'!$D$1,'LIBRO MAYOR'!$E$12,IF('BALANCE DE PRUEBA'!A11='LIBRO MAYOR'!$G$1,'LIBRO MAYOR'!$H$12,IF('BALANCE DE PRUEBA'!A11='LIBRO MAYOR'!$A$13,'LIBRO MAYOR'!$B$23,IF('BALANCE DE PRUEBA'!A11='LIBRO MAYOR'!$D$13,'LIBRO MAYOR'!$E$23,IF('BALANCE DE PRUEBA'!A11='LIBRO MAYOR'!$G$13,'LIBRO MAYOR'!$H$23,IF('BALANCE DE PRUEBA'!A11='LIBRO MAYOR'!$A$24,'LIBRO MAYOR'!$B$34,IF('BALANCE DE PRUEBA'!A11='LIBRO MAYOR'!$D$24,'LIBRO MAYOR'!$E$34,IF('BALANCE DE PRUEBA'!A11='LIBRO MAYOR'!$G$24,'LIBRO MAYOR'!$H$34,IF('BALANCE DE PRUEBA'!A11='LIBRO MAYOR'!$A$35,'LIBRO MAYOR'!$B$45,IF('BALANCE DE PRUEBA'!A11='LIBRO MAYOR'!$D$35,'LIBRO MAYOR'!$E$45,IF('BALANCE DE PRUEBA'!A11='LIBRO MAYOR'!$G$35,'LIBRO MAYOR'!$H$45,IF('BALANCE DE PRUEBA'!A11='LIBRO MAYOR'!$A$46,'LIBRO MAYOR'!$B$56,IF('BALANCE DE PRUEBA'!A11='LIBRO MAYOR'!$D$46,'LIBRO MAYOR'!$E$56,IF('BALANCE DE PRUEBA'!A11='LIBRO MAYOR'!$G$46,'LIBRO MAYOR'!$H$56,IF('BALANCE DE PRUEBA'!A11='LIBRO MAYOR'!$A$57,'LIBRO MAYOR'!$B$67,IF('BALANCE DE PRUEBA'!A11='LIBRO MAYOR'!$D$57,'LIBRO MAYOR'!$E$67,IF('BALANCE DE PRUEBA'!A11='LIBRO MAYOR'!$G$57,'LIBRO MAYOR'!$H$67,IF(A11='LIBRO MAYOR'!$A$68,'LIBRO MAYOR'!$B$78,IF('BALANCE DE PRUEBA'!A11='LIBRO MAYOR'!$D$68,'LIBRO MAYOR'!$E$78,IF('BALANCE DE PRUEBA'!A11='LIBRO MAYOR'!$G$68,'LIBRO MAYOR'!$H$78,IF('BALANCE DE PRUEBA'!A11='LIBRO MAYOR'!$A$79,'LIBRO MAYOR'!$B$89,IF('BALANCE DE PRUEBA'!A11='LIBRO MAYOR'!$D$79,'LIBRO MAYOR'!$E$89,IF('BALANCE DE PRUEBA'!A11='LIBRO MAYOR'!$G$79,'LIBRO MAYOR'!$H$89,IF('BALANCE DE PRUEBA'!A11='LIBRO MAYOR'!$A$90,'LIBRO MAYOR'!$B$100,IF('BALANCE DE PRUEBA'!A11='LIBRO MAYOR'!$D$90,'LIBRO MAYOR'!$E$100,IF('BALANCE DE PRUEBA'!A11='LIBRO MAYOR'!$G$90,'LIBRO MAYOR'!$H$100,0))))))))))))))))))))))))))) -> 3000000 | E11: 3000000
A12: 1110 | B12: BANCO | C12: =IF(A12='LIBRO MAYOR'!$A$1,'LIBRO MAYOR'!$A$12,IF('BALANCE DE PRUEBA'!A12='LIBRO MAYOR'!$D$1,'LIBRO MAYOR'!$D$12,IF('BALANCE DE PRUEBA'!A12='LIBRO MAYOR'!$G$1,'LIBRO MAYOR'!$G$12,IF('BALANCE DE PRUEBA'!A12='LIBRO MAYOR'!$A$13,'LIBRO MAYOR'!$A$23,IF('BALANCE DE PRUEBA'!A12='LIBRO MAYOR'!$D$13,'LIBRO MAYOR'!$D$23,IF('BALANCE DE PRUEBA'!A12='LIBRO MAYOR'!$G$13,'LIBRO MAYOR'!$G$23,IF('BALANCE DE PRUEBA'!A12='LIBRO MAYOR'!$A$24,'LIBRO MAYOR'!$A$34,IF('BALANCE DE PRUEBA'!A12='LIBRO MAYOR'!$D$24,'LIBRO MAYOR'!$D$34,IF('BALANCE DE PRUEBA'!A12='LIBRO MAYOR'!$G$24,'LIBRO MAYOR'!$G$34,IF('BALANCE DE PRUEBA'!A12='LIBRO MAYOR'!$A$35,'LIBRO MAYOR'!$A$45,IF('BALANCE DE PRUEBA'!A12='LIBRO MAYOR'!$D$35,'LIBRO MAYOR'!$D$45,IF('BALANCE DE PRUEBA'!A12='LIBRO MAYOR'!$G$35,'LIBRO MAYOR'!$G$45,IF('BALANCE DE PRUEBA'!A12='LIBRO MAYOR'!$A$46,'LIBRO MAYOR'!$A$56,IF('BALANCE DE PRUEBA'!A12='LIBRO MAYOR'!$D$46,'LIBRO MAYOR'!$D$56,IF('BALANCE DE PRUEBA'!A12='LIBRO MAYOR'!$G$46,'LIBRO MAYOR'!$G$56,IF('BALANCE DE PRUEBA'!A12='LIBRO MAYOR'!$A$57,'LIBRO MAYOR'!$A$67,IF('BALANCE DE PRUEBA'!A12='LIBRO MAYOR'!$D$57,'LIBRO MAYOR'!$D$67,IF('BALANCE DE PRUEBA'!A12='LIBRO MAYOR'!$G$57,'LIBRO MAYOR'!$G$67,IF(A12='LIBRO MAYOR'!$A$68,'LIBRO MAYOR'!$A$78,IF('BALANCE DE PRUEBA'!A12='LIBRO MAYOR'!$D$68,'LIBRO MAYOR'!$D$78,IF('BALANCE DE PRUEBA'!A12='LIBRO MAYOR'!$G$68,'LIBRO MAYOR'!$G$78,IF('BALANCE DE PRUEBA'!A12='LIBRO MAYOR'!$A$79,'LIBRO MAYOR'!$A$89,IF('BALANCE DE PRUEBA'!A12='LIBRO MAYOR'!$D$79,'LIBRO MAYOR'!$D$89,IF('BALANCE DE PRUEBA'!A12='LIBRO MAYOR'!$G$79,'LIBRO MAYOR'!$G$89,IF('BALANCE DE PRUEBA'!A12='LIBRO MAYOR'!$A$90,'LIBRO MAYOR'!$A$100,IF('BALANCE DE PRUEBA'!A12='LIBRO MAYOR'!$D$90,'LIBRO MAYOR'!$D$100,IF('BALANCE DE PRUEBA'!A12='LIBRO MAYOR'!$G$90,'LIBRO MAYOR'!$G$100,0))))))))))))))))))))))))))) -> 7204450 | D12: =IF(A12='LIBRO MAYOR'!$A$1,'LIBRO MAYOR'!$B$12,IF('BALANCE DE PRUEBA'!A12='LIBRO MAYOR'!$D$1,'LIBRO MAYOR'!$E$12,IF('BALANCE DE PRUEBA'!A12='LIBRO MAYOR'!$G$1,'LIBRO MAYOR'!$H$12,IF('BALANCE DE PRUEBA'!A12='LIBRO MAYOR'!$A$13,'LIBRO MAYOR'!$B$23,IF('BALANCE DE PRUEBA'!A12='LIBRO MAYOR'!$D$13,'LIBRO MAYOR'!$E$23,IF('BALANCE DE PRUEBA'!A12='LIBRO MAYOR'!$G$13,'LIBRO MAYOR'!$H$23,IF('BALANCE DE PRUEBA'!A12='LIBRO MAYOR'!$A$24,'LIBRO MAYOR'!$B$34,IF('BALANCE DE PRUEBA'!A12='LIBRO MAYOR'!$D$24,'LIBRO MAYOR'!$E$34,IF('BALANCE DE PRUEBA'!A12='LIBRO MAYOR'!$G$24,'LIBRO MAYOR'!$H$34,IF('BALANCE DE PRUEBA'!A12='LIBRO MAYOR'!$A$35,'LIBRO MAYOR'!$B$45,IF('BALANCE DE PRUEBA'!A12='LIBRO MAYOR'!$D$35,'LIBRO MAYOR'!$E$45,IF('BALANCE DE PRUEBA'!A12='LIBRO MAYOR'!$G$35,'LIBRO MAYOR'!$H$45,IF('BALANCE DE PRUEBA'!A12='LIBRO MAYOR'!$A$46,'LIBRO MAYOR'!$B$56,IF('BALANCE DE PRUEBA'!A12='LIBRO MAYOR'!$D$46,'LIBRO MAYOR'!$E$56,IF('BALANCE DE PRUEBA'!A12='LIBRO MAYOR'!$G$46,'LIBRO MAYOR'!$H$56,IF('BALANCE DE PRUEBA'!A12='LIBRO MAYOR'!$A$57,'LIBRO MAYOR'!$B$67,IF('BALANCE DE PRUEBA'!A12='LIBRO MAYOR'!$D$57,'LIBRO MAYOR'!$E$67,IF('BALANCE DE PRUEBA'!A12='LIBRO MAYOR'!$G$57,'LIBRO MAYOR'!$H$67,IF(A12='LIBRO MAYOR'!$A$68,'LIBRO MAYOR'!$B$78,IF('BALANCE DE PRUEBA'!A12='LIBRO MAYOR'!$D$68,'LIBRO MAYOR'!$E$78,IF('BALANCE DE PRUEBA'!A12='LIBRO MAYOR'!$G$68,'LIBRO MAYOR'!$H$78,IF('BALANCE DE PRUEBA'!A12='LIBRO MAYOR'!$A$79,'LIBRO MAYOR'!$B$89,IF('BALANCE DE PRUEBA'!A12='LIBRO MAYOR'!$D$79,'LIBRO MAYOR'!$E$89,IF('BALANCE DE PRUEBA'!A12='LIBRO MAYOR'!$G$79,'LIBRO MAYOR'!$H$89,IF('BALANCE DE PRUEBA'!A12='LIBRO MAYOR'!$A$90,'LIBRO MAYOR'!$B$100,IF('BALANCE DE PRUEBA'!A12='LIBRO MAYOR'!$D$90,'LIBRO MAYOR'!$E$100,IF('BALANCE DE PRUEBA'!A12='LIBRO MAYOR'!$G$90,'LIBRO MAYOR'!$H$100,0))))))))))))))))))))))))))) -> 0 | E12: 7204450
A13: 1524 | B13: EQUIPOS DE OFICINA | C13: =IF(A13='LIBRO MAYOR'!$A$1,'LIBRO MAYOR'!$A$12,IF('BALANCE DE PRUEBA'!A13='LIBRO MAYOR'!$D$1,'LIBRO MAYOR'!$D$12,IF('BALANCE DE PRUEBA'!A13='LIBRO MAYOR'!$G$1,'LIBRO MAYOR'!$G$12,IF('BALANCE DE PRUEBA'!A13='LIBRO MAYOR'!$A$13,'LIBRO MAYOR'!$A$23,IF('BALANCE DE PRUEBA'!A13='LIBRO MAYOR'!$D$13,'LIBRO MAYOR'!$D$23,IF('BALANCE DE PRUEBA'!A13='LIBRO MAYOR'!$G$13,'LIBRO MAYOR'!$G$23,IF('BALANCE DE PRUEBA'!A13='LIBRO MAYOR'!$A$24,'LIBRO MAYOR'!$A$34,IF('BALANCE DE PRUEBA'!A13='LIBRO MAYOR'!$D$24,'LIBRO MAYOR'!$D$34,IF('BALANCE DE PRUEBA'!A13='LIBRO MAYOR'!$G$24,'LIBRO MAYOR'!$G$34,IF('BALANCE DE PRUEBA'!A13='LIBRO MAYOR'!$A$35,'LIBRO MAYOR'!$A$45,IF('BALANCE DE PRUEBA'!A13='LIBRO MAYOR'!$D$35,'LIBRO MAYOR'!$D$45,IF('BALANCE DE PRUEBA'!A13='LIBRO MAYOR'!$G$35,'LIBRO MAYOR'!$G$45,IF('BALANCE DE PRUEBA'!A13='LIBRO MAYOR'!$A$46,'LIBRO MAYOR'!$A$56,IF('BALANCE DE PRUEBA'!A13='LIBRO MAYOR'!$D$46,'LIBRO MAYOR'!$D$56,IF('BALANCE DE PRUEBA'!A13='LIBRO MAYOR'!$G$46,'LIBRO MAYOR'!$G$56,IF('BALANCE DE PRUEBA'!A13='LIBRO MAYOR'!$A$57,'LIBRO MAYOR'!$A$67,IF('BALANCE DE PRUEBA'!A13='LIBRO MAYOR'!$D$57,'LIBRO MAYOR'!$D$67,IF('BALANCE DE PRUEBA'!A13='LIBRO MAYOR'!$G$57,'LIBRO MAYOR'!$G$67,IF(A13='LIBRO MAYOR'!$A$68,'LIBRO MAYOR'!$A$78,IF('BALANCE DE PRUEBA'!A13='LIBRO MAYOR'!$D$68,'LIBRO MAYOR'!$D$78,IF('BALANCE DE PRUEBA'!A13='LIBRO MAYOR'!$G$68,'LIBRO MAYOR'!$G$78,IF('BALANCE DE PRUEBA'!A13='LIBRO MAYOR'!$A$79,'LIBRO MAYOR'!$A$89,IF('BALANCE DE PRUEBA'!A13='LIBRO MAYOR'!$D$79,'LIBRO MAYOR'!$D$89,IF('BALANCE DE PRUEBA'!A13='LIBRO MAYOR'!$G$79,'LIBRO MAYOR'!$G$89,IF('BALANCE DE PRUEBA'!A13='LIBRO MAYOR'!$A$90,'LIBRO MAYOR'!$A$100,IF('BALANCE DE PRUEBA'!A13='LIBRO MAYOR'!$D$90,'LIBRO MAYOR'!$D$100,IF('BALANCE DE PRUEBA'!A13='LIBRO MAYOR'!$G$90,'LIBRO MAYOR'!$G$100,0))))))))))))))))))))))))))) -> 2000000 | D13: =IF(A13='LIBRO MAYOR'!$A$1,'LIBRO MAYOR'!$B$12,IF('BALANCE DE PRUEBA'!A13='LIBRO MAYOR'!$D$1,'LIBRO MAYOR'!$E$12,IF('BALANCE DE PRUEBA'!A13='LIBRO MAYOR'!$G$1,'LIBRO MAYOR'!$H$12,IF('BALANCE DE PRUEBA'!A13='LIBRO MAYOR'!$A$13,'LIBRO MAYOR'!$B$23,IF('BALANCE DE PRUEBA'!A13='LIBRO MAYOR'!$D$13,'LIBRO MAYOR'!$E$23,IF('BALANCE DE PRUEBA'!A13='LIBRO MAYOR'!$G$13,'LIBRO MAYOR'!$H$23,IF('BALANCE DE PRUEBA'!A13='LIBRO MAYOR'!$A$24,'LIBRO MAYOR'!$B$34,IF('BALANCE DE PRUEBA'!A13='LIBRO MAYOR'!$D$24,'LIBRO MAYOR'!$E$34,IF('BALANCE DE PRUEBA'!A13='LIBRO MAYOR'!$G$24,'LIBRO MAYOR'!$H$34,IF('BALANCE DE PRUEBA'!A13='LIBRO MAYOR'!$A$35,'LIBRO MAYOR'!$B$45,IF('BALANCE DE PRUEBA'!A13='LIBRO MAYOR'!$D$35,'LIBRO MAYOR'!$E$45,IF('BALANCE DE PRUEBA'!A13='LIBRO MAYOR'!$G$35,'LIBRO MAYOR'!$H$45,IF('BALANCE DE PRUEBA'!A13='LIBRO MAYOR'!$A$46,'LIBRO MAYOR'!$B$56,IF('BALANCE DE PRUEBA'!A13='LIBRO MAYOR'!$D$46,'LIBRO MAYOR'!$E$56,IF('BALANCE DE PRUEBA'!A13='LIBRO MAYOR'!$G$46,'LIBRO MAYOR'!$H$56,IF('BALANCE DE PRUEBA'!A13='LIBRO MAYOR'!$A$57,'LIBRO MAYOR'!$B$67,IF('BALANCE DE PRUEBA'!A13='LIBRO MAYOR'!$D$57,'LIBRO MAYOR'!$E$67,IF('BALANCE DE PRUEBA'!A13='LIBRO MAYOR'!$G$57,'LIBRO MAYOR'!$H$67,IF(A13='LIBRO MAYOR'!$A$68,'LIBRO MAYOR'!$B$78,IF('BALANCE DE PRUEBA'!A13='LIBRO MAYOR'!$D$68,'LIBRO MAYOR'!$E$78,IF('BALANCE DE PRUEBA'!A13='LIBRO MAYOR'!$G$68,'LIBRO MAYOR'!$H$78,IF('BALANCE DE PRUEBA'!A13='LIBRO MAYOR'!$A$79,'LIBRO MAYOR'!$B$89,IF('BALANCE DE PRUEBA'!A13='LIBRO MAYOR'!$D$79,'LIBRO MAYOR'!$E$89,IF('BALANCE DE PRUEBA'!A13='LIBRO MAYOR'!$G$79,'LIBRO MAYOR'!$H$89,IF('BALANCE DE PRUEBA'!A13='LIBRO MAYOR'!$A$90,'LIBRO MAYOR'!$B$100,IF('BALANCE DE PRUEBA'!A13='LIBRO MAYOR'!$D$90,'LIBRO MAYOR'!$E$100,IF('BALANCE DE PRUEBA'!A13='LIBRO MAYOR'!$G$90,'LIBRO MAYOR'!$H$100,0))))))))))))))))))))))))))) -> 0 | E13: 2000000
A14: 2380 | B14: ACREEDORES VARIOS | C14: =IF(A14='LIBRO MAYOR'!$A$1,'LIBRO MAYOR'!$A$12,IF('BALANCE DE PRUEBA'!A14='LIBRO MAYOR'!$D$1,'LIBRO MAYOR'!$D$12,IF('BALANCE DE PRUEBA'!A14='LIBRO MAYOR'!$G$1,'LIBRO MAYOR'!$G$12,IF('BALANCE DE PRUEBA'!A14='LIBRO MAYOR'!$A$13,'LIBRO MAYOR'!$A$23,IF('BALANCE DE PRUEBA'!A14='LIBRO MAYOR'!$D$13,'LIBRO MAYOR'!$D$23,IF('BALANCE DE PRUEBA'!A14='LIBRO MAYOR'!$G$13,'LIBRO MAYOR'!$G$23,IF('BALANCE DE PRUEBA'!A14='LIBRO MAYOR'!$A$24,'LIBRO MAYOR'!$A$34,IF('BALANCE DE PRUEBA'!A14='LIBRO MAYOR'!$D$24,'LIBRO MAYOR'!$D$34,IF('BALANCE DE PRUEBA'!A14='LIBRO MAYOR'!$G$24,'LIBRO MAYOR'!$G$34,IF('BALANCE DE PRUEBA'!A14='LIBRO MAYOR'!$A$35,'LIBRO MAYOR'!$A$45,IF('BALANCE DE PRUEBA'!A14='LIBRO MAYOR'!$D$35,'LIBRO MAYOR'!$D$45,IF('BALANCE DE PRUEBA'!A14='LIBRO MAYOR'!$G$35,'LIBRO MAYOR'!$G$45,IF('BALANCE DE PRUEBA'!A14='LIBRO MAYOR'!$A$46,'LIBRO MAYOR'!$A$56,IF('BALANCE DE PRUEBA'!A14='LIBRO MAYOR'!$D$46,'LIBRO MAYOR'!$D$56,IF('BALANCE DE PRUEBA'!A14='LIBRO MAYOR'!$G$46,'LIBRO MAYOR'!$G$56,IF('BALANCE DE PRUEBA'!A14='LIBRO MAYOR'!$A$57,'LIBRO MAYOR'!$A$67,IF('BALANCE DE PRUEBA'!A14='LIBRO MAYOR'!$D$57,'LIBRO MAYOR'!$D$67,IF('BALANCE DE PRUEBA'!A14='LIBRO MAYOR'!$G$57,'LIBRO MAYOR'!$G$67,IF(A14='LIBRO MAYOR'!$A$68,'LIBRO MAYOR'!$A$78,IF('BALANCE DE PRUEBA'!A14='LIBRO MAYOR'!$D$68,'LIBRO MAYOR'!$D$78,IF('BALANCE DE PRUEBA'!A14='LIBRO MAYOR'!$G$68,'LIBRO MAYOR'!$G$78,IF('BALANCE DE PRUEBA'!A14='LIBRO MAYOR'!$A$79,'LIBRO MAYOR'!$A$89,IF('BALANCE DE PRUEBA'!A14='LIBRO MAYOR'!$D$79,'LIBRO MAYOR'!$D$89,IF('BALANCE DE PRUEBA'!A14='LIBRO MAYOR'!$G$79,'LIBRO MAYOR'!$G$89,IF('BALANCE DE PRUEBA'!A14='LIBRO MAYOR'!$A$90,'LIBRO MAYOR'!$A$100,IF('BALANCE DE PRUEBA'!A14='LIBRO MAYOR'!$D$90,'LIBRO MAYOR'!$D$100,IF('BALANCE DE PRUEBA'!A14='LIBRO MAYOR'!$G$90,'LIBRO MAYOR'!$G$100,0))))))))))))))))))))))))))) -> 0 | D14: =IF(A14='LIBRO MAYOR'!$A$1,'LIBRO MAYOR'!$B$12,IF('BALANCE DE PRUEBA'!A14='LIBRO MAYOR'!$D$1,'LIBRO MAYOR'!$E$12,IF('BALANCE DE PRUEBA'!A14='LIBRO MAYOR'!$G$1,'LIBRO MAYOR'!$H$12,IF('BALANCE DE PRUEBA'!A14='LIBRO MAYOR'!$A$13,'LIBRO MAYOR'!$B$23,IF('BALANCE DE PRUEBA'!A14='LIBRO MAYOR'!$D$13,'LIBRO MAYOR'!$E$23,IF('BALANCE DE PRUEBA'!A14='LIBRO MAYOR'!$G$13,'LIBRO MAYOR'!$H$23,IF('BALANCE DE PRUEBA'!A14='LIBRO MAYOR'!$A$24,'LIBRO MAYOR'!$B$34,IF('BALANCE DE PRUEBA'!A14='LIBRO MAYOR'!$D$24,'LIBRO MAYOR'!$E$34,IF('BALANCE DE PRUEBA'!A14='LIBRO MAYOR'!$G$24,'LIBRO MAYOR'!$H$34,IF('BALANCE DE PRUEBA'!A14='LIBRO MAYOR'!$A$35,'LIBRO MAYOR'!$B$45,IF('BALANCE DE PRUEBA'!A14='LIBRO MAYOR'!$D$35,'LIBRO MAYOR'!$E$45,IF('BALANCE DE PRUEBA'!A14='LIBRO MAYOR'!$G$35,'LIBRO MAYOR'!$H$45,IF('BALANCE DE PRUEBA'!A14='LIBRO MAYOR'!$A$46,'LIBRO MAYOR'!$B$56,IF('BALANCE DE PRUEBA'!A14='LIBRO MAYOR'!$D$46,'LIBRO MAYOR'!$E$56,IF('BALANCE DE PRUEBA'!A14='LIBRO MAYOR'!$G$46,'LIBRO MAYOR'!$H$56,IF('BALANCE DE PRUEBA'!A14='LIBRO MAYOR'!$A$57,'LIBRO MAYOR'!$B$67,IF('BALANCE DE PRUEBA'!A14='LIBRO MAYOR'!$D$57,'LIBRO MAYOR'!$E$67,IF('BALANCE DE PRUEBA'!A14='LIBRO MAYOR'!$G$57,'LIBRO MAYOR'!$H$67,IF(A14='LIBRO MAYOR'!$A$68,'LIBRO MAYOR'!$B$78,IF('BALANCE DE PRUEBA'!A14='LIBRO MAYOR'!$D$68,'LIBRO MAYOR'!$E$78,IF('BALANCE DE PRUEBA'!A14='LIBRO MAYOR'!$G$68,'LIBRO MAYOR'!$H$78,IF('BALANCE DE PRUEBA'!A14='LIBRO MAYOR'!$A$79,'LIBRO MAYOR'!$B$89,IF('BALANCE DE PRUEBA'!A14='LIBRO MAYOR'!$D$79,'LIBRO MAYOR'!$E$89,IF('BALANCE DE PRUEBA'!A14='LIBRO MAYOR'!$G$79,'LIBRO MAYOR'!$H$89,IF('BALANCE DE PRUEBA'!A14='LIBRO MAYOR'!$A$90,'LIBRO MAYOR'!$B$100,IF('BALANCE DE PRUEBA'!A14='LIBRO MAYOR'!$D$90,'LIBRO MAYOR'!$E$100,IF('BALANCE DE PRUEBA'!A14='LIBRO MAYOR'!$G$90,'LIBRO MAYOR'!$H$100,0))))))))))))))))))))))))))) -> 2000000 | E14: 2000000
C15: =IF(A15='LIBRO MAYOR'!$A$1,'LIBRO MAYOR'!$A$12,IF('BALANCE DE PRUEBA'!A15='LIBRO MAYOR'!$D$1,'LIBRO MAYOR'!$D$12,IF('BALANCE DE PRUEBA'!A15='LIBRO MAYOR'!$G$1,'LIBRO MAYOR'!$G$12,IF('BALANCE DE PRUEBA'!A15='LIBRO MAYOR'!$A$13,'LIBRO MAYOR'!$A$23,IF('BALANCE DE PRUEBA'!A15='LIBRO MAYOR'!$D$13,'LIBRO MAYOR'!$D$23,IF('BALANCE DE PRUEBA'!A15='LIBRO MAYOR'!$G$13,'LIBRO MAYOR'!$G$23,IF('BALANCE DE PRUEBA'!A15='LIBRO MAYOR'!$A$24,'LIBRO MAYOR'!$A$34,IF('BALANCE DE PRUEBA'!A15='LIBRO MAYOR'!$D$24,'LIBRO MAYOR'!$D$34,IF('BALANCE DE PRUEBA'!A15='LIBRO MAYOR'!$G$24,'LIBRO MAYOR'!$G$34,IF('BALANCE DE PRUEBA'!A15='LIBRO MAYOR'!$A$35,'LIBRO MAYOR'!$A$45,IF('BALANCE DE PRUEBA'!A15='LIBRO MAYOR'!$D$35,'LIBRO MAYOR'!$D$45,IF('BALANCE DE PRUEBA'!A15='LIBRO MAYOR'!$G$35,'LIBRO MAYOR'!$G$45,IF('BALANCE DE PRUEBA'!A15='LIBRO MAYOR'!$A$46,'LIBRO MAYOR'!$A$56,IF('BALANCE DE PRUEBA'!A15='LIBRO MAYOR'!$D$46,'LIBRO MAYOR'!$D$56,IF('BALANCE DE PRUEBA'!A15='LIBRO MAYOR'!$G$46,'LIBRO MAYOR'!$G$56,IF('BALANCE DE PRUEBA'!A15='LIBRO MAYOR'!$A$57,'LIBRO MAYOR'!$A$67,IF('BALANCE DE PRUEBA'!A15='LIBRO MAYOR'!$D$57,'LIBRO MAYOR'!$D$67,IF('BALANCE DE PRUEBA'!A15='LIBRO MAYOR'!$G$57,'LIBRO MAYOR'!$G$67,IF(A15='LIBRO MAYOR'!$A$68,'LIBRO MAYOR'!$A$78,IF('BALANCE DE PRUEBA'!A15='LIBRO MAYOR'!$D$68,'LIBRO MAYOR'!$D$78,IF('BALANCE DE PRUEBA'!A15='LIBRO MAYOR'!$G$68,'LIBRO MAYOR'!$G$78,IF('BALANCE DE PRUEBA'!A15='LIBRO MAYOR'!$A$79,'LIBRO MAYOR'!$A$89,IF('BALANCE DE PRUEBA'!A15='LIBRO MAYOR'!$D$79,'LIBRO MAYOR'!$D$89,IF('BALANCE DE PRUEBA'!A15='LIBRO MAYOR'!$G$79,'LIBRO MAYOR'!$G$89,IF('BALANCE DE PRUEBA'!A15='LIBRO MAYOR'!$A$90,'LIBRO MAYOR'!$A$100,IF('BALANCE DE PRUEBA'!A15='LIBRO MAYOR'!$D$90,'LIBRO MAYOR'!$D$100,IF('BALANCE DE PRUEBA'!A15='LIBRO MAYOR'!$G$90,'LIBRO MAYOR'!$G$100,0))))))))))))))))))))))))))) -> 0 | D15: =IF(A15='LIBRO MAYOR'!$A$1,'LIBRO MAYOR'!$B$12,IF('BALANCE DE PRUEBA'!A15='LIBRO MAYOR'!$D$1,'LIBRO MAYOR'!$E$12,IF('BALANCE DE PRUEBA'!A15='LIBRO MAYOR'!$G$1,'LIBRO MAYOR'!$H$12,IF('BALANCE DE PRUEBA'!A15='LIBRO MAYOR'!$A$13,'LIBRO MAYOR'!$B$23,IF('BALANCE DE PRUEBA'!A15='LIBRO MAYOR'!$D$13,'LIBRO MAYOR'!$E$23,IF('BALANCE DE PRUEBA'!A15='LIBRO MAYOR'!$G$13,'LIBRO MAYOR'!$H$23,IF('BALANCE DE PRUEBA'!A15='LIBRO MAYOR'!$A$24,'LIBRO MAYOR'!$B$34,IF('BALANCE DE PRUEBA'!A15='LIBRO MAYOR'!$D$24,'LIBRO MAYOR'!$E$34,IF('BALANCE DE PRUEBA'!A15='LIBRO MAYOR'!$G$24,'LIBRO MAYOR'!$H$34,IF('BALANCE DE PRUEBA'!A15='LIBRO MAYOR'!$A$35,'LIBRO MAYOR'!$B$45,IF('BALANCE DE PRUEBA'!A15='LIBRO MAYOR'!$D$35,'LIBRO MAYOR'!$E$45,IF('BALANCE DE PRUEBA'!A15='LIBRO MAYOR'!$G$35,'LIBRO MAYOR'!$H$45,IF('BALANCE DE PRUEBA'!A15='LIBRO MAYOR'!$A$46,'LIBRO MAYOR'!$B$56,IF('BALANCE DE PRUEBA'!A15='LIBRO MAYOR'!$D$46,'LIBRO MAYOR'!$E$56,IF('BALANCE DE PRUEBA'!A15='LIBRO MAYOR'!$G$46,'LIBRO MAYOR'!$H$56,IF('BALANCE DE PRUEBA'!A15='LIBRO MAYOR'!$A$57,'LIBRO MAYOR'!$B$67,IF('BALANCE DE PRUEBA'!A15='LIBRO MAYOR'!$D$57,'LIBRO MAYOR'!$E$67,IF('BALANCE DE PRUEBA'!A15='LIBRO MAYOR'!$G$57,'LIBRO MAYOR'!$H$67,IF(A15='LIBRO MAYOR'!$A$68,'LIBRO MAYOR'!$B$78,IF('BALANCE DE PRUEBA'!A15='LIBRO MAYOR'!$D$68,'LIBRO MAYOR'!$E$78,IF('BALANCE DE PRUEBA'!A15='LIBRO MAYOR'!$G$68,'LIBRO MAYOR'!$H$78,IF('BALANCE DE PRUEBA'!A15='LIBRO MAYOR'!$A$79,'LIBRO MAYOR'!$B$89,IF('BALANCE DE PRUEBA'!A15='LIBRO MAYOR'!$D$79,'LIBRO MAYOR'!$E$89,IF('BALANCE DE PRUEBA'!A15='LIBRO MAYOR'!$G$79,'LIBRO MAYOR'!$H$89,IF('BALANCE DE PRUEBA'!A15='LIBRO MAYOR'!$A$90,'LIBRO MAYOR'!$B$100,IF('BALANCE DE PRUEBA'!A15='LIBRO MAYOR'!$D$90,'LIBRO MAYOR'!$E$100,IF('BALANCE DE PRUEBA'!A15='LIBRO MAYOR'!$G$90,'LIBRO MAYOR'!$H$100,0))))))))))))))))))))))))))) -> 0 | E15: 0
C16: =IF(A16='LIBRO MAYOR'!$A$1,'LIBRO MAYOR'!$A$12,IF('BALANCE DE PRUEBA'!A16='LIBRO MAYOR'!$D$1,'LIBRO MAYOR'!$D$12,IF('BALANCE DE PRUEBA'!A16='LIBRO MAYOR'!$G$1,'LIBRO MAYOR'!$G$12,IF('BALANCE DE PRUEBA'!A16='LIBRO MAYOR'!$A$13,'LIBRO MAYOR'!$A$23,IF('BALANCE DE PRUEBA'!A16='LIBRO MAYOR'!$D$13,'LIBRO MAYOR'!$D$23,IF('BALANCE DE PRUEBA'!A16='LIBRO MAYOR'!$G$13,'LIBRO MAYOR'!$G$23,IF('BALANCE DE PRUEBA'!A16='LIBRO MAYOR'!$A$24,'LIBRO MAYOR'!$A$34,IF('BALANCE DE PRUEBA'!A16='LIBRO MAYOR'!$D$24,'LIBRO MAYOR'!$D$34,IF('BALANCE DE PRUEBA'!A16='LIBRO MAYOR'!$G$24,'LIBRO MAYOR'!$G$34,IF('BALANCE DE PRUEBA'!A16='LIBRO MAYOR'!$A$35,'LIBRO MAYOR'!$A$45,IF('BALANCE DE PRUEBA'!A16='LIBRO MAYOR'!$D$35,'LIBRO MAYOR'!$D$45,IF('BALANCE DE PRUEBA'!A16='LIBRO MAYOR'!$G$35,'LIBRO MAYOR'!$G$45,IF('BALANCE DE PRUEBA'!A16='LIBRO MAYOR'!$A$46,'LIBRO MAYOR'!$A$56,IF('BALANCE DE PRUEBA'!A16='LIBRO MAYOR'!$D$46,'LIBRO MAYOR'!$D$56,IF('BALANCE DE PRUEBA'!A16='LIBRO MAYOR'!$G$46,'LIBRO MAYOR'!$G$56,IF('BALANCE DE PRUEBA'!A16='LIBRO MAYOR'!$A$57,'LIBRO MAYOR'!$A$67,IF('BALANCE DE PRUEBA'!A16='LIBRO MAYOR'!$D$57,'LIBRO MAYOR'!$D$67,IF('BALANCE DE PRUEBA'!A16='LIBRO MAYOR'!$G$57,'LIBRO MAYOR'!$G$67,IF(A16='LIBRO MAYOR'!$A$68,'LIBRO MAYOR'!$A$78,IF('BALANCE DE PRUEBA'!A16='LIBRO MAYOR'!$D$68,'LIBRO MAYOR'!$D$78,IF('BALANCE DE PRUEBA'!A16='LIBRO MAYOR'!$G$68,'LIBRO MAYOR'!$G$78,IF('BALANCE DE PRUEBA'!A16='LIBRO MAYOR'!$A$79,'LIBRO MAYOR'!$A$89,IF('BALANCE DE PRUEBA'!A16='LIBRO MAYOR'!$D$79,'LIBRO MAYOR'!$D$89,IF('BALANCE DE PRUEBA'!A16='LIBRO MAYOR'!$G$79,'LIBRO MAYOR'!$G$89,IF('BALANCE DE PRUEBA'!A16='LIBRO MAYOR'!$A$90,'LIBRO MAYOR'!$A$100,IF('BALANCE DE PRUEBA'!A16='LIBRO MAYOR'!$D$90,'LIBRO MAYOR'!$D$100,IF('BALANCE DE PRUEBA'!A16='LIBRO MAYOR'!$G$90,'LIBRO MAYOR'!$G$100,0))))))))))))))))))))))))))) -> 0 | D16: =IF(A16='LIBRO MAYOR'!$A$1,'LIBRO MAYOR'!$B$12,IF('BALANCE DE PRUEBA'!A16='LIBRO MAYOR'!$D$1,'LIBRO MAYOR'!$E$12,IF('BALANCE DE PRUEBA'!A16='LIBRO MAYOR'!$G$1,'LIBRO MAYOR'!$H$12,IF('BALANCE DE PRUEBA'!A16='LIBRO MAYOR'!$A$13,'LIBRO MAYOR'!$B$23,IF('BALANCE DE PRUEBA'!A16='LIBRO MAYOR'!$D$13,'LIBRO MAYOR'!$E$23,IF('BALANCE DE PRUEBA'!A16='LIBRO MAYOR'!$G$13,'LIBRO MAYOR'!$H$23,IF('BALANCE DE PRUEBA'!A16='LIBRO MAYOR'!$A$24,'LIBRO MAYOR'!$B$34,IF('BALANCE DE PRUEBA'!A16='LIBRO MAYOR'!$D$24,'LIBRO MAYOR'!$E$34,IF('BALANCE DE PRUEBA'!A16='LIBRO MAYOR'!$G$24,'LIBRO MAYOR'!$H$34,IF('BALANCE DE PRUEBA'!A16='LIBRO MAYOR'!$A$35,'LIBRO MAYOR'!$B$45,IF('BALANCE DE PRUEBA'!A16='LIBRO MAYOR'!$D$35,'LIBRO MAYOR'!$E$45,IF('BALANCE DE PRUEBA'!A16='LIBRO MAYOR'!$G$35,'LIBRO MAYOR'!$H$45,IF('BALANCE DE PRUEBA'!A16='LIBRO MAYOR'!$A$46,'LIBRO MAYOR'!$B$56,IF('BALANCE DE PRUEBA'!A16='LIBRO MAYOR'!$D$46,'LIBRO MAYOR'!$E$56,IF('BALANCE DE PRUEBA'!A16='LIBRO MAYOR'!$G$46,'LIBRO MAYOR'!$H$56,IF('BALANCE DE PRUEBA'!A16='LIBRO MAYOR'!$A$57,'LIBRO MAYOR'!$B$67,IF('BALANCE DE PRUEBA'!A16='LIBRO MAYOR'!$D$57,'LIBRO MAYOR'!$E$67,IF('BALANCE DE PRUEBA'!A16='LIBRO MAYOR'!$G$57,'LIBRO MAYOR'!$H$67,IF(A16='LIBRO MAYOR'!$A$68,'LIBRO MAYOR'!$B$78,IF('BALANCE DE PRUEBA'!A16='LIBRO MAYOR'!$D$68,'LIBRO MAYOR'!$E$78,IF('BALANCE DE PRUEBA'!A16='LIBRO MAYOR'!$G$68,'LIBRO MAYOR'!$H$78,IF('BALANCE DE PRUEBA'!A16='LIBRO MAYOR'!$A$79,'LIBRO MAYOR'!$B$89,IF('BALANCE DE PRUEBA'!A16='LIBRO MAYOR'!$D$79,'LIBRO MAYOR'!$E$89,IF('BALANCE DE PRUEBA'!A16='LIBRO MAYOR'!$G$79,'LIBRO MAYOR'!$H$89,IF('BALANCE DE PRUEBA'!A16='LIBRO MAYOR'!$A$90,'LIBRO MAYOR'!$B$100,IF('BALANCE DE PRUEBA'!A16='LIBRO MAYOR'!$D$90,'LIBRO MAYOR'!$E$100,IF('BALANCE DE PRUEBA'!A16='LIBRO MAYOR'!$G$90,'LIBRO MAYOR'!$H$100,0))))))))))))))))))))))))))) -> 0 | E16: 0
C17: =IF(A17='LIBRO MAYOR'!$A$1,'LIBRO MAYOR'!$A$12,IF('BALANCE DE PRUEBA'!A17='LIBRO MAYOR'!$D$1,'LIBRO MAYOR'!$D$12,IF('BALANCE DE PRUEBA'!A17='LIBRO MAYOR'!$G$1,'LIBRO MAYOR'!$G$12,IF('BALANCE DE PRUEBA'!A17='LIBRO MAYOR'!$A$13,'LIBRO MAYOR'!$A$23,IF('BALANCE DE PRUEBA'!A17='LIBRO MAYOR'!$D$13,'LIBRO MAYOR'!$D$23,IF('BALANCE DE PRUEBA'!A17='LIBRO MAYOR'!$G$13,'LIBRO MAYOR'!$G$23,IF('BALANCE DE PRUEBA'!A17='LIBRO MAYOR'!$A$24,'LIBRO MAYOR'!$A$34,IF('BALANCE DE PRUEBA'!A17='LIBRO MAYOR'!$D$24,'LIBRO MAYOR'!$D$34,IF('BALANCE DE PRUEBA'!A17='LIBRO MAYOR'!$G$24,'LIBRO MAYOR'!$G$34,IF('BALANCE DE PRUEBA'!A17='LIBRO MAYOR'!$A$35,'LIBRO MAYOR'!$A$45,IF('BALANCE DE PRUEBA'!A17='LIBRO MAYOR'!$D$35,'LIBRO MAYOR'!$D$45,IF('BALANCE DE PRUEBA'!A17='LIBRO MAYOR'!$G$35,'LIBRO MAYOR'!$G$45,IF('BALANCE DE PRUEBA'!A17='LIBRO MAYOR'!$A$46,'LIBRO MAYOR'!$A$56,IF('BALANCE DE PRUEBA'!A17='LIBRO MAYOR'!$D$46,'LIBRO MAYOR'!$D$56,IF('BALANCE DE PRUEBA'!A17='LIBRO MAYOR'!$G$46,'LIBRO MAYOR'!$G$56,IF('BALANCE DE PRUEBA'!A17='LIBRO MAYOR'!$A$57,'LIBRO MAYOR'!$A$67,IF('BALANCE DE PRUEBA'!A17='LIBRO MAYOR'!$D$57,'LIBRO MAYOR'!$D$67,IF('BALANCE DE PRUEBA'!A17='LIBRO MAYOR'!$G$57,'LIBRO MAYOR'!$G$67,IF(A17='LIBRO MAYOR'!$A$68,'LIBRO MAYOR'!$A$78,IF('BALANCE DE PRUEBA'!A17='LIBRO MAYOR'!$D$68,'LIBRO MAYOR'!$D$78,IF('BALANCE DE PRUEBA'!A17='LIBRO MAYOR'!$G$68,'LIBRO MAYOR'!$G$78,IF('BALANCE DE PRUEBA'!A17='LIBRO MAYOR'!$A$79,'LIBRO MAYOR'!$A$89,IF('BALANCE DE PRUEBA'!A17='LIBRO MAYOR'!$D$79,'LIBRO MAYOR'!$D$89,IF('BALANCE DE PRUEBA'!A17='LIBRO MAYOR'!$G$79,'LIBRO MAYOR'!$G$89,IF('BALANCE DE PRUEBA'!A17='LIBRO MAYOR'!$A$90,'LIBRO MAYOR'!$A$100,IF('BALANCE DE PRUEBA'!A17='LIBRO MAYOR'!$D$90,'LIBRO MAYOR'!$D$100,IF('BALANCE DE PRUEBA'!A17='LIBRO MAYOR'!$G$90,'LIBRO MAYOR'!$G$100,0))))))))))))))))))))))))))) -> 0 | D17: =IF(A17='LIBRO MAYOR'!$A$1,'LIBRO MAYOR'!$B$12,IF('BALANCE DE PRUEBA'!A17='LIBRO MAYOR'!$D$1,'LIBRO MAYOR'!$E$12,IF('BALANCE DE PRUEBA'!A17='LIBRO MAYOR'!$G$1,'LIBRO MAYOR'!$H$12,IF('BALANCE DE PRUEBA'!A17='LIBRO MAYOR'!$A$13,'LIBRO MAYOR'!$B$23,IF('BALANCE DE PRUEBA'!A17='LIBRO MAYOR'!$D$13,'LIBRO MAYOR'!$E$23,IF('BALANCE DE PRUEBA'!A17='LIBRO MAYOR'!$G$13,'LIBRO MAYOR'!$H$23,IF('BALANCE DE PRUEBA'!A17='LIBRO MAYOR'!$A$24,'LIBRO MAYOR'!$B$34,IF('BALANCE DE PRUEBA'!A17='LIBRO MAYOR'!$D$24,'LIBRO MAYOR'!$E$34,IF('BALANCE DE PRUEBA'!A17='LIBRO MAYOR'!$G$24,'LIBRO MAYOR'!$H$34,IF('BALANCE DE PRUEBA'!A17='LIBRO MAYOR'!$A$35,'LIBRO MAYOR'!$B$45,IF('BALANCE DE PRUEBA'!A17='LIBRO MAYOR'!$D$35,'LIBRO MAYOR'!$E$45,IF('BALANCE DE PRUEBA'!A17='LIBRO MAYOR'!$G$35,'LIBRO MAYOR'!$H$45,IF('BALANCE DE PRUEBA'!A17='LIBRO MAYOR'!$A$46,'LIBRO MAYOR'!$B$56,IF('BALANCE DE PRUEBA'!A17='LIBRO MAYOR'!$D$46,'LIBRO MAYOR'!$E$56,IF('BALANCE DE PRUEBA'!A17='LIBRO MAYOR'!$G$46,'LIBRO MAYOR'!$H$56,IF('BALANCE DE PRUEBA'!A17='LIBRO MAYOR'!$A$57,'LIBRO MAYOR'!$B$67,IF('BALANCE DE PRUEBA'!A17='LIBRO MAYOR'!$D$57,'LIBRO MAYOR'!$E$67,IF('BALANCE DE PRUEBA'!A17='LIBRO MAYOR'!$G$57,'LIBRO MAYOR'!$H$67,IF(A17='LIBRO MAYOR'!$A$68,'LIBRO MAYOR'!$B$78,IF('BALANCE DE PRUEBA'!A17='LIBRO MAYOR'!$D$68,'LIBRO MAYOR'!$E$78,IF('BALANCE DE PRUEBA'!A17='LIBRO MAYOR'!$G$68,'LIBRO MAYOR'!$H$78,IF('BALANCE DE PRUEBA'!A17='LIBRO MAYOR'!$A$79,'LIBRO MAYOR'!$B$89,IF('BALANCE DE PRUEBA'!A17='LIBRO MAYOR'!$D$79,'LIBRO MAYOR'!$E$89,IF('BALANCE DE PRUEBA'!A17='LIBRO MAYOR'!$G$79,'LIBRO MAYOR'!$H$89,IF('BALANCE DE PRUEBA'!A17='LIBRO MAYOR'!$A$90,'LIBRO MAYOR'!$B$100,IF('BALANCE DE PRUEBA'!A17='LIBRO MAYOR'!$D$90,'LIBRO MAYOR'!$E$100,IF('BALANCE DE PRUEBA'!A17='LIBRO MAYOR'!$G$90,'LIBRO MAYOR'!$H$100,0))))))))))))))))))))))))))) -> 0 | E17: 0
C18: =IF(A18='LIBRO MAYOR'!$A$1,'LIBRO MAYOR'!$A$12,IF('BALANCE DE PRUEBA'!A18='LIBRO MAYOR'!$D$1,'LIBRO MAYOR'!$D$12,IF('BALANCE DE PRUEBA'!A18='LIBRO MAYOR'!$G$1,'LIBRO MAYOR'!$G$12,IF('BALANCE DE PRUEBA'!A18='LIBRO MAYOR'!$A$13,'LIBRO MAYOR'!$A$23,IF('BALANCE DE PRUEBA'!A18='LIBRO MAYOR'!$D$13,'LIBRO MAYOR'!$D$23,IF('BALANCE DE PRUEBA'!A18='LIBRO MAYOR'!$G$13,'LIBRO MAYOR'!$G$23,IF('BALANCE DE PRUEBA'!A18='LIBRO MAYOR'!$A$24,'LIBRO MAYOR'!$A$34,IF('BALANCE DE PRUEBA'!A18='LIBRO MAYOR'!$D$24,'LIBRO MAYOR'!$D$34,IF('BALANCE DE PRUEBA'!A18='LIBRO MAYOR'!$G$24,'LIBRO MAYOR'!$G$34,IF('BALANCE DE PRUEBA'!A18='LIBRO MAYOR'!$A$35,'LIBRO MAYOR'!$A$45,IF('BALANCE DE PRUEBA'!A18='LIBRO MAYOR'!$D$35,'LIBRO MAYOR'!$D$45,IF('BALANCE DE PRUEBA'!A18='LIBRO MAYOR'!$G$35,'LIBRO MAYOR'!$G$45,IF('BALANCE DE PRUEBA'!A18='LIBRO MAYOR'!$A$46,'LIBRO MAYOR'!$A$56,IF('BALANCE DE PRUEBA'!A18='LIBRO MAYOR'!$D$46,'LIBRO MAYOR'!$D$56,IF('BALANCE DE PRUEBA'!A18='LIBRO MAYOR'!$G$46,'LIBRO MAYOR'!$G$56,IF('BALANCE DE PRUEBA'!A18='LIBRO MAYOR'!$A$57,'LIBRO MAYOR'!$A$67,IF('BALANCE DE PRUEBA'!A18='LIBRO MAYOR'!$D$57,'LIBRO MAYOR'!$D$67,IF('BALANCE DE PRUEBA'!A18='LIBRO MAYOR'!$G$57,'LIBRO MAYOR'!$G$67,IF(A18='LIBRO MAYOR'!$A$68,'LIBRO MAYOR'!$A$78,IF('BALANCE DE PRUEBA'!A18='LIBRO MAYOR'!$D$68,'LIBRO MAYOR'!$D$78,IF('BALANCE DE PRUEBA'!A18='LIBRO MAYOR'!$G$68,'LIBRO MAYOR'!$G$78,IF('BALANCE DE PRUEBA'!A18='LIBRO MAYOR'!$A$79,'LIBRO MAYOR'!$A$89,IF('BALANCE DE PRUEBA'!A18='LIBRO MAYOR'!$D$79,'LIBRO MAYOR'!$D$89,IF('BALANCE DE PRUEBA'!A18='LIBRO MAYOR'!$G$79,'LIBRO MAYOR'!$G$89,IF('BALANCE DE PRUEBA'!A18='LIBRO MAYOR'!$A$90,'LIBRO MAYOR'!$A$100,IF('BALANCE DE PRUEBA'!A18='LIBRO MAYOR'!$D$90,'LIBRO MAYOR'!$D$100,IF('BALANCE DE PRUEBA'!A18='LIBRO MAYOR'!$G$90,'LIBRO MAYOR'!$G$100,0))))))))))))))))))))))))))) -> 0 | D18: =IF(A18='LIBRO MAYOR'!$A$1,'LIBRO MAYOR'!$B$12,IF('BALANCE DE PRUEBA'!A18='LIBRO MAYOR'!$D$1,'LIBRO MAYOR'!$E$12,IF('BALANCE DE PRUEBA'!A18='LIBRO MAYOR'!$G$1,'LIBRO MAYOR'!$H$12,IF('BALANCE DE PRUEBA'!A18='LIBRO MAYOR'!$A$13,'LIBRO MAYOR'!$B$23,IF('BALANCE DE PRUEBA'!A18='LIBRO MAYOR'!$D$13,'LIBRO MAYOR'!$E$23,IF('BALANCE DE PRUEBA'!A18='LIBRO MAYOR'!$G$13,'LIBRO MAYOR'!$H$23,IF('BALANCE DE PRUEBA'!A18='LIBRO MAYOR'!$A$24,'LIBRO MAYOR'!$B$34,IF('BALANCE DE PRUEBA'!A18='LIBRO MAYOR'!$D$24,'LIBRO MAYOR'!$E$34,IF('BALANCE DE PRUEBA'!A18='LIBRO MAYOR'!$G$24,'LIBRO MAYOR'!$H$34,IF('BALANCE DE PRUEBA'!A18='LIBRO MAYOR'!$A$35,'LIBRO MAYOR'!$B$45,IF('BALANCE DE PRUEBA'!A18='LIBRO MAYOR'!$D$35,'LIBRO MAYOR'!$E$45,IF('BALANCE DE PRUEBA'!A18='LIBRO MAYOR'!$G$35,'LIBRO MAYOR'!$H$45,IF('BALANCE DE PRUEBA'!A18='LIBRO MAYOR'!$A$46,'LIBRO MAYOR'!$B$56,IF('BALANCE DE PRUEBA'!A18='LIBRO MAYOR'!$D$46,'LIBRO MAYOR'!$E$56,IF('BALANCE DE PRUEBA'!A18='LIBRO MAYOR'!$G$46,'LIBRO MAYOR'!$H$56,IF('BALANCE DE PRUEBA'!A18='LIBRO MAYOR'!$A$57,'LIBRO MAYOR'!$B$67,IF('BALANCE DE PRUEBA'!A18='LIBRO MAYOR'!$D$57,'LIBRO MAYOR'!$E$67,IF('BALANCE DE PRUEBA'!A18='LIBRO MAYOR'!$G$57,'LIBRO MAYOR'!$H$67,IF(A18='LIBRO MAYOR'!$A$68,'LIBRO MAYOR'!$B$78,IF('BALANCE DE PRUEBA'!A18='LIBRO MAYOR'!$D$68,'LIBRO MAYOR'!$E$78,IF('BALANCE DE PRUEBA'!A18='LIBRO MAYOR'!$G$68,'LIBRO MAYOR'!$H$78,IF('BALANCE DE PRUEBA'!A18='LIBRO MAYOR'!$A$79,'LIBRO MAYOR'!$B$89,IF('BALANCE DE PRUEBA'!A18='LIBRO MAYOR'!$D$79,'LIBRO MAYOR'!$E$89,IF('BALANCE DE PRUEBA'!A18='LIBRO MAYOR'!$G$79,'LIBRO MAYOR'!$H$89,IF('BALANCE DE PRUEBA'!A18='LIBRO MAYOR'!$A$90,'LIBRO MAYOR'!$B$100,IF('BALANCE DE PRUEBA'!A18='LIBRO MAYOR'!$D$90,'LIBRO MAYOR'!$E$100,IF('BALANCE DE PRUEBA'!A18='LIBRO MAYOR'!$G$90,'LIBRO MAYOR'!$H$100,0))))))))))))))))))))))))))) -> 0 | E18: 0
C19: =IF(A19='LIBRO MAYOR'!$A$1,'LIBRO MAYOR'!$A$12,IF('BALANCE DE PRUEBA'!A19='LIBRO MAYOR'!$D$1,'LIBRO MAYOR'!$D$12,IF('BALANCE DE PRUEBA'!A19='LIBRO MAYOR'!$G$1,'LIBRO MAYOR'!$G$12,IF('BALANCE DE PRUEBA'!A19='LIBRO MAYOR'!$A$13,'LIBRO MAYOR'!$A$23,IF('BALANCE DE PRUEBA'!A19='LIBRO MAYOR'!$D$13,'LIBRO MAYOR'!$D$23,IF('BALANCE DE PRUEBA'!A19='LIBRO MAYOR'!$G$13,'LIBRO MAYOR'!$G$23,IF('BALANCE DE PRUEBA'!A19='LIBRO MAYOR'!$A$24,'LIBRO MAYOR'!$A$34,IF('BALANCE DE PRUEBA'!A19='LIBRO MAYOR'!$D$24,'LIBRO MAYOR'!$D$34,IF('BALANCE DE PRUEBA'!A19='LIBRO MAYOR'!$G$24,'LIBRO MAYOR'!$G$34,IF('BALANCE DE PRUEBA'!A19='LIBRO MAYOR'!$A$35,'LIBRO MAYOR'!$A$45,IF('BALANCE DE PRUEBA'!A19='LIBRO MAYOR'!$D$35,'LIBRO MAYOR'!$D$45,IF('BALANCE DE PRUEBA'!A19='LIBRO MAYOR'!$G$35,'LIBRO MAYOR'!$G$45,IF('BALANCE DE PRUEBA'!A19='LIBRO MAYOR'!$A$46,'LIBRO MAYOR'!$A$56,IF('BALANCE DE PRUEBA'!A19='LIBRO MAYOR'!$D$46,'LIBRO MAYOR'!$D$56,IF('BALANCE DE PRUEBA'!A19='LIBRO MAYOR'!$G$46,'LIBRO MAYOR'!$G$56,IF('BALANCE DE PRUEBA'!A19='LIBRO MAYOR'!$A$57,'LIBRO MAYOR'!$A$67,IF('BALANCE DE PRUEBA'!A19='LIBRO MAYOR'!$D$57,'LIBRO MAYOR'!$D$67,IF('BALANCE DE PRUEBA'!A19='LIBRO MAYOR'!$G$57,'LIBRO MAYOR'!$G$67,IF(A19='LIBRO MAYOR'!$A$68,'LIBRO MAYOR'!$A$78,IF('BALANCE DE PRUEBA'!A19='LIBRO MAYOR'!$D$68,'LIBRO MAYOR'!$D$78,IF('BALANCE DE PRUEBA'!A19='LIBRO MAYOR'!$G$68,'LIBRO MAYOR'!$G$78,IF('BALANCE DE PRUEBA'!A19='LIBRO MAYOR'!$A$79,'LIBRO MAYOR'!$A$89,IF('BALANCE DE PRUEBA'!A19='LIBRO MAYOR'!$D$79,'LIBRO MAYOR'!$D$89,IF('BALANCE DE PRUEBA'!A19='LIBRO MAYOR'!$G$79,'LIBRO MAYOR'!$G$89,IF('BALANCE DE PRUEBA'!A19='LIBRO MAYOR'!$A$90,'LIBRO MAYOR'!$A$100,IF('BALANCE DE PRUEBA'!A19='LIBRO MAYOR'!$D$90,'LIBRO MAYOR'!$D$100,IF('BALANCE DE PRUEBA'!A19='LIBRO MAYOR'!$G$90,'LIBRO MAYOR'!$G$100,0))))))))))))))))))))))))))) -> 0 | D19: =IF(A19='LIBRO MAYOR'!$A$1,'LIBRO MAYOR'!$B$12,IF('BALANCE DE PRUEBA'!A19='LIBRO MAYOR'!$D$1,'LIBRO MAYOR'!$E$12,IF('BALANCE DE PRUEBA'!A19='LIBRO MAYOR'!$G$1,'LIBRO MAYOR'!$H$12,IF('BALANCE DE PRUEBA'!A19='LIBRO MAYOR'!$A$13,'LIBRO MAYOR'!$B$23,IF('BALANCE DE PRUEBA'!A19='LIBRO MAYOR'!$D$13,'LIBRO MAYOR'!$E$23,IF('BALANCE DE PRUEBA'!A19='LIBRO MAYOR'!$G$13,'LIBRO MAYOR'!$H$23,IF('BALANCE DE PRUEBA'!A19='LIBRO MAYOR'!$A$24,'LIBRO MAYOR'!$B$34,IF('BALANCE DE PRUEBA'!A19='LIBRO MAYOR'!$D$24,'LIBRO MAYOR'!$E$34,IF('BALANCE DE PRUEBA'!A19='LIBRO MAYOR'!$G$24,'LIBRO MAYOR'!$H$34,IF('BALANCE DE PRUEBA'!A19='LIBRO MAYOR'!$A$35,'LIBRO MAYOR'!$B$45,IF('BALANCE DE PRUEBA'!A19='LIBRO MAYOR'!$D$35,'LIBRO MAYOR'!$E$45,IF('BALANCE DE PRUEBA'!A19='LIBRO MAYOR'!$G$35,'LIBRO MAYOR'!$H$45,IF('BALANCE DE PRUEBA'!A19='LIBRO MAYOR'!$A$46,'LIBRO MAYOR'!$B$56,IF('BALANCE DE PRUEBA'!A19='LIBRO MAYOR'!$D$46,'LIBRO MAYOR'!$E$56,IF('BALANCE DE PRUEBA'!A19='LIBRO MAYOR'!$G$46,'LIBRO MAYOR'!$H$56,IF('BALANCE DE PRUEBA'!A19='LIBRO MAYOR'!$A$57,'LIBRO MAYOR'!$B$67,IF('BALANCE DE PRUEBA'!A19='LIBRO MAYOR'!$D$57,'LIBRO MAYOR'!$E$67,IF('BALANCE DE PRUEBA'!A19='LIBRO MAYOR'!$G$57,'LIBRO MAYOR'!$H$67,IF(A19='LIBRO MAYOR'!$A$68,'LIBRO MAYOR'!$B$78,IF('BALANCE DE PRUEBA'!A19='LIBRO MAYOR'!$D$68,'LIBRO MAYOR'!$E$78,IF('BALANCE DE PRUEBA'!A19='LIBRO MAYOR'!$G$68,'LIBRO MAYOR'!$H$78,IF('BALANCE DE PRUEBA'!A19='LIBRO MAYOR'!$A$79,'LIBRO MAYOR'!$B$89,IF('BALANCE DE PRUEBA'!A19='LIBRO MAYOR'!$D$79,'LIBRO MAYOR'!$E$89,IF('BALANCE DE PRUEBA'!A19='LIBRO MAYOR'!$G$79,'LIBRO MAYOR'!$H$89,IF('BALANCE DE PRUEBA'!A19='LIBRO MAYOR'!$A$90,'LIBRO MAYOR'!$B$100,IF('BALANCE DE PRUEBA'!A19='LIBRO MAYOR'!$D$90,'LIBRO MAYOR'!$E$100,IF('BALANCE DE PRUEBA'!A19='LIBRO MAYOR'!$G$90,'LIBRO MAYOR'!$H$100,0))))))))))))))))))))))))))) -> 0 | E19: 0
C20: =IF(A20='LIBRO MAYOR'!$A$1,'LIBRO MAYOR'!$A$12,IF('BALANCE DE PRUEBA'!A20='LIBRO MAYOR'!$D$1,'LIBRO MAYOR'!$D$12,IF('BALANCE DE PRUEBA'!A20='LIBRO MAYOR'!$G$1,'LIBRO MAYOR'!$G$12,IF('BALANCE DE PRUEBA'!A20='LIBRO MAYOR'!$A$13,'LIBRO MAYOR'!$A$23,IF('BALANCE DE PRUEBA'!A20='LIBRO MAYOR'!$D$13,'LIBRO MAYOR'!$D$23,IF('BALANCE DE PRUEBA'!A20='LIBRO MAYOR'!$G$13,'LIBRO MAYOR'!$G$23,IF('BALANCE DE PRUEBA'!A20='LIBRO MAYOR'!$A$24,'LIBRO MAYOR'!$A$34,IF('BALANCE DE PRUEBA'!A20='LIBRO MAYOR'!$D$24,'LIBRO MAYOR'!$D$34,IF('BALANCE DE PRUEBA'!A20='LIBRO MAYOR'!$G$24,'LIBRO MAYOR'!$G$34,IF('BALANCE DE PRUEBA'!A20='LIBRO MAYOR'!$A$35,'LIBRO MAYOR'!$A$45,IF('BALANCE DE PRUEBA'!A20='LIBRO MAYOR'!$D$35,'LIBRO MAYOR'!$D$45,IF('BALANCE DE PRUEBA'!A20='LIBRO MAYOR'!$G$35,'LIBRO MAYOR'!$G$45,IF('BALANCE DE PRUEBA'!A20='LIBRO MAYOR'!$A$46,'LIBRO MAYOR'!$A$56,IF('BALANCE DE PRUEBA'!A20='LIBRO MAYOR'!$D$46,'LIBRO MAYOR'!$D$56,IF('BALANCE DE PRUEBA'!A20='LIBRO MAYOR'!$G$46,'LIBRO MAYOR'!$G$56,IF('BALANCE DE PRUEBA'!A20='LIBRO MAYOR'!$A$57,'LIBRO MAYOR'!$A$67,IF('BALANCE DE PRUEBA'!A20='LIBRO MAYOR'!$D$57,'LIBRO MAYOR'!$D$67,IF('BALANCE DE PRUEBA'!A20='LIBRO MAYOR'!$G$57,'LIBRO MAYOR'!$G$67,IF(A20='LIBRO MAYOR'!$A$68,'LIBRO MAYOR'!$A$78,IF('BALANCE DE PRUEBA'!A20='LIBRO MAYOR'!$D$68,'LIBRO MAYOR'!$D$78,IF('BALANCE DE PRUEBA'!A20='LIBRO MAYOR'!$G$68,'LIBRO MAYOR'!$G$78,IF('BALANCE DE PRUEBA'!A20='LIBRO MAYOR'!$A$79,'LIBRO MAYOR'!$A$89,IF('BALANCE DE PRUEBA'!A20='LIBRO MAYOR'!$D$79,'LIBRO MAYOR'!$D$89,IF('BALANCE DE PRUEBA'!A20='LIBRO MAYOR'!$G$79,'LIBRO MAYOR'!$G$89,IF('BALANCE DE PRUEBA'!A20='LIBRO MAYOR'!$A$90,'LIBRO MAYOR'!$A$100,IF('BALANCE DE PRUEBA'!A20='LIBRO MAYOR'!$D$90,'LIBRO MAYOR'!$D$100,IF('BALANCE DE PRUEBA'!A20='LIBRO MAYOR'!$G$90,'LIBRO MAYOR'!$G$100,0))))))))))))))))))))))))))) -> 0 | D20: =IF(A20='LIBRO MAYOR'!$A$1,'LIBRO MAYOR'!$B$12,IF('BALANCE DE PRUEBA'!A20='LIBRO MAYOR'!$D$1,'LIBRO MAYOR'!$E$12,IF('BALANCE DE PRUEBA'!A20='LIBRO MAYOR'!$G$1,'LIBRO MAYOR'!$H$12,IF('BALANCE DE PRUEBA'!A20='LIBRO MAYOR'!$A$13,'LIBRO MAYOR'!$B$23,IF('BALANCE DE PRUEBA'!A20='LIBRO MAYOR'!$D$13,'LIBRO MAYOR'!$E$23,IF('BALANCE DE PRUEBA'!A20='LIBRO MAYOR'!$G$13,'LIBRO MAYOR'!$H$23,IF('BALANCE DE PRUEBA'!A20='LIBRO MAYOR'!$A$24,'LIBRO MAYOR'!$B$34,IF('BALANCE DE PRUEBA'!A20='LIBRO MAYOR'!$D$24,'LIBRO MAYOR'!$E$34,IF('BALANCE DE PRUEBA'!A20='LIBRO MAYOR'!$G$24,'LIBRO MAYOR'!$H$34,IF('BALANCE DE PRUEBA'!A20='LIBRO MAYOR'!$A$35,'LIBRO MAYOR'!$B$45,IF('BALANCE DE PRUEBA'!A20='LIBRO MAYOR'!$D$35,'LIBRO MAYOR'!$E$45,IF('BALANCE DE PRUEBA'!A20='LIBRO MAYOR'!$G$35,'LIBRO MAYOR'!$H$45,IF('BALANCE DE PRUEBA'!A20='LIBRO MAYOR'!$A$46,'LIBRO MAYOR'!$B$56,IF('BALANCE DE PRUEBA'!A20='LIBRO MAYOR'!$D$46,'LIBRO MAYOR'!$E$56,IF('BALANCE DE PRUEBA'!A20='LIBRO MAYOR'!$G$46,'LIBRO MAYOR'!$H$56,IF('BALANCE DE PRUEBA'!A20='LIBRO MAYOR'!$A$57,'LIBRO MAYOR'!$B$67,IF('BALANCE DE PRUEBA'!A20='LIBRO MAYOR'!$D$57,'LIBRO MAYOR'!$E$67,IF('BALANCE DE PRUEBA'!A20='LIBRO MAYOR'!$G$57,'LIBRO MAYOR'!$H$67,IF(A20='LIBRO MAYOR'!$A$68,'LIBRO MAYOR'!$B$78,IF('BALANCE DE PRUEBA'!A20='LIBRO MAYOR'!$D$68,'LIBRO MAYOR'!$E$78,IF('BALANCE DE PRUEBA'!A20='LIBRO MAYOR'!$G$68,'LIBRO MAYOR'!$H$78,IF('BALANCE DE PRUEBA'!A20='LIBRO MAYOR'!$A$79,'LIBRO MAYOR'!$B$89,IF('BALANCE DE PRUEBA'!A20='LIBRO MAYOR'!$D$79,'LIBRO MAYOR'!$E$89,IF('BALANCE DE PRUEBA'!A20='LIBRO MAYOR'!$G$79,'LIBRO MAYOR'!$H$89,IF('BALANCE DE PRUEBA'!A20='LIBRO MAYOR'!$A$90,'LIBRO MAYOR'!$B$100,IF('BALANCE DE PRUEBA'!A20='LIBRO MAYOR'!$D$90,'LIBRO MAYOR'!$E$100,IF('BALANCE DE PRUEBA'!A20='LIBRO MAYOR'!$G$90,'LIBRO MAYOR'!$H$100,0))))))))))))))))))))))))))) -> 0 | E20: 0
C21: =IF(A21='LIBRO MAYOR'!$A$1,'LIBRO MAYOR'!$A$12,IF('BALANCE DE PRUEBA'!A21='LIBRO MAYOR'!$D$1,'LIBRO MAYOR'!$D$12,IF('BALANCE DE PRUEBA'!A21='LIBRO MAYOR'!$G$1,'LIBRO MAYOR'!$G$12,IF('BALANCE DE PRUEBA'!A21='LIBRO MAYOR'!$A$13,'LIBRO MAYOR'!$A$23,IF('BALANCE DE PRUEBA'!A21='LIBRO MAYOR'!$D$13,'LIBRO MAYOR'!$D$23,IF('BALANCE DE PRUEBA'!A21='LIBRO MAYOR'!$G$13,'LIBRO MAYOR'!$G$23,IF('BALANCE DE PRUEBA'!A21='LIBRO MAYOR'!$A$24,'LIBRO MAYOR'!$A$34,IF('BALANCE DE PRUEBA'!A21='LIBRO MAYOR'!$D$24,'LIBRO MAYOR'!$D$34,IF('BALANCE DE PRUEBA'!A21='LIBRO MAYOR'!$G$24,'LIBRO MAYOR'!$G$34,IF('BALANCE DE PRUEBA'!A21='LIBRO MAYOR'!$A$35,'LIBRO MAYOR'!$A$45,IF('BALANCE DE PRUEBA'!A21='LIBRO MAYOR'!$D$35,'LIBRO MAYOR'!$D$45,IF('BALANCE DE PRUEBA'!A21='LIBRO MAYOR'!$G$35,'LIBRO MAYOR'!$G$45,IF('BALANCE DE PRUEBA'!A21='LIBRO MAYOR'!$A$46,'LIBRO MAYOR'!$A$56,IF('BALANCE DE PRUEBA'!A21='LIBRO MAYOR'!$D$46,'LIBRO MAYOR'!$D$56,IF('BALANCE DE PRUEBA'!A21='LIBRO MAYOR'!$G$46,'LIBRO MAYOR'!$G$56,IF('BALANCE DE PRUEBA'!A21='LIBRO MAYOR'!$A$57,'LIBRO MAYOR'!$A$67,IF('BALANCE DE PRUEBA'!A21='LIBRO MAYOR'!$D$57,'LIBRO MAYOR'!$D$67,IF('BALANCE DE PRUEBA'!A21='LIBRO MAYOR'!$G$57,'LIBRO MAYOR'!$G$67,IF(A21='LIBRO MAYOR'!$A$68,'LIBRO MAYOR'!$A$78,IF('BALANCE DE PRUEBA'!A21='LIBRO MAYOR'!$D$68,'LIBRO MAYOR'!$D$78,IF('BALANCE DE PRUEBA'!A21='LIBRO MAYOR'!$G$68,'LIBRO MAYOR'!$G$78,IF('BALANCE DE PRUEBA'!A21='LIBRO MAYOR'!$A$79,'LIBRO MAYOR'!$A$89,IF('BALANCE DE PRUEBA'!A21='LIBRO MAYOR'!$D$79,'LIBRO MAYOR'!$D$89,IF('BALANCE DE PRUEBA'!A21='LIBRO MAYOR'!$G$79,'LIBRO MAYOR'!$G$89,IF('BALANCE DE PRUEBA'!A21='LIBRO MAYOR'!$A$90,'LIBRO MAYOR'!$A$100,IF('BALANCE DE PRUEBA'!A21='LIBRO MAYOR'!$D$90,'LIBRO MAYOR'!$D$100,IF('BALANCE DE PRUEBA'!A21='LIBRO MAYOR'!$G$90,'LIBRO MAYOR'!$G$100,0))))))))))))))))))))))))))) -> 0 | D21: =IF(A21='LIBRO MAYOR'!$A$1,'LIBRO MAYOR'!$B$12,IF('BALANCE DE PRUEBA'!A21='LIBRO MAYOR'!$D$1,'LIBRO MAYOR'!$E$12,IF('BALANCE DE PRUEBA'!A21='LIBRO MAYOR'!$G$1,'LIBRO MAYOR'!$H$12,IF('BALANCE DE PRUEBA'!A21='LIBRO MAYOR'!$A$13,'LIBRO MAYOR'!$B$23,IF('BALANCE DE PRUEBA'!A21='LIBRO MAYOR'!$D$13,'LIBRO MAYOR'!$E$23,IF('BALANCE DE PRUEBA'!A21='LIBRO MAYOR'!$G$13,'LIBRO MAYOR'!$H$23,IF('BALANCE DE PRUEBA'!A21='LIBRO MAYOR'!$A$24,'LIBRO MAYOR'!$B$34,IF('BALANCE DE PRUEBA'!A21='LIBRO MAYOR'!$D$24,'LIBRO MAYOR'!$E$34,IF('BALANCE DE PRUEBA'!A21='LIBRO MAYOR'!$G$24,'LIBRO MAYOR'!$H$34,IF('BALANCE DE PRUEBA'!A21='LIBRO MAYOR'!$A$35,'LIBRO MAYOR'!$B$45,IF('BALANCE DE PRUEBA'!A21='LIBRO MAYOR'!$D$35,'LIBRO MAYOR'!$E$45,IF('BALANCE DE PRUEBA'!A21='LIBRO MAYOR'!$G$35,'LIBRO MAYOR'!$H$45,IF('BALANCE DE PRUEBA'!A21='LIBRO MAYOR'!$A$46,'LIBRO MAYOR'!$B$56,IF('BALANCE DE PRUEBA'!A21='LIBRO MAYOR'!$D$46,'LIBRO MAYOR'!$E$56,IF('BALANCE DE PRUEBA'!A21='LIBRO MAYOR'!$G$46,'LIBRO MAYOR'!$H$56,IF('BALANCE DE PRUEBA'!A21='LIBRO MAYOR'!$A$57,'LIBRO MAYOR'!$B$67,IF('BALANCE DE PRUEBA'!A21='LIBRO MAYOR'!$D$57,'LIBRO MAYOR'!$E$67,IF('BALANCE DE PRUEBA'!A21='LIBRO MAYOR'!$G$57,'LIBRO MAYOR'!$H$67,IF(A21='LIBRO MAYOR'!$A$68,'LIBRO MAYOR'!$B$78,IF('BALANCE DE PRUEBA'!A21='LIBRO MAYOR'!$D$68,'LIBRO MAYOR'!$E$78,IF('BALANCE DE PRUEBA'!A21='LIBRO MAYOR'!$G$68,'LIBRO MAYOR'!$H$78,IF('BALANCE DE PRUEBA'!A21='LIBRO MAYOR'!$A$79,'LIBRO MAYOR'!$B$89,IF('BALANCE DE PRUEBA'!A21='LIBRO MAYOR'!$D$79,'LIBRO MAYOR'!$E$89,IF('BALANCE DE PRUEBA'!A21='LIBRO MAYOR'!$G$79,'LIBRO MAYOR'!$H$89,IF('BALANCE DE PRUEBA'!A21='LIBRO MAYOR'!$A$90,'LIBRO MAYOR'!$B$100,IF('BALANCE DE PRUEBA'!A21='LIBRO MAYOR'!$D$90,'LIBRO MAYOR'!$E$100,IF('BALANCE DE PRUEBA'!A21='LIBRO MAYOR'!$G$90,'LIBRO MAYOR'!$H$100,0))))))))))))))))))))))))))) -> 0 | E21: 0
C22: =IF(A22='LIBRO MAYOR'!$A$1,'LIBRO MAYOR'!$A$12,IF('BALANCE DE PRUEBA'!A22='LIBRO MAYOR'!$D$1,'LIBRO MAYOR'!$D$12,IF('BALANCE DE PRUEBA'!A22='LIBRO MAYOR'!$G$1,'LIBRO MAYOR'!$G$12,IF('BALANCE DE PRUEBA'!A22='LIBRO MAYOR'!$A$13,'LIBRO MAYOR'!$A$23,IF('BALANCE DE PRUEBA'!A22='LIBRO MAYOR'!$D$13,'LIBRO MAYOR'!$D$23,IF('BALANCE DE PRUEBA'!A22='LIBRO MAYOR'!$G$13,'LIBRO MAYOR'!$G$23,IF('BALANCE DE PRUEBA'!A22='LIBRO MAYOR'!$A$24,'LIBRO MAYOR'!$A$34,IF('BALANCE DE PRUEBA'!A22='LIBRO MAYOR'!$D$24,'LIBRO MAYOR'!$D$34,IF('BALANCE DE PRUEBA'!A22='LIBRO MAYOR'!$G$24,'LIBRO MAYOR'!$G$34,IF('BALANCE DE PRUEBA'!A22='LIBRO MAYOR'!$A$35,'LIBRO MAYOR'!$A$45,IF('BALANCE DE PRUEBA'!A22='LIBRO MAYOR'!$D$35,'LIBRO MAYOR'!$D$45,IF('BALANCE DE PRUEBA'!A22='LIBRO MAYOR'!$G$35,'LIBRO MAYOR'!$G$45,IF('BALANCE DE PRUEBA'!A22='LIBRO MAYOR'!$A$46,'LIBRO MAYOR'!$A$56,IF('BALANCE DE PRUEBA'!A22='LIBRO MAYOR'!$D$46,'LIBRO MAYOR'!$D$56,IF('BALANCE DE PRUEBA'!A22='LIBRO MAYOR'!$G$46,'LIBRO MAYOR'!$G$56,IF('BALANCE DE PRUEBA'!A22='LIBRO MAYOR'!$A$57,'LIBRO MAYOR'!$A$67,IF('BALANCE DE PRUEBA'!A22='LIBRO MAYOR'!$D$57,'LIBRO MAYOR'!$D$67,IF('BALANCE DE PRUEBA'!A22='LIBRO MAYOR'!$G$57,'LIBRO MAYOR'!$G$67,IF(A22='LIBRO MAYOR'!$A$68,'LIBRO MAYOR'!$A$78,IF('BALANCE DE PRUEBA'!A22='LIBRO MAYOR'!$D$68,'LIBRO MAYOR'!$D$78,IF('BALANCE DE PRUEBA'!A22='LIBRO MAYOR'!$G$68,'LIBRO MAYOR'!$G$78,IF('BALANCE DE PRUEBA'!A22='LIBRO MAYOR'!$A$79,'LIBRO MAYOR'!$A$89,IF('BALANCE DE PRUEBA'!A22='LIBRO MAYOR'!$D$79,'LIBRO MAYOR'!$D$89,IF('BALANCE DE PRUEBA'!A22='LIBRO MAYOR'!$G$79,'LIBRO MAYOR'!$G$89,IF('BALANCE DE PRUEBA'!A22='LIBRO MAYOR'!$A$90,'LIBRO MAYOR'!$A$100,IF('BALANCE DE PRUEBA'!A22='LIBRO MAYOR'!$D$90,'LIBRO MAYOR'!$D$100,IF('BALANCE DE PRUEBA'!A22='LIBRO MAYOR'!$G$90,'LIBRO MAYOR'!$G$100,0))))))))))))))))))))))))))) -> 0 | D22: =IF(A22='LIBRO MAYOR'!$A$1,'LIBRO MAYOR'!$B$12,IF('BALANCE DE PRUEBA'!A22='LIBRO MAYOR'!$D$1,'LIBRO MAYOR'!$E$12,IF('BALANCE DE PRUEBA'!A22='LIBRO MAYOR'!$G$1,'LIBRO MAYOR'!$H$12,IF('BALANCE DE PRUEBA'!A22='LIBRO MAYOR'!$A$13,'LIBRO MAYOR'!$B$23,IF('BALANCE DE PRUEBA'!A22='LIBRO MAYOR'!$D$13,'LIBRO MAYOR'!$E$23,IF('BALANCE DE PRUEBA'!A22='LIBRO MAYOR'!$G$13,'LIBRO MAYOR'!$H$23,IF('BALANCE DE PRUEBA'!A22='LIBRO MAYOR'!$A$24,'LIBRO MAYOR'!$B$34,IF('BALANCE DE PRUEBA'!A22='LIBRO MAYOR'!$D$24,'LIBRO MAYOR'!$E$34,IF('BALANCE DE PRUEBA'!A22='LIBRO MAYOR'!$G$24,'LIBRO MAYOR'!$H$34,IF('BALANCE DE PRUEBA'!A22='LIBRO MAYOR'!$A$35,'LIBRO MAYOR'!$B$45,IF('BALANCE DE PRUEBA'!A22='LIBRO MAYOR'!$D$35,'LIBRO MAYOR'!$E$45,IF('BALANCE DE PRUEBA'!A22='LIBRO MAYOR'!$G$35,'LIBRO MAYOR'!$H$45,IF('BALANCE DE PRUEBA'!A22='LIBRO MAYOR'!$A$46,'LIBRO MAYOR'!$B$56,IF('BALANCE DE PRUEBA'!A22='LIBRO MAYOR'!$D$46,'LIBRO MAYOR'!$E$56,IF('BALANCE DE PRUEBA'!A22='LIBRO MAYOR'!$G$46,'LIBRO MAYOR'!$H$56,IF('BALANCE DE PRUEBA'!A22='LIBRO MAYOR'!$A$57,'LIBRO MAYOR'!$B$67,IF('BALANCE DE PRUEBA'!A22='LIBRO MAYOR'!$D$57,'LIBRO MAYOR'!$E$67,IF('BALANCE DE PRUEBA'!A22='LIBRO MAYOR'!$G$57,'LIBRO MAYOR'!$H$67,IF(A22='LIBRO MAYOR'!$A$68,'LIBRO MAYOR'!$B$78,IF('BALANCE DE PRUEBA'!A22='LIBRO MAYOR'!$D$68,'LIBRO MAYOR'!$E$78,IF('BALANCE DE PRUEBA'!A22='LIBRO MAYOR'!$G$68,'LIBRO MAYOR'!$H$78,IF('BALANCE DE PRUEBA'!A22='LIBRO MAYOR'!$A$79,'LIBRO MAYOR'!$B$89,IF('BALANCE DE PRUEBA'!A22='LIBRO MAYOR'!$D$79,'LIBRO MAYOR'!$E$89,IF('BALANCE DE PRUEBA'!A22='LIBRO MAYOR'!$G$79,'LIBRO MAYOR'!$H$89,IF('BALANCE DE PRUEBA'!A22='LIBRO MAYOR'!$A$90,'LIBRO MAYOR'!$B$100,IF('BALANCE DE PRUEBA'!A22='LIBRO MAYOR'!$D$90,'LIBRO MAYOR'!$E$100,IF('BALANCE DE PRUEBA'!A22='LIBRO MAYOR'!$G$90,'LIBRO MAYOR'!$H$100,0))))))))))))))))))))))))))) -> 0 | E22: 0
C23: =IF(A23='LIBRO MAYOR'!$A$1,'LIBRO MAYOR'!$A$12,IF('BALANCE DE PRUEBA'!A23='LIBRO MAYOR'!$D$1,'LIBRO MAYOR'!$D$12,IF('BALANCE DE PRUEBA'!A23='LIBRO MAYOR'!$G$1,'LIBRO MAYOR'!$G$12,IF('BALANCE DE PRUEBA'!A23='LIBRO MAYOR'!$A$13,'LIBRO MAYOR'!$A$23,IF('BALANCE DE PRUEBA'!A23='LIBRO MAYOR'!$D$13,'LIBRO MAYOR'!$D$23,IF('BALANCE DE PRUEBA'!A23='LIBRO MAYOR'!$G$13,'LIBRO MAYOR'!$G$23,IF('BALANCE DE PRUEBA'!A23='LIBRO MAYOR'!$A$24,'LIBRO MAYOR'!$A$34,IF('BALANCE DE PRUEBA'!A23='LIBRO MAYOR'!$D$24,'LIBRO MAYOR'!$D$34,IF('BALANCE DE PRUEBA'!A23='LIBRO MAYOR'!$G$24,'LIBRO MAYOR'!$G$34,IF('BALANCE DE PRUEBA'!A23='LIBRO MAYOR'!$A$35,'LIBRO MAYOR'!$A$45,IF('BALANCE DE PRUEBA'!A23='LIBRO MAYOR'!$D$35,'LIBRO MAYOR'!$D$45,IF('BALANCE DE PRUEBA'!A23='LIBRO MAYOR'!$G$35,'LIBRO MAYOR'!$G$45,IF('BALANCE DE PRUEBA'!A23='LIBRO MAYOR'!$A$46,'LIBRO MAYOR'!$A$56,IF('BALANCE DE PRUEBA'!A23='LIBRO MAYOR'!$D$46,'LIBRO MAYOR'!$D$56,IF('BALANCE DE PRUEBA'!A23='LIBRO MAYOR'!$G$46,'LIBRO MAYOR'!$G$56,IF('BALANCE DE PRUEBA'!A23='LIBRO MAYOR'!$A$57,'LIBRO MAYOR'!$A$67,IF('BALANCE DE PRUEBA'!A23='LIBRO MAYOR'!$D$57,'LIBRO MAYOR'!$D$67,IF('BALANCE DE PRUEBA'!A23='LIBRO MAYOR'!$G$57,'LIBRO MAYOR'!$G$67,IF(A23='LIBRO MAYOR'!$A$68,'LIBRO MAYOR'!$A$78,IF('BALANCE DE PRUEBA'!A23='LIBRO MAYOR'!$D$68,'LIBRO MAYOR'!$D$78,IF('BALANCE DE PRUEBA'!A23='LIBRO MAYOR'!$G$68,'LIBRO MAYOR'!$G$78,IF('BALANCE DE PRUEBA'!A23='LIBRO MAYOR'!$A$79,'LIBRO MAYOR'!$A$89,IF('BALANCE DE PRUEBA'!A23='LIBRO MAYOR'!$D$79,'LIBRO MAYOR'!$D$89,IF('BALANCE DE PRUEBA'!A23='LIBRO MAYOR'!$G$79,'LIBRO MAYOR'!$G$89,IF('BALANCE DE PRUEBA'!A23='LIBRO MAYOR'!$A$90,'LIBRO MAYOR'!$A$100,IF('BALANCE DE PRUEBA'!A23='LIBRO MAYOR'!$D$90,'LIBRO MAYOR'!$D$100,IF('BALANCE DE PRUEBA'!A23='LIBRO MAYOR'!$G$90,'LIBRO MAYOR'!$G$100,0))))))))))))))))))))))))))) -> 0 | D23: =IF(A23='LIBRO MAYOR'!$A$1,'LIBRO MAYOR'!$B$12,IF('BALANCE DE PRUEBA'!A23='LIBRO MAYOR'!$D$1,'LIBRO MAYOR'!$E$12,IF('BALANCE DE PRUEBA'!A23='LIBRO MAYOR'!$G$1,'LIBRO MAYOR'!$H$12,IF('BALANCE DE PRUEBA'!A23='LIBRO MAYOR'!$A$13,'LIBRO MAYOR'!$B$23,IF('BALANCE DE PRUEBA'!A23='LIBRO MAYOR'!$D$13,'LIBRO MAYOR'!$E$23,IF('BALANCE DE PRUEBA'!A23='LIBRO MAYOR'!$G$13,'LIBRO MAYOR'!$H$23,IF('BALANCE DE PRUEBA'!A23='LIBRO MAYOR'!$A$24,'LIBRO MAYOR'!$B$34,IF('BALANCE DE PRUEBA'!A23='LIBRO MAYOR'!$D$24,'LIBRO MAYOR'!$E$34,IF('BALANCE DE PRUEBA'!A23='LIBRO MAYOR'!$G$24,'LIBRO MAYOR'!$H$34,IF('BALANCE DE PRUEBA'!A23='LIBRO MAYOR'!$A$35,'LIBRO MAYOR'!$B$45,IF('BALANCE DE PRUEBA'!A23='LIBRO MAYOR'!$D$35,'LIBRO MAYOR'!$E$45,IF('BALANCE DE PRUEBA'!A23='LIBRO MAYOR'!$G$35,'LIBRO MAYOR'!$H$45,IF('BALANCE DE PRUEBA'!A23='LIBRO MAYOR'!$A$46,'LIBRO MAYOR'!$B$56,IF('BALANCE DE PRUEBA'!A23='LIBRO MAYOR'!$D$46,'LIBRO MAYOR'!$E$56,IF('BALANCE DE PRUEBA'!A23='LIBRO MAYOR'!$G$46,'LIBRO MAYOR'!$H$56,IF('BALANCE DE PRUEBA'!A23='LIBRO MAYOR'!$A$57,'LIBRO MAYOR'!$B$67,IF('BALANCE DE PRUEBA'!A23='LIBRO MAYOR'!$D$57,'LIBRO MAYOR'!$E$67,IF('BALANCE DE PRUEBA'!A23='LIBRO MAYOR'!$G$57,'LIBRO MAYOR'!$H$67,IF(A23='LIBRO MAYOR'!$A$68,'LIBRO MAYOR'!$B$78,IF('BALANCE DE PRUEBA'!A23='LIBRO MAYOR'!$D$68,'LIBRO MAYOR'!$E$78,IF('BALANCE DE PRUEBA'!A23='LIBRO MAYOR'!$G$68,'LIBRO MAYOR'!$H$78,IF('BALANCE DE PRUEBA'!A23='LIBRO MAYOR'!$A$79,'LIBRO MAYOR'!$B$89,IF('BALANCE DE PRUEBA'!A23='LIBRO MAYOR'!$D$79,'LIBRO MAYOR'!$E$89,IF('BALANCE DE PRUEBA'!A23='LIBRO MAYOR'!$G$79,'LIBRO MAYOR'!$H$89,IF('BALANCE DE PRUEBA'!A23='LIBRO MAYOR'!$A$90,'LIBRO MAYOR'!$B$100,IF('BALANCE DE PRUEBA'!A23='LIBRO MAYOR'!$D$90,'LIBRO MAYOR'!$E$100,IF('BALANCE DE PRUEBA'!A23='LIBRO MAYOR'!$G$90,'LIBRO MAYOR'!$H$100,0))))))))))))))))))))))))))) -> 0 | E23: 0
C24: =IF(A24='LIBRO MAYOR'!$A$1,'LIBRO MAYOR'!$A$12,IF('BALANCE DE PRUEBA'!A24='LIBRO MAYOR'!$D$1,'LIBRO MAYOR'!$D$12,IF('BALANCE DE PRUEBA'!A24='LIBRO MAYOR'!$G$1,'LIBRO MAYOR'!$G$12,IF('BALANCE DE PRUEBA'!A24='LIBRO MAYOR'!$A$13,'LIBRO MAYOR'!$A$23,IF('BALANCE DE PRUEBA'!A24='LIBRO MAYOR'!$D$13,'LIBRO MAYOR'!$D$23,IF('BALANCE DE PRUEBA'!A24='LIBRO MAYOR'!$G$13,'LIBRO MAYOR'!$G$23,IF('BALANCE DE PRUEBA'!A24='LIBRO MAYOR'!$A$24,'LIBRO MAYOR'!$A$34,IF('BALANCE DE PRUEBA'!A24='LIBRO MAYOR'!$D$24,'LIBRO MAYOR'!$D$34,IF('BALANCE DE PRUEBA'!A24='LIBRO MAYOR'!$G$24,'LIBRO MAYOR'!$G$34,IF('BALANCE DE PRUEBA'!A24='LIBRO MAYOR'!$A$35,'LIBRO MAYOR'!$A$45,IF('BALANCE DE PRUEBA'!A24='LIBRO MAYOR'!$D$35,'LIBRO MAYOR'!$D$45,IF('BALANCE DE PRUEBA'!A24='LIBRO MAYOR'!$G$35,'LIBRO MAYOR'!$G$45,IF('BALANCE DE PRUEBA'!A24='LIBRO MAYOR'!$A$46,'LIBRO MAYOR'!$A$56,IF('BALANCE DE PRUEBA'!A24='LIBRO MAYOR'!$D$46,'LIBRO MAYOR'!$D$56,IF('BALANCE DE PRUEBA'!A24='LIBRO MAYOR'!$G$46,'LIBRO MAYOR'!$G$56,IF('BALANCE DE PRUEBA'!A24='LIBRO MAYOR'!$A$57,'LIBRO MAYOR'!$A$67,IF('BALANCE DE PRUEBA'!A24='LIBRO MAYOR'!$D$57,'LIBRO MAYOR'!$D$67,IF('BALANCE DE PRUEBA'!A24='LIBRO MAYOR'!$G$57,'LIBRO MAYOR'!$G$67,IF(A24='LIBRO MAYOR'!$A$68,'LIBRO MAYOR'!$A$78,IF('BALANCE DE PRUEBA'!A24='LIBRO MAYOR'!$D$68,'LIBRO MAYOR'!$D$78,IF('BALANCE DE PRUEBA'!A24='LIBRO MAYOR'!$G$68,'LIBRO MAYOR'!$G$78,IF('BALANCE DE PRUEBA'!A24='LIBRO MAYOR'!$A$79,'LIBRO MAYOR'!$A$89,IF('BALANCE DE PRUEBA'!A24='LIBRO MAYOR'!$D$79,'LIBRO MAYOR'!$D$89,IF('BALANCE DE PRUEBA'!A24='LIBRO MAYOR'!$G$79,'LIBRO MAYOR'!$G$89,IF('BALANCE DE PRUEBA'!A24='LIBRO MAYOR'!$A$90,'LIBRO MAYOR'!$A$100,IF('BALANCE DE PRUEBA'!A24='LIBRO MAYOR'!$D$90,'LIBRO MAYOR'!$D$100,IF('BALANCE DE PRUEBA'!A24='LIBRO MAYOR'!$G$90,'LIBRO MAYOR'!$G$100,0))))))))))))))))))))))))))) -> 0 | D24: =IF(A24='LIBRO MAYOR'!$A$1,'LIBRO MAYOR'!$B$12,IF('BALANCE DE PRUEBA'!A24='LIBRO MAYOR'!$D$1,'LIBRO MAYOR'!$E$12,IF('BALANCE DE PRUEBA'!A24='LIBRO MAYOR'!$G$1,'LIBRO MAYOR'!$H$12,IF('BALANCE DE PRUEBA'!A24='LIBRO MAYOR'!$A$13,'LIBRO MAYOR'!$B$23,IF('BALANCE DE PRUEBA'!A24='LIBRO MAYOR'!$D$13,'LIBRO MAYOR'!$E$23,IF('BALANCE DE PRUEBA'!A24='LIBRO MAYOR'!$G$13,'LIBRO MAYOR'!$H$23,IF('BALANCE DE PRUEBA'!A24='LIBRO MAYOR'!$A$24,'LIBRO MAYOR'!$B$34,IF('BALANCE DE PRUEBA'!A24='LIBRO MAYOR'!$D$24,'LIBRO MAYOR'!$E$34,IF('BALANCE DE PRUEBA'!A24='LIBRO MAYOR'!$G$24,'LIBRO MAYOR'!$H$34,IF('BALANCE DE PRUEBA'!A24='LIBRO MAYOR'!$A$35,'LIBRO MAYOR'!$B$45,IF('BALANCE DE PRUEBA'!A24='LIBRO MAYOR'!$D$35,'LIBRO MAYOR'!$E$45,IF('BALANCE DE PRUEBA'!A24='LIBRO MAYOR'!$G$35,'LIBRO MAYOR'!$H$45,IF('BALANCE DE PRUEBA'!A24='LIBRO MAYOR'!$A$46,'LIBRO MAYOR'!$B$56,IF('BALANCE DE PRUEBA'!A24='LIBRO MAYOR'!$D$46,'LIBRO MAYOR'!$E$56,IF('BALANCE DE PRUEBA'!A24='LIBRO MAYOR'!$G$46,'LIBRO MAYOR'!$H$56,IF('BALANCE DE PRUEBA'!A24='LIBRO MAYOR'!$A$57,'LIBRO MAYOR'!$B$67,IF('BALANCE DE PRUEBA'!A24='LIBRO MAYOR'!$D$57,'LIBRO MAYOR'!$E$67,IF('BALANCE DE PRUEBA'!A24='LIBRO MAYOR'!$G$57,'LIBRO MAYOR'!$H$67,IF(A24='LIBRO MAYOR'!$A$68,'LIBRO MAYOR'!$B$78,IF('BALANCE DE PRUEBA'!A24='LIBRO MAYOR'!$D$68,'LIBRO MAYOR'!$E$78,IF('BALANCE DE PRUEBA'!A24='LIBRO MAYOR'!$G$68,'LIBRO MAYOR'!$H$78,IF('BALANCE DE PRUEBA'!A24='LIBRO MAYOR'!$A$79,'LIBRO MAYOR'!$B$89,IF('BALANCE DE PRUEBA'!A24='LIBRO MAYOR'!$D$79,'LIBRO MAYOR'!$E$89,IF('BALANCE DE PRUEBA'!A24='LIBRO MAYOR'!$G$79,'LIBRO MAYOR'!$H$89,IF('BALANCE DE PRUEBA'!A24='LIBRO MAYOR'!$A$90,'LIBRO MAYOR'!$B$100,IF('BALANCE DE PRUEBA'!A24='LIBRO MAYOR'!$D$90,'LIBRO MAYOR'!$E$100,IF('BALANCE DE PRUEBA'!A24='LIBRO MAYOR'!$G$90,'LIBRO MAYOR'!$H$100,0))))))))))))))))))))))))))) -> 0 | E24: 0
C25: =IF(A25='LIBRO MAYOR'!$A$1,'LIBRO MAYOR'!$A$12,IF('BALANCE DE PRUEBA'!A25='LIBRO MAYOR'!$D$1,'LIBRO MAYOR'!$D$12,IF('BALANCE DE PRUEBA'!A25='LIBRO MAYOR'!$G$1,'LIBRO MAYOR'!$G$12,IF('BALANCE DE PRUEBA'!A25='LIBRO MAYOR'!$A$13,'LIBRO MAYOR'!$A$23,IF('BALANCE DE PRUEBA'!A25='LIBRO MAYOR'!$D$13,'LIBRO MAYOR'!$D$23,IF('BALANCE DE PRUEBA'!A25='LIBRO MAYOR'!$G$13,'LIBRO MAYOR'!$G$23,IF('BALANCE DE PRUEBA'!A25='LIBRO MAYOR'!$A$24,'LIBRO MAYOR'!$A$34,IF('BALANCE DE PRUEBA'!A25='LIBRO MAYOR'!$D$24,'LIBRO MAYOR'!$D$34,IF('BALANCE DE PRUEBA'!A25='LIBRO MAYOR'!$G$24,'LIBRO MAYOR'!$G$34,IF('BALANCE DE PRUEBA'!A25='LIBRO MAYOR'!$A$35,'LIBRO MAYOR'!$A$45,IF('BALANCE DE PRUEBA'!A25='LIBRO MAYOR'!$D$35,'LIBRO MAYOR'!$D$45,IF('BALANCE DE PRUEBA'!A25='LIBRO MAYOR'!$G$35,'LIBRO MAYOR'!$G$45,IF('BALANCE DE PRUEBA'!A25='LIBRO MAYOR'!$A$46,'LIBRO MAYOR'!$A$56,IF('BALANCE DE PRUEBA'!A25='LIBRO MAYOR'!$D$46,'LIBRO MAYOR'!$D$56,IF('BALANCE DE PRUEBA'!A25='LIBRO MAYOR'!$G$46,'LIBRO MAYOR'!$G$56,IF('BALANCE DE PRUEBA'!A25='LIBRO MAYOR'!$A$57,'LIBRO MAYOR'!$A$67,IF('BALANCE DE PRUEBA'!A25='LIBRO MAYOR'!$D$57,'LIBRO MAYOR'!$D$67,IF('BALANCE DE PRUEBA'!A25='LIBRO MAYOR'!$G$57,'LIBRO MAYOR'!$G$67,IF(A25='LIBRO MAYOR'!$A$68,'LIBRO MAYOR'!$A$78,IF('BALANCE DE PRUEBA'!A25='LIBRO MAYOR'!$D$68,'LIBRO MAYOR'!$D$78,IF('BALANCE DE PRUEBA'!A25='LIBRO MAYOR'!$G$68,'LIBRO MAYOR'!$G$78,IF('BALANCE DE PRUEBA'!A25='LIBRO MAYOR'!$A$79,'LIBRO MAYOR'!$A$89,IF('BALANCE DE PRUEBA'!A25='LIBRO MAYOR'!$D$79,'LIBRO MAYOR'!$D$89,IF('BALANCE DE PRUEBA'!A25='LIBRO MAYOR'!$G$79,'LIBRO MAYOR'!$G$89,IF('BALANCE DE PRUEBA'!A25='LIBRO MAYOR'!$A$90,'LIBRO MAYOR'!$A$100,IF('BALANCE DE PRUEBA'!A25='LIBRO MAYOR'!$D$90,'LIBRO MAYOR'!$D$100,IF('BALANCE DE PRUEBA'!A25='LIBRO MAYOR'!$G$90,'LIBRO MAYOR'!$G$100,0))))))))))))))))))))))))))) -> 0 | D25: =IF(A25='LIBRO MAYOR'!$A$1,'LIBRO MAYOR'!$B$12,IF('BALANCE DE PRUEBA'!A25='LIBRO MAYOR'!$D$1,'LIBRO MAYOR'!$E$12,IF('BALANCE DE PRUEBA'!A25='LIBRO MAYOR'!$G$1,'LIBRO MAYOR'!$H$12,IF('BALANCE DE PRUEBA'!A25='LIBRO MAYOR'!$A$13,'LIBRO MAYOR'!$B$23,IF('BALANCE DE PRUEBA'!A25='LIBRO MAYOR'!$D$13,'LIBRO MAYOR'!$E$23,IF('BALANCE DE PRUEBA'!A25='LIBRO MAYOR'!$G$13,'LIBRO MAYOR'!$H$23,IF('BALANCE DE PRUEBA'!A25='LIBRO MAYOR'!$A$24,'LIBRO MAYOR'!$B$34,IF('BALANCE DE PRUEBA'!A25='LIBRO MAYOR'!$D$24,'LIBRO MAYOR'!$E$34,IF('BALANCE DE PRUEBA'!A25='LIBRO MAYOR'!$G$24,'LIBRO MAYOR'!$H$34,IF('BALANCE DE PRUEBA'!A25='LIBRO MAYOR'!$A$35,'LIBRO MAYOR'!$B$45,IF('BALANCE DE PRUEBA'!A25='LIBRO MAYOR'!$D$35,'LIBRO MAYOR'!$E$45,IF('BALANCE DE PRUEBA'!A25='LIBRO MAYOR'!$G$35,'LIBRO MAYOR'!$H$45,IF('BALANCE DE PRUEBA'!A25='LIBRO MAYOR'!$A$46,'LIBRO MAYOR'!$B$56,IF('BALANCE DE PRUEBA'!A25='LIBRO MAYOR'!$D$46,'LIBRO MAYOR'!$E$56,IF('BALANCE DE PRUEBA'!A25='LIBRO MAYOR'!$G$46,'LIBRO MAYOR'!$H$56,IF('BALANCE DE PRUEBA'!A25='LIBRO MAYOR'!$A$57,'LIBRO MAYOR'!$B$67,IF('BALANCE DE PRUEBA'!A25='LIBRO MAYOR'!$D$57,'LIBRO MAYOR'!$E$67,IF('BALANCE DE PRUEBA'!A25='LIBRO MAYOR'!$G$57,'LIBRO MAYOR'!$H$67,IF(A25='LIBRO MAYOR'!$A$68,'LIBRO MAYOR'!$B$78,IF('BALANCE DE PRUEBA'!A25='LIBRO MAYOR'!$D$68,'LIBRO MAYOR'!$E$78,IF('BALANCE DE PRUEBA'!A25='LIBRO MAYOR'!$G$68,'LIBRO MAYOR'!$H$78,IF('BALANCE DE PRUEBA'!A25='LIBRO MAYOR'!$A$79,'LIBRO MAYOR'!$B$89,IF('BALANCE DE PRUEBA'!A25='LIBRO MAYOR'!$D$79,'LIBRO MAYOR'!$E$89,IF('BALANCE DE PRUEBA'!A25='LIBRO MAYOR'!$G$79,'LIBRO MAYOR'!$H$89,IF('BALANCE DE PRUEBA'!A25='LIBRO MAYOR'!$A$90,'LIBRO MAYOR'!$B$100,IF('BALANCE DE PRUEBA'!A25='LIBRO MAYOR'!$D$90,'LIBRO MAYOR'!$E$100,IF('BALANCE DE PRUEBA'!A25='LIBRO MAYOR'!$G$90,'LIBRO MAYOR'!$H$100,0))))))))))))))))))))))))))) -> 0 | E25: 0
C26: =IF(A26='LIBRO MAYOR'!$A$1,'LIBRO MAYOR'!$A$12,IF('BALANCE DE PRUEBA'!A26='LIBRO MAYOR'!$D$1,'LIBRO MAYOR'!$D$12,IF('BALANCE DE PRUEBA'!A26='LIBRO MAYOR'!$G$1,'LIBRO MAYOR'!$G$12,IF('BALANCE DE PRUEBA'!A26='LIBRO MAYOR'!$A$13,'LIBRO MAYOR'!$A$23,IF('BALANCE DE PRUEBA'!A26='LIBRO MAYOR'!$D$13,'LIBRO MAYOR'!$D$23,IF('BALANCE DE PRUEBA'!A26='LIBRO MAYOR'!$G$13,'LIBRO MAYOR'!$G$23,IF('BALANCE DE PRUEBA'!A26='LIBRO MAYOR'!$A$24,'LIBRO MAYOR'!$A$34,IF('BALANCE DE PRUEBA'!A26='LIBRO MAYOR'!$D$24,'LIBRO MAYOR'!$D$34,IF('BALANCE DE PRUEBA'!A26='LIBRO MAYOR'!$G$24,'LIBRO MAYOR'!$G$34,IF('BALANCE DE PRUEBA'!A26='LIBRO MAYOR'!$A$35,'LIBRO MAYOR'!$A$45,IF('BALANCE DE PRUEBA'!A26='LIBRO MAYOR'!$D$35,'LIBRO MAYOR'!$D$45,IF('BALANCE DE PRUEBA'!A26='LIBRO MAYOR'!$G$35,'LIBRO MAYOR'!$G$45,IF('BALANCE DE PRUEBA'!A26='LIBRO MAYOR'!$A$46,'LIBRO MAYOR'!$A$56,IF('BALANCE DE PRUEBA'!A26='LIBRO MAYOR'!$D$46,'LIBRO MAYOR'!$D$56,IF('BALANCE DE PRUEBA'!A26='LIBRO MAYOR'!$G$46,'LIBRO MAYOR'!$G$56,IF('BALANCE DE PRUEBA'!A26='LIBRO MAYOR'!$A$57,'LIBRO MAYOR'!$A$67,IF('BALANCE DE PRUEBA'!A26='LIBRO MAYOR'!$D$57,'LIBRO MAYOR'!$D$67,IF('BALANCE DE PRUEBA'!A26='LIBRO MAYOR'!$G$57,'LIBRO MAYOR'!$G$67,IF(A26='LIBRO MAYOR'!$A$68,'LIBRO MAYOR'!$A$78,IF('BALANCE DE PRUEBA'!A26='LIBRO MAYOR'!$D$68,'LIBRO MAYOR'!$D$78,IF('BALANCE DE PRUEBA'!A26='LIBRO MAYOR'!$G$68,'LIBRO MAYOR'!$G$78,IF('BALANCE DE PRUEBA'!A26='LIBRO MAYOR'!$A$79,'LIBRO MAYOR'!$A$89,IF('BALANCE DE PRUEBA'!A26='LIBRO MAYOR'!$D$79,'LIBRO MAYOR'!$D$89,IF('BALANCE DE PRUEBA'!A26='LIBRO MAYOR'!$G$79,'LIBRO MAYOR'!$G$89,IF('BALANCE DE PRUEBA'!A26='LIBRO MAYOR'!$A$90,'LIBRO MAYOR'!$A$100,IF('BALANCE DE PRUEBA'!A26='LIBRO MAYOR'!$D$90,'LIBRO MAYOR'!$D$100,IF('BALANCE DE PRUEBA'!A26='LIBRO MAYOR'!$G$90,'LIBRO MAYOR'!$G$100,0))))))))))))))))))))))))))) -> 0 | D26: =IF(A26='LIBRO MAYOR'!$A$1,'LIBRO MAYOR'!$B$12,IF('BALANCE DE PRUEBA'!A26='LIBRO MAYOR'!$D$1,'LIBRO MAYOR'!$E$12,IF('BALANCE DE PRUEBA'!A26='LIBRO MAYOR'!$G$1,'LIBRO MAYOR'!$H$12,IF('BALANCE DE PRUEBA'!A26='LIBRO MAYOR'!$A$13,'LIBRO MAYOR'!$B$23,IF('BALANCE DE PRUEBA'!A26='LIBRO MAYOR'!$D$13,'LIBRO MAYOR'!$E$23,IF('BALANCE DE PRUEBA'!A26='LIBRO MAYOR'!$G$13,'LIBRO MAYOR'!$H$23,IF('BALANCE DE PRUEBA'!A26='LIBRO MAYOR'!$A$24,'LIBRO MAYOR'!$B$34,IF('BALANCE DE PRUEBA'!A26='LIBRO MAYOR'!$D$24,'LIBRO MAYOR'!$E$34,IF('BALANCE DE PRUEBA'!A26='LIBRO MAYOR'!$G$24,'LIBRO MAYOR'!$H$34,IF('BALANCE DE PRUEBA'!A26='LIBRO MAYOR'!$A$35,'LIBRO MAYOR'!$B$45,IF('BALANCE DE PRUEBA'!A26='LIBRO MAYOR'!$D$35,'LIBRO MAYOR'!$E$45,IF('BALANCE DE PRUEBA'!A26='LIBRO MAYOR'!$G$35,'LIBRO MAYOR'!$H$45,IF('BALANCE DE PRUEBA'!A26='LIBRO MAYOR'!$A$46,'LIBRO MAYOR'!$B$56,IF('BALANCE DE PRUEBA'!A26='LIBRO MAYOR'!$D$46,'LIBRO MAYOR'!$E$56,IF('BALANCE DE PRUEBA'!A26='LIBRO MAYOR'!$G$46,'LIBRO MAYOR'!$H$56,IF('BALANCE DE PRUEBA'!A26='LIBRO MAYOR'!$A$57,'LIBRO MAYOR'!$B$67,IF('BALANCE DE PRUEBA'!A26='LIBRO MAYOR'!$D$57,'LIBRO MAYOR'!$E$67,IF('BALANCE DE PRUEBA'!A26='LIBRO MAYOR'!$G$57,'LIBRO MAYOR'!$H$67,IF(A26='LIBRO MAYOR'!$A$68,'LIBRO MAYOR'!$B$78,IF('BALANCE DE PRUEBA'!A26='LIBRO MAYOR'!$D$68,'LIBRO MAYOR'!$E$78,IF('BALANCE DE PRUEBA'!A26='LIBRO MAYOR'!$G$68,'LIBRO MAYOR'!$H$78,IF('BALANCE DE PRUEBA'!A26='LIBRO MAYOR'!$A$79,'LIBRO MAYOR'!$B$89,IF('BALANCE DE PRUEBA'!A26='LIBRO MAYOR'!$D$79,'LIBRO MAYOR'!$E$89,IF('BALANCE DE PRUEBA'!A26='LIBRO MAYOR'!$G$79,'LIBRO MAYOR'!$H$89,IF('BALANCE DE PRUEBA'!A26='LIBRO MAYOR'!$A$90,'LIBRO MAYOR'!$B$100,IF('BALANCE DE PRUEBA'!A26='LIBRO MAYOR'!$D$90,'LIBRO MAYOR'!$E$100,IF('BALANCE DE PRUEBA'!A26='LIBRO MAYOR'!$G$90,'LIBRO MAYOR'!$H$100,0))))))))))))))))))))))))))) -> 0 | E26: 0
C27: =SUM(C2:C26) -> 119600200 | D27: =SUM(D2:D26) -> 119600200
C29: =IF(C27=D27,"CONTABILIDAD CORRECTA","REVISAR REGISTROS CONTABLES") -> CONTABILIDAD CORRECTA

Sheet BALANCE GENERAL
A1: BALANCE GENERAL
A2: ='LIBRO DIARIO'!E1 -> 0
A3: ACTIVOS | D3: PASIVOS
A4: CODIGO | B4: CUENTA | C4: SALDO | D4: CODIGO | E4: CUENTA | F4: SALDO
A5: 1105 | B5: =IFERROR(VLOOKUP(A5,BALANCEPRUEBA,2,0),"") -> CAJA | C5: =IFERROR(VLOOKUP(A5,BALANCEPRUEBA,5,0),0) -> 19130500 | D5: 2408 | E5: =IFERROR(VLOOKUP(D5,BALANCEPRUEBA,2,0),"") -> IVA X PAGAR | F5: =IFERROR(VLOOKUP(D5,BALANCEPRUEBA,5,0),0) -> 12000
A6: 1435 | B6: MERCANCIAS NO FABRICADAS | C6: =IFERROR(VLOOKUP(A6,BALANCEPRUEBA,5,0),0) -> 600000 | D6: 2205 | E6: PROVEEDORES NACIONALES | F6: 313200
A7: 1516 | B7: EDIFICIO | C7: =IFERROR(VLOOKUP(A7,BALANCEPRUEBA,5,0),0) -> 90000000 | D7: 2105 | E7: BANCOS NACIONALES | F7: =IFERROR(VLOOKUP(D7,BALANCEPRUEBA,5,0),0) -> 3000000
A8: 1305 | B8: CUENTAS POR COBRAR CLIENTES | C8: 65250 | D8: 2380 | E8: ACREEDORES VARIOS | F8: 2000000
A9: 1110 | B9: BANCO | C9: 7204450 | F9: 0
A10: 1524 | B10: EQUIPOS DE OFICINA | C10: =IFERROR(VLOOKUP(A10,BALANCEPRUEBA,5,0),0) -> 2000000 | F10: 0
C11: 0 | D11: TOTAL PASIVOS | F11: =SUM(F5:F10) -> 5325200
C12: =IFERROR(VLOOKUP(A12,BALANCEPRUEBA,5,0),0) -> 0 | D12: PATRIMONIO
C13: 0 | D13: CODIGO | E13: CUENTA | F13: SALDO
C14: 0
C15: 0 | D15: 3115 | E15: =IFERROR(VLOOKUP(D15,BALANCEPRUEBA,2,0),"") -> APORTES SOCIALES | F15: =IFERROR(VLOOKUP(D15,BALANCEPRUEBA,5,0),0) -> 113300000
C16: 0 | E16: =IFERROR(VLOOKUP(D16,CUENTAS,2,0),"") ->  | F16: ='ESTADO DE RESULTADO'!D16 -> 375000
A17: TOTAL ACTIVOS | C17: =SUM(C5:C16) -> 119000200 | D17: TOTAL PATRIMONIO | F17: =SUM(F15:F16) -> 113675000
A18: ECUACION PATRIMONIAL
A19: ACTIVO | C19: PASIVO | D19: PATRIMONIO
A20: =C17 -> 119000200 | C20: =F11 -> 5325200 | D20: =F17 -> 113675000
A21: =A20 -> 119000200 | D21: =SUM(C20:D20) -> 119000200
A23: =IF(AND(A21,D21)=0,"",IF(A21=D21,"BALANCE GENERAL CORRECTO","")) -> BALANCE GENERAL CORRECTO
A25: =D21-A21 -> 0

Sheet ESTADO DE RESULTADO
A1: ESTADO DE RESULTADOS
A2: ='LIBRO DIARIO'!E1 -> 0
A3: INGRESOS | D3: =SUM(D5:D7) -> 975000
A4: CODIGO | C4: CUENTA | D4: SALDO
A5: 4135 | C5: =IFERROR(VLOOKUP(A5,BALANCEPRUEBA,2,0),"") -> COMERCIO POR MAYOR POR MENOR | D5: =IFERROR(VLOOKUP(A5,BALANCEPRUEBA,5,0),0) -> 975000
C6: =IFERROR(VLOOKUP(A6,BALANCEPRUEBA,2,0),"") ->  | D6: =IFERROR(VLOOKUP(A6,BALANCEPRUEBA,5,0),0) -> 0
C7: =IFERROR(VLOOKUP(A7,BALANCEPRUEBA,2,0),"") ->  | D7: =IFERROR(VLOOKUP(A7,BALANCEPRUEBA,5,0),0) -> 0
A8: GASTOS Y COSTOS | D8: =SUM(D10:D15) -> 600000
A9: CODIGO | C9: CUENTA | D9: SALDO
A10: 6205 | C10: =IFERROR(VLOOKUP(A10,BALANCEPRUEBA,2,0),"") -> DE VENTAS | D10: =IFERROR(VLOOKUP(A10,BALANCEPRUEBA,5,0),0) -> 600000
C11: =IFERROR(VLOOKUP(A11,BALANCEPRUEBA,2,0),"") ->  | D11: 0
C12: =IFERROR(VLOOKUP(A12,BALANCEPRUEBA,2,0),"") ->  | D12: 0
D13: 0
C14: =IFERROR(VLOOKUP(A14,BALANCEPRUEBA,2,0),"") ->  | D14: 0
C15: =IFERROR(VLOOKUP(A15,BALANCEPRUEBA,2,0),"") ->  | D15: 0
A16: UTILIDAD DEL EJERCICIO | D16: =D3-D8 -> 375000
